﻿Body Name,Supplier Code,Supplier Name,Transaction Ref/No,Their Ref,Date Paid,Gross Value (Detail),VAT Amount,7CCC - Level 7 Cost Centre Code,7CCN - Level 7 Cost Centre Name,9AC - Level 9 Account Code,9AN - Level 9 Account Name,4CCN - Level 4 Cost Centre Name
Blackpool Council,1009004,Bemrosebooth Paragon Limited T/A Paragon Id,570722,492634,28/02/2022,2520,420,PARADM,Parking Administration,3302,Stationery,Budgets Outside Cash Limits
Blackpool Council,1009004,Bemrosebooth Paragon Limited T/A Paragon Id,570723,492635,28/02/2022,1512,252,PARADM,Parking Administration,3302,Stationery,Budgets Outside Cash Limits
Blackpool Council,1019678,Smirthwaite Ltd,582041,191079,28/02/2022,592.8,98.8,MTEAJ,Equipment,5401,Aids To Daily Living,Adult & Families
Blackpool Council,1006940,Smiths Equipment Hire Ltd - Smiths Training,586037,V07-988345,02/02/2022,330,55,PJNA,New Features / Schemes - C & E,3006,Hire Of Equipment,Places
Blackpool Council,1074572,Gl Assessment,586971,SINV00338236,22/02/2022,333.9,55.65,EDDIV,Education Diversity,3606,Incidental Expenses,Children'S Services
Blackpool Council,1009004,Bemrosebooth Paragon Limited T/A Paragon Id,587529,493128,28/02/2022,2520,420,PARADM,Parking Administration,3302,Stationery,Budgets Outside Cash Limits
Blackpool Council,1009004,Bemrosebooth Paragon Limited T/A Paragon Id,587530,493129,28/02/2022,1344,224,PARADM,Parking Administration,3302,Stationery,Budgets Outside Cash Limits
Blackpool Council,1078310,I-Prophets Compliance Ltd - Digital Energy,588026,IP-20971,17/02/2022,900,150,FB0004,Energy & Sustainability,3532,Comp-Running & License Costs,Resources
Blackpool Council,1119493,Centerprise International Ltd,588712,90269669,02/02/2022,2250,375,CS0739,Ict Refresh,6525,I.T. Hardware Purchase,Capital - Resources
Blackpool Council,1123518,Department For Transport Account,588985,2373-03/01/2022,02/02/2022,2250,375,TRA,Traffic Management,4501,Private Contractors,Community & Env Services
Blackpool Council,1006940,Smiths Equipment Hire Ltd - Smiths Training,589003,07-1000307,01/02/2022,1750.2,291.7,PJNA,New Features / Schemes - C & E,3041,Other Materials,Places
Blackpool Council,1106616,Boingboing Resilience Cic,589023,697,02/02/2022,5280,880,HS0003,Headstart Commissioning,3401,General Services,Children'S Services
Blackpool Council,1106616,Boingboing Resilience Cic,589024,699,02/02/2022,50702.4,8450.4,HS0003,Headstart Commissioning,3401,General Services,Children'S Services
Blackpool Council,1106616,Boingboing Resilience Cic,589026,698,02/02/2022,11152.28,1858.71,HS0007,Young People & Comm'Y Engagemt,4501,Private Contractors,Children'S Services
Blackpool Council,1106616,Boingboing Resilience Cic,589027,700,02/02/2022,12756.91,2126.15,HS0003,Headstart Commissioning,3401,General Services,Children'S Services
Blackpool Council,1121728,Arrow County Supplies,589030,4931451,03/02/2022,268,0,ZM0018,Highways & Engineering,9773,Orders Received Not Invoiced,Blackpool Services
Blackpool Council,1121728,Arrow County Supplies,589030,4931451,03/02/2022,321.6,53.6,ZM0018,Highways & Engineering,9511A,Stocks Efin,Blackpool Services
Blackpool Council,1017862,The Tas Partnership Ltd,589129,"56,669",04/02/2022,1742.4,290.4,PTP,Transport Policy,3413,Consultants,Places
Blackpool Council,1013011,Tennant Uk Cleaning Solutions Ltd,589132,963985969,04/02/2022,368.16,61.36,SCLEAN,Street Cleaning,4501,Private Contractors,Community & Env Services
Blackpool Council,1104701,Working Planet Limited,589135,28779,04/02/2022,298.8,49.8,CORDEV,Corporate Delivery Unit,3801,Other Expenses,Chief Executive
Blackpool Council,1130253,Mb Associates Ltd,589181,1123,02/02/2022,984,164,AHHBA,Blackpool Museum,3801,Other Expenses,Places
Blackpool Council,1117328,Northwest Radio Communications Ltd,589203,65249,04/02/2022,715.2,119.2,LEISUR,Leisure Management,3012,Other Equipment,Community & Env Services
Blackpool Council,1092768,21st Century Passenger Systems Limited,589220,202747,04/02/2022,1972.8,328.8,TRA,Traffic Management,4501,Private Contractors,Community & Env Services
Blackpool Council,1026811,Stannah Lift Services Ltd,589243,1085383288,02/02/2022,2654,0,CX4002,Disabled Facilities Grants,6501,Contract Payments,Capital - Adult Social Care
Blackpool Council,1094355,Les Mills Fitness Uk Ltd,589333,LMUK-SIV-107073,04/02/2022,450,75,LEISUR,Leisure Management,3801,Other Expenses,Community & Env Services
Blackpool Council,1099796,Valley Equestrian Products Ltd,589340,3602-22,04/02/2022,280.8,46.8,CWASTE,Commercial Waste,4514,Contract 'E',Community & Env Services
Blackpool Council,1010860,Advanced Steel Services Ltd,589365,01107232,04/02/2022,408.6,68.1,PJNA,New Features / Schemes - C & E,3041,Other Materials,Places
Blackpool Council,1008871,Irrv Services,589373,A130764,03/02/2022,372,62,FBBEA,"Income, Recovery & Debtors",0915,Conferences,Resources
Blackpool Council,1105698,Hampton'S Resourcing,589411,HAM02.01.22.4,01/02/2022,2541.17,423.53,MNGMT,Central Management,3413,Consultants,Children'S Services
Blackpool Council,1121194,REDACTED PERSONAL DATA,589445,HS24,03/02/2022,2386.09,0,HS0003,Headstart Commissioning,3401,General Services,Children'S Services
Blackpool Council,1132811,REDACTED PERSONAL DATA,589447,22/0280,01/02/2022,1200,0,HS0003,Headstart Commissioning,3401,General Services,Children'S Services
Blackpool Council,1050522,Pasta King (Uk) Limited,589499,505463,04/02/2022,487.84,0,CATERG,Catering Services,3101,Provisions,Community & Env Services
Blackpool Council,1050522,Pasta King (Uk) Limited,589500,505808,04/02/2022,281.72,0,CATERG,Catering Services,3101,Provisions,Community & Env Services
Blackpool Council,1062176,Gmbg Ltd T/A Civils & Lintels,589519,FNW/345610,09/02/2022,630,0,ZM0018,Highways & Engineering,9773,Orders Received Not Invoiced,Blackpool Services
Blackpool Council,1062176,Gmbg Ltd T/A Civils & Lintels,589519,FNW/345610,09/02/2022,756,126,ZM0018,Highways & Engineering,9511A,Stocks Efin,Blackpool Services
Blackpool Council,1132962,Sysco Productions Ltd,589521,196307,04/02/2022,139749.12,23291.52,CGTACA,Museum,6517,Equipment,Capital - Commnctn & Regen
Blackpool Council,1120227,Achievement Through Collaboration Trust,589533,ATCSI19,10/02/2022,1000,0,MNGMT,Central Management,3413,Consultants,Children'S Services
Blackpool Council,1077392,Reed Specialist Recruitment Ltd,589565,E020974824M,17/02/2022,2958.51,493.09,JAB,Locality,0791,Temp/Relief (Bureau Staff),Children'S Services
Blackpool Council,1077392,Reed Specialist Recruitment Ltd,589565,E020974824M,17/02/2022,1798.56,299.76,JBT,Looked After Children,0791,Temp/Relief (Bureau Staff),Children'S Services
Blackpool Council,1077392,Reed Specialist Recruitment Ltd,589565,E020974824M,17/02/2022,4447.12,741.2,JEA,Senior Management,0791,Temp/Relief (Bureau Staff),Children'S Services
Blackpool Council,1077392,Reed Specialist Recruitment Ltd,589565,E020974824M,17/02/2022,2718.91,453.17,PU0000,Covid Test And Trace,0791,Temp/Relief (Bureau Staff),Public Health
Blackpool Council,1077392,Reed Specialist Recruitment Ltd,589565,E020974824M,17/02/2022,364.27,60.71,PU0001,Public Health Team,0791,Temp/Relief (Bureau Staff),Public Health
Blackpool Council,1123071,Whistlejacket London Limited,589567,INV-0735,10/02/2022,2248.8,374.8,HJA,Growth,3315,Marketing,Places
Blackpool Council,1009166,Glasdon Uk Ltd,589584,SI830881,25/02/2022,915,152.5,PRKDEV,Parks Development,3041,Other Materials,Community & Env Services
Blackpool Council,1119493,Centerprise International Ltd,589588,90270295,10/02/2022,672,112,CS0739,Ict Refresh,6525,I.T. Hardware Purchase,Capital - Resources
Blackpool Council,1105698,Hampton'S Resourcing,589592,HAM9.1.22.4,08/02/2022,3388.22,564.7,MNGMT,Central Management,3413,Consultants,Children'S Services
Blackpool Council,1107632,Right To Succeed,589594,INV-00210,07/02/2022,60000,10000,OPAREA,Opportunity Areas,4515,Contract Services,Places
Blackpool Council,1103450,Blackpool Entertainment Company Limited,589595,INV005789,04/02/2022,330.75,36.75,PAAA,C.E. Management,3801,Other Expenses,Chief Executive
Blackpool Council,1094424,The Networking People,589596,SI110536,04/02/2022,12691,2115.17,FGAA,Ict Corporate Services,3527,Communication Lines,Resources
Blackpool Council,1107632,Right To Succeed,589598,INV-00211,07/02/2022,17694,2949,OPAREA,Opportunity Areas,4515,Contract Services,Places
Blackpool Council,1094424,The Networking People,589600,SI110527,04/02/2022,4772.93,795.49,FGAA,Ict Corporate Services,3527,Communication Lines,Resources
Blackpool Council,1094424,The Networking People,589602,SI110534,09/02/2022,3922.33,653.72,FGAA,Ict Corporate Services,3521,Landline - Line Rental,Resources
Blackpool Council,1065232,Back Care Solutions Ltd,589609,98529,09/02/2022,559.98,93.33,FCADA,Customer Services,3001,Office Equipment Purchase,Resources
Blackpool Council,1065232,Back Care Solutions Ltd,589610,98515,09/02/2022,559.98,93.33,FCADA,Customer Services,3001,Office Equipment Purchase,Resources
Blackpool Council,1132845,Susan Hayward Consulting,589651,001/BC,04/02/2022,450,0,MNGMT,Central Management,3413,Consultants,Children'S Services
Blackpool Council,1131198,Permanent Futures Ltd,589652,247021,07/02/2022,1020,170,MNGMT,Central Management,3413,Consultants,Children'S Services
Blackpool Council,1119399,Education And Employer Taskforce Limited,589653,EET409 BBC,11/02/2022,12000,2000,OPAREA,Opportunity Areas,4515,Contract Services,Places
Blackpool Council,1057663,Wilde Recruitment Ltd,589661,39468,04/02/2022,552.38,92.06,CTAHHA,Tramway Emergency Works,6501,Contract Payments,Capital - Commnctn & Regen
Blackpool Council,1069392,Meon Ltd,589732,M70325,24/02/2022,863.28,0,ZM0018,Highways & Engineering,9773,Orders Received Not Invoiced,Blackpool Services
Blackpool Council,1069392,Meon Ltd,589732,M70325,24/02/2022,1035.94,172.66,ZM0018,Highways & Engineering,9511A,Stocks Efin,Blackpool Services
Blackpool Council,1128565,Calder Training + Consultancy Ltd,589739,902,08/02/2022,1020,170,JA0505,Children'S Training,0911,Training Expenses,Children'S Services
Blackpool Council,1031943,Capita Property & Infrastructure Ltd,589741,6017140108,11/02/2022,6000,1000,DDC,Partnerships & Business Dev,3413,Consultants,Places
Blackpool Council,1097234,Ieg4 Limited,589742,IEG4002081,11/02/2022,10317.6,1719.6,FC1801,Social Fund - Admin,3532,Comp-Running & License Costs,Resources
Blackpool Council,1014426,Jacobs Uk Limited,589743,B550X007-006,02/02/2022,30635.62,5105.94,CPAABA,Shoreline,6501,Contract Payments,Capital - Comm & Environ
Blackpool Council,1006944,Siemens Financial Services Ltd,589751,244/22/0065682,04/02/2022,2620.8,436.8,APFBAB,Vitaline,4501,Private Contractors,Adult & Families
Blackpool Council,1088658,D-Tech International Ltd,589761,8673,10/02/2022,2754,459,LBF,Library Management,3532,Comp-Running & License Costs,Places
Blackpool Council,1025240,Key Engineering Supplies Ltd,589832,46116,11/02/2022,270.72,45.12,ZM0018,Highways & Engineering,9511A,Stocks Efin,Blackpool Services
Blackpool Council,1049304,Insight Direct (Uk) Ltd,589835,2100087873-22,11/02/2022,424.02,70.67,JBT,Looked After Children,3533,Computer S/W Purchases,Children'S Services
Blackpool Council,1008722,J.A. Jones And Sons (Fac036 Payment),589850,9666577,10/02/2022,270,45,PRKDEV,Parks Development,1021,Growing,Community & Env Services
Blackpool Council,1076549,REDACTED PERSONAL DATA,589851,0003,11/02/2022,2000,0,AHG,Art Gallery Summary,3456,Payment To Artists,Places
Blackpool Council,1105208,222 Sports Limited,589917,2379,11/02/2022,7260,1210,LEISUR,Leisure Management,3801,Other Expenses,Community & Env Services
Blackpool Council,1130442,Skyguard Ltd T/A Peoplesafe,589933,INV128996,11/02/2022,2268,378,MTEBK,Other Services,3010,Safety Equipment,Adult & Families
Blackpool Council,1103692,Calico Enterprise Limited,589935,SINV20/00003887,11/02/2022,3892.8,648.8,FC1802,Social Fund - Client,5210,Community Care Support,Resources
Blackpool Council,1027550,Brathay Services Limited,589936,3096,09/02/2022,3162.3,527.05,HS0007,Young People & Comm'Y Engagemt,3401,General Services,Children'S Services
Blackpool Council,1119242,Katherine Brady All Things Told,589939,055,01/02/2022,2125,0,CGTACA,Museum,6503,Capital Salaries (Pro Advance),Capital - Commnctn & Regen
Blackpool Council,1006449,Tmp (Uk) Ltd,589941,225182,11/02/2022,496.94,82.82,TRA,Traffic Management,4501,Private Contractors,Community & Env Services
Blackpool Council,1006449,Tmp (Uk) Ltd,589942,225183,11/02/2022,390.45,65.07,TRA,Traffic Management,4501,Private Contractors,Community & Env Services
Blackpool Council,1114832,Able 2 Occupational Therapy Services Ltd,589944,INV-30774,04/02/2022,330,0,FC1404,Blue Badge Reform,3401,General Services,Resources
Blackpool Council,1131026,REDACTED PERSONAL DATA,589968,PJ7623-3,09/02/2022,2000,0,PJNA,New Features / Schemes - C & E,3456,Payment To Artists,Places
Blackpool Council,1071928,Civica Uk Limited,589972,C/LE233849,16/02/2022,8249.04,1374.84,FB0211,Debtors,3532,Comp-Running & License Costs,Resources
Blackpool Council,1120630,Dar Consulting,589974,SI-250,16/02/2022,540,90,SCHEME,Highways Schemes,1012,Premises Maint-Priv.Contractor,Community & Env Services
Blackpool Council,1098897,Mike Kidd Horse Power Ltd,589979,1067,14/02/2022,4560,0,EDDIV,Education Diversity,4101,Other Local Authorities,Children'S Services
Blackpool Council,1103650,Westec,589984,SI-18853,11/02/2022,2730,455,PJOA,Commercial & Marketing,3301,Printing,Places
Blackpool Council,1006576,The Helping Hand Company Ltd,589989,434622,15/02/2022,673.2,0,ZM0018,Highways & Engineering,9773,Orders Received Not Invoiced,Blackpool Services
Blackpool Council,1006576,The Helping Hand Company Ltd,589989,434622,15/02/2022,807.84,134.64,ZM0018,Highways & Engineering,9511A,Stocks Efin,Blackpool Services
Blackpool Council,1094424,The Networking People,589990,SI110556,11/02/2022,3191.26,531.88,FGAA,Ict Corporate Services,3532,Comp-Running & License Costs,Resources
Blackpool Council,1040498,Savoy Timber Ltd,589995,127944,08/02/2022,616.6,102.77,CEMCRE,Cems Crems Etc,3801,Other Expenses,Governance & Partnerships
Blackpool Council,1094424,The Networking People,590042,SI110561,16/02/2022,1856.66,309.44,FGAA,Ict Corporate Services,3531,Computer-H'Ware Purchase,Resources
Blackpool Council,1133179,First Aid Academy Ltd,590049,R25081,09/02/2022,1080,180,JA0505,Children'S Training,3426,Course Fees,Children'S Services
Blackpool Council,1026811,Stannah Lift Services Ltd,590052,1085384973,02/02/2022,903,0,CX4002,Disabled Facilities Grants,6501,Contract Payments,Capital - Adult Social Care
Blackpool Council,1026811,Stannah Lift Services Ltd,590053,1085385813,07/02/2022,4885,0,CX4002,Disabled Facilities Grants,6501,Contract Payments,Capital - Adult Social Care
Blackpool Council,1026811,Stannah Lift Services Ltd,590055,1085384607,02/02/2022,1652.84,275.47,MVBBJ,Equipment,5401,Aids To Daily Living,Adult & Families
Blackpool Council,1011675,Bambers Remedial Contractors Limited,590056,17353,07/02/2022,360,0,CXAAA,Local Authority Dwellings,6501,Contract Payments,Capital - Chief Executive
Blackpool Council,1095113,Pearce Clinical Psychology Services Ltd,590059,940,14/02/2022,500,0,FK0071,Corporate Training,3426,Course Fees,Chief Executive
Blackpool Council,1083407,Cal-Com Systems Ltd,590060,127442,04/02/2022,355.2,59.2,PJLA,Maintenance,3308,Servicing,Places
Blackpool Council,1119493,Centerprise International Ltd,590063,90270771,16/02/2022,483.65,80.61,FGAA,Ict Corporate Services,3531,Computer-H'Ware Purchase,Resources
Blackpool Council,1132964,The Good Cause Project,590069,INV-013,11/02/2022,3240,0,AHHBA,Blackpool Museum,3801,Other Expenses,Places
Blackpool Council,1121728,Arrow County Supplies,590075,4933844,16/02/2022,251.52,41.92,ZM0018,Highways & Engineering,9511A,Stocks Efin,Blackpool Services
Blackpool Council,1108257,REDACTED PERSONAL DATA,590085,2022-03,15/02/2022,2000,0,AHG,Art Gallery Summary,3456,Payment To Artists,Places
Blackpool Council,1094424,The Networking People,590086,SI110567,17/02/2022,18919.64,3153.27,FGAA,Ict Corporate Services,3532,Comp-Running & License Costs,Resources
Blackpool Council,1069760,W Robinson (Bils) Ltd,590087,83710,14/02/2022,1962.44,327.07,SCHEME,Highways Schemes,3041,Other Materials,Community & Env Services
Blackpool Council,1006940,Smiths Equipment Hire Ltd - Smiths Training,590122,07-1004281,01/02/2022,780.45,94.66,PJNA,New Features / Schemes - C & E,3041,Other Materials,Places
Blackpool Council,1044964,Marketing Lancashire,590183,1964,17/02/2022,7800,1300,PPA,Head Of Tourism Services,3401,General Services,Places
Blackpool Council,1057663,Wilde Recruitment Ltd,590190,39506,11/02/2022,552.38,92.06,CTAHHA,Tramway Emergency Works,6501,Contract Payments,Capital - Commnctn & Regen
Blackpool Council,1133161,Enjoy Training Ltd,590202,INV-001184,17/02/2022,17880,2980,PTA,Economic Development,3315,Marketing,Places
Blackpool Council,1065232,Back Care Solutions Ltd,590209,98638,15/02/2022,264,44,FCADA,Customer Services,3001,Office Equipment Purchase,Resources
Blackpool Council,1102823,Wilde Consultants Limited,590211,22337,17/02/2022,2664,444,TRA,Traffic Management,4501,Private Contractors,Community & Env Services
Blackpool Council,1105698,Hampton'S Resourcing,590244,HAM16.1.22.4,15/02/2022,3388.22,564.7,MNGMT,Central Management,3413,Consultants,Children'S Services
Blackpool Council,1075547,Bauer Radio Ltd,590245,8053910,02/02/2022,1082.57,180.43,PBF,Communications,3315,Marketing,Places
Blackpool Council,1096607,Cutlers Property Consultancy (Services),590255,0070503,15/02/2022,4975,0,AEE,Estates,0781,Contracted,Resources
Blackpool Council,1122892,REDACTED PERSONAL DATA,590263,CW242,16/02/2022,2000,0,AHG,Art Gallery Summary,3456,Payment To Artists,Places
Blackpool Council,1006419,Tunstall Healthcare (Uk) Ltd,590313,3IN/10384624,11/02/2022,318,53,APFBAB,Vitaline,3004,Operating Lease,Adult & Families
Blackpool Council,1014996,Peters Ltd T/A Peters Bookselling Svces,590317,1882055,16/02/2022,362.87,0,LBB,Central Library,3304,Books And Periodicals,Places
Blackpool Council,1132812,Cognisoft Limited,590318,INV-0346,16/02/2022,8220,1370,PVA,Other External Funding,3313,General Expenses,Places
Blackpool Council,1010300,Blacktax Radio Taxis T/A Blackpool Courier,590319,11,08/02/2022,494,0,TRCHIL,Integrated Transport Children,2201,Contract Hire,Community & Env Services
Blackpool Council,1064236,Lifestyle Media Group Ltd,590327,107631,01/02/2022,4274.4,712.4,PRM,Publications,3301,Printing,Places
Blackpool Council,1103142,Dmm International Ltd,590374,1064300,18/02/2022,479.95,79.99,LEISUR,Leisure Management,3007,Recreational Equipment,Community & Env Services
Blackpool Council,1096607,Cutlers Property Consultancy (Services),590387,0070505,02/02/2022,4940,0,AEE,Estates,0781,Contracted,Resources
Blackpool Council,1071432,Cpi - Crisis Preventions Insititute,590388,CUK0030745,17/02/2022,1890,315,EDDIV,Education Diversity,3605,Confs & Short Courses,Children'S Services
Blackpool Council,1123190,Cder Group Limted,590390,193157,01/02/2022,1385.15,230.86,FV6705,Phoenix Commercial Collection,7366,Car Parking Fees,Budgets Outside Cash Limits
Blackpool Council,1123190,Cder Group Limted,590391,194029,04/02/2022,2352.46,392.08,FV6705,Phoenix Commercial Collection,7366,Car Parking Fees,Budgets Outside Cash Limits
Blackpool Council,1123190,Cder Group Limted,590392,194882,11/02/2022,7922.69,1320.45,FV6705,Phoenix Commercial Collection,7366,Car Parking Fees,Budgets Outside Cash Limits
Blackpool Council,1007385,R S Components Ltd,590398,2205642397,17/02/2022,2080.49,346.75,PJRA,Electrical Infra - Places,3041,Other Materials,Places
Blackpool Council,1008925,Hugh Logan Engineering Ltd,590407,37778,21/02/2022,3150,0,ZM0018,Highways & Engineering,9773,Orders Received Not Invoiced,Blackpool Services
Blackpool Council,1008925,Hugh Logan Engineering Ltd,590407,37778,21/02/2022,3780,630,ZM0018,Highways & Engineering,9511A,Stocks Efin,Blackpool Services
Blackpool Council,1106132,Bridge Education And Training Ltd,590413,8543,11/02/2022,810,135,AEF,Facilities,0791,Temp/Relief (Bureau Staff),Resources
Blackpool Council,1106132,Bridge Education And Training Ltd,590414,8491,11/02/2022,810,135,AEF,Facilities,0791,Temp/Relief (Bureau Staff),Resources
Blackpool Council,1106132,Bridge Education And Training Ltd,590415,8501,11/02/2022,810,135,AEF,Facilities,0791,Temp/Relief (Bureau Staff),Resources
Blackpool Council,1106132,Bridge Education And Training Ltd,590416,8581,11/02/2022,810,135,AEF,Facilities,0791,Temp/Relief (Bureau Staff),Resources
Blackpool Council,1106132,Bridge Education And Training Ltd,590417,8674,11/02/2022,810,135,AEF,Facilities,0791,Temp/Relief (Bureau Staff),Resources
Blackpool Council,1106132,Bridge Education And Training Ltd,590418,8684,11/02/2022,810,135,AEF,Facilities,0791,Temp/Relief (Bureau Staff),Resources
Blackpool Council,1106132,Bridge Education And Training Ltd,590419,8699,11/02/2022,810,135,AEF,Facilities,0791,Temp/Relief (Bureau Staff),Resources
Blackpool Council,1106132,Bridge Education And Training Ltd,590420,8763,11/02/2022,810,135,AEF,Facilities,0791,Temp/Relief (Bureau Staff),Resources
Blackpool Council,1106132,Bridge Education And Training Ltd,590486,8818,11/02/2022,810,135,AEF,Facilities,0791,Temp/Relief (Bureau Staff),Resources
Blackpool Council,1106132,Bridge Education And Training Ltd,590487,8872,11/02/2022,810,135,AEF,Facilities,0791,Temp/Relief (Bureau Staff),Resources
Blackpool Council,1106132,Bridge Education And Training Ltd,590488,8918,11/02/2022,810,135,AEF,Facilities,0791,Temp/Relief (Bureau Staff),Resources
Blackpool Council,1106132,Bridge Education And Training Ltd,590489,9015,11/02/2022,810,135,AEF,Facilities,0791,Temp/Relief (Bureau Staff),Resources
Blackpool Council,1106132,Bridge Education And Training Ltd,590490,9017,11/02/2022,810,135,AEF,Facilities,0791,Temp/Relief (Bureau Staff),Resources
Blackpool Council,1106132,Bridge Education And Training Ltd,590491,9060,11/02/2022,810,135,AEF,Facilities,0791,Temp/Relief (Bureau Staff),Resources
Blackpool Council,1122491,Planday Limited,590504,INV00145885,04/02/2022,3008.41,501.41,LEISUR,Leisure Management,3801,Other Expenses,Community & Env Services
Blackpool Council,1094355,Les Mills Fitness Uk Ltd,590506,LMUK-SIV-106824,04/02/2022,450,75,LEISUR,Leisure Management,3801,Other Expenses,Community & Env Services
Blackpool Council,1114541,Integrity Print Ltd,590509,1322991,18/02/2022,756,126,PARADM,Parking Administration,3302,Stationery,Budgets Outside Cash Limits
Blackpool Council,1014996,Peters Ltd T/A Peters Bookselling Svces,590510,1882241,17/02/2022,447.79,0,LBB,Central Library,3304,Books And Periodicals,Places
Blackpool Council,1076636,Chicken Joes Ltd,590535,719242,04/02/2022,313.23,0,CATERG,Catering Services,3101,Provisions,Community & Env Services
Blackpool Council,1025240,Key Engineering Supplies Ltd,590539,46403,18/02/2022,827.64,137.94,CATERG,Catering Services,3201,Clothing & Uniforms,Community & Env Services
Blackpool Council,1062176,Gmbg Ltd T/A Civils & Lintels,590549,FNW/346266,18/02/2022,388.59,0,ZM0018,Highways & Engineering,9773,Orders Received Not Invoiced,Blackpool Services
Blackpool Council,1062176,Gmbg Ltd T/A Civils & Lintels,590549,FNW/346266,18/02/2022,466.31,77.72,ZM0018,Highways & Engineering,9511A,Stocks Efin,Blackpool Services
Blackpool Council,1117351,Open Text,590562,9002922319,18/02/2022,489.74,81.62,CTAHHA,Tramway Emergency Works,6506,Consultants Fees,Capital - Commnctn & Regen
Blackpool Council,1132718,Cid Products Llp,590572,0000397828,04/02/2022,285,0,ZM0018,Highways & Engineering,9773,Orders Received Not Invoiced,Blackpool Services
Blackpool Council,1132718,Cid Products Llp,590572,0000397828,04/02/2022,342,57,ZM0018,Highways & Engineering,9511A,Stocks Efin,Blackpool Services
Blackpool Council,1114541,Integrity Print Ltd,590597,1323089,18/02/2022,372,62,PARADM,Parking Administration,3302,Stationery,Budgets Outside Cash Limits
Blackpool Council,1007270,Royal Institution Of Chartered Surveyors,590598,INV-00089176,04/02/2022,2023.5,0,HJA,Growth,3711,Subscriptions,Places
Blackpool Council,1007270,Royal Institution Of Chartered Surveyors,590599,INV-00088817,04/02/2022,696,116,HJA,Growth,3711,Subscriptions,Places
Blackpool Council,1014996,Peters Ltd T/A Peters Bookselling Svces,590607,1882053,16/02/2022,355.33,0,LBB,Central Library,3304,Books And Periodicals,Places
Blackpool Council,1014996,Peters Ltd T/A Peters Bookselling Svces,590608,1882054,16/02/2022,404.41,0,LBB,Central Library,3304,Books And Periodicals,Places
Blackpool Council,1014996,Peters Ltd T/A Peters Bookselling Svces,590612,1882239,17/02/2022,391.81,0,LBB,Central Library,3304,Books And Periodicals,Places
Blackpool Council,1014996,Peters Ltd T/A Peters Bookselling Svces,590614,1882240,17/02/2022,401.86,0,LBB,Central Library,3304,Books And Periodicals,Places
Blackpool Council,1049304,Insight Direct (Uk) Ltd,590618,5487383,18/02/2022,1169.16,194.86,FGAB,Ict E-Government,3532,Comp-Running & License Costs,Resources
Blackpool Council,1049304,Insight Direct (Uk) Ltd,590620,5487280,18/02/2022,5951.63,991.93,FGAA,Ict Corporate Services,3532,Comp-Running & License Costs,Resources
Blackpool Council,1080563,Bay Media,590621,6555,18/02/2022,1072.8,178.8,PRL,Marketing,3401,General Services,Places
Blackpool Council,1106094,Casson Mann Ltd,590625,2550,07/02/2022,12758.2,2126.37,CGTACA,Museum,6506,Consultants Fees,Capital - Commnctn & Regen
Blackpool Council,1106094,Casson Mann Ltd,590626,2549,07/02/2022,8160,1360,CGTACA,Museum,6506,Consultants Fees,Capital - Commnctn & Regen
Blackpool Council,1082067,Squire Patton Boggs (Uk) Llp,590627,2705640,21/02/2022,10500,1750,CP0511,Anchorsholme Seawall Scheme,6506,Consultants Fees,Capital - Comm & Environ
Blackpool Council,1050522,Pasta King (Uk) Limited,590633,506761,18/02/2022,346.32,0,CATERG,Catering Services,3101,Provisions,Community & Env Services
Blackpool Council,1031515,E Russum & Sons Ltd,590639,RI711530,11/02/2022,279.72,46.62,CATERG,Catering Services,3201,Clothing & Uniforms,Community & Env Services
Blackpool Council,1011837,Cemex Uk Materials Ltd,590645,3013278811,11/02/2022,325.91,54.32,ENGINE,Engineering,3041,Other Materials,Community & Env Services
Blackpool Council,1011837,Cemex Uk Materials Ltd,590646,3013270992,10/02/2022,1285.55,214.26,ENGINE,Engineering,3041,Other Materials,Community & Env Services
Blackpool Council,1011837,Cemex Uk Materials Ltd,590647,3013277543,11/02/2022,416.6,69.43,ENGINE,Engineering,3041,Other Materials,Community & Env Services
Blackpool Council,1011837,Cemex Uk Materials Ltd,590649,3013274539,11/02/2022,608.8,101.47,ENGINE,Engineering,3041,Other Materials,Community & Env Services
Blackpool Council,1063644,Aecom Limited,590650,28482427,02/02/2022,7877.22,1312.87,CPAABA,Shoreline,6501,Contract Payments,Capital - Comm & Environ
Blackpool Council,1131360,Alex Williamson Illustration Ltd,590652,AW18413,23/02/2022,3000,500,CGTACA,Museum,6517,Equipment,Capital - Commnctn & Regen
Blackpool Council,1131608,Concept Display Systems Sw Ltd,590653,9040,03/02/2022,29700.79,4950.13,CGTACA,Museum,6501,Contract Payments,Capital - Commnctn & Regen
Blackpool Council,1019678,Smirthwaite Ltd,590654,193632,03/02/2022,1384.8,230.8,CWAN,Children With Additional Needs,5401,Aids To Daily Living,Children'S Services
Blackpool Council,1019678,Smirthwaite Ltd,590655,193743,04/02/2022,769.2,128.2,MTEAJ,Equipment,5401,Aids To Daily Living,Adult & Families
Blackpool Council,1093105,Specialised Orthotic Services Ltd,590656,0000743279,03/02/2022,1740.84,290.14,MTEAJ,Equipment,5401,Aids To Daily Living,Adult & Families
Blackpool Council,1099603,Kw Therapy Solutions Ltd  T/A Throne Uk,590659,000830,18/02/2022,387.5,0,MTEAJ,Equipment,5401,Aids To Daily Living,Adult & Families
Blackpool Council,1008743,James Leckey Design Ltd T/A Vida Global,590660,OP/I183801,18/02/2022,3043.2,507.2,MTEAJ,Equipment,5401,Aids To Daily Living,Adult & Families
Blackpool Council,1031475,Jenx Ltd T/A Jiraffe,590661,238185,09/02/2022,2744.4,457.4,MTEAJ,Equipment,5401,Aids To Daily Living,Adult & Families
Blackpool Council,1011675,Bambers Remedial Contractors Limited,590662,17364,03/02/2022,1405,0,MVA,18-64,5401,Aids To Daily Living,Adult & Families
Blackpool Council,1011675,Bambers Remedial Contractors Limited,590663,17365,03/02/2022,790,0,MVBBJ,Equipment,5401,Aids To Daily Living,Adult & Families
Blackpool Council,1011675,Bambers Remedial Contractors Limited,590664,17366,03/02/2022,985,0,MVA,18-64,5401,Aids To Daily Living,Adult & Families
Blackpool Council,1011675,Bambers Remedial Contractors Limited,590665,17367,03/02/2022,390,0,MVA,18-64,5401,Aids To Daily Living,Adult & Families
Blackpool Council,1011675,Bambers Remedial Contractors Limited,590666,17369,03/02/2022,1000,0,MVA,18-64,5401,Aids To Daily Living,Adult & Families
Blackpool Council,1011675,Bambers Remedial Contractors Limited,590667,17370,03/02/2022,590,0,MVBBJ,Equipment,5401,Aids To Daily Living,Adult & Families
Blackpool Council,1011675,Bambers Remedial Contractors Limited,590668,17371,03/02/2022,575,0,MVA,18-64,5401,Aids To Daily Living,Adult & Families
Blackpool Council,1011675,Bambers Remedial Contractors Limited,590669,17361,03/02/2022,320,0,MVA,18-64,5401,Aids To Daily Living,Adult & Families
Blackpool Council,1011675,Bambers Remedial Contractors Limited,590670,17362,03/02/2022,660,0,CXAAA,Local Authority Dwellings,6501,Contract Payments,Capital - Chief Executive
Blackpool Council,1009906,Combined Precision Components Plc Cpc,590673,2627870,10/02/2022,1055.4,175.9,PJNA,New Features / Schemes - C & E,3041,Other Materials,Places
Blackpool Council,1092733,Cimspa,590675,126623,09/02/2022,561,0,LEISUR,Leisure Management,3801,Other Expenses,Community & Env Services
Blackpool Council,1010104,Canon (Uk ) Ltd,590682,9304455,09/02/2022,271.88,45.31,POA,Office Services,3305,Photocopying Charges,Places
Blackpool Council,1006940,Smiths Equipment Hire Ltd - Smiths Training,590719,07-1006270,03/02/2022,388.8,64.8,PJHA,"Depot, Management & Admin",3006,Hire Of Equipment,Places
Blackpool Council,1058510,Lifeline Language Services Ltd,590720,1021040,09/02/2022,303,50.5,SBOARD,Springboard,3401,General Services,Children'S Services
Blackpool Council,1060504,Express Cutting And Welding Services Ltd,590721,529291,24/02/2022,1694.3,282.38,ENGINE,Engineering,3041,Other Materials,Community & Env Services
Blackpool Council,1096596,Highfield Pfi Spv Ltd,590723,PHSIP000021,04/02/2022,4942.8,823.8,EM1029,Highfield Pfi,4701,Other Contracted Services,Children'S Services
Blackpool Council,1014996,Peters Ltd T/A Peters Bookselling Svces,590731,1883693,18/02/2022,412.92,0,LBB,Central Library,3304,Books And Periodicals,Places
Blackpool Council,1007385,R S Components Ltd,590736,2205703424,21/02/2022,712.8,118.8,PJRA,Electrical Infra - Places,3041,Other Materials,Places
Blackpool Council,1025240,Key Engineering Supplies Ltd,590739,46514,24/02/2022,1353.6,0,ZM0018,Highways & Engineering,9773,Orders Received Not Invoiced,Blackpool Services
Blackpool Council,1025240,Key Engineering Supplies Ltd,590739,46514,24/02/2022,1624.32,270.72,ZM0018,Highways & Engineering,9511A,Stocks Efin,Blackpool Services
Blackpool Council,1057663,Wilde Recruitment Ltd,590740,39576,18/02/2022,552.38,92.06,CTAHHA,Tramway Emergency Works,6501,Contract Payments,Capital - Commnctn & Regen
Blackpool Council,1123075,Survey & Engineering Projects Ltd,590759,SEPSURVEY-6861,25/02/2022,2250,375,CGIBAA,Land Release Fund,6514,B.Holes/Site Investgtn/Surveys,Capital - Commnctn & Regen
Blackpool Council,1123071,Whistlejacket London Limited,590787,INV-0744,24/02/2022,309.6,51.6,HJA,Growth,3315,Marketing,Places
Blackpool Council,1091738,Wsm Engineering Facilities Ltd,590789,5069,01/02/2022,501.52,83.59,PJHA,"Depot, Management & Admin",2002,Repairs And Maintenance,Places
Blackpool Council,1021388,St Georges C Of E Academy,590790,0000000340,01/02/2022,20642,0,CWAN,Children With Additional Needs,4403,Special Needs - Children,Children'S Services
Blackpool Council,1094424,The Networking People,590792,SI110595,25/02/2022,4439.23,739.87,FGAA,Ict Corporate Services,3531,Computer-H'Ware Purchase,Resources
Blackpool Council,1117328,Northwest Radio Communications Ltd,590796,65476,25/02/2022,1908,318,LEISUR,Leisure Management,3010,Safety Equipment,Community & Env Services
Blackpool Council,1042797,Lux Occ Medical Ltd,590798,BBC/305,04/02/2022,2000,0,FK0013,Corporate Health,0992,Medical Fees (Employee),Chief Executive
Blackpool Council,1011369,Lancashire County Council,590800,5200241827,18/02/2022,293087,0,FR5001,Concessionary Fares,3401,General Services,Budgets Outside Cash Limits
Blackpool Council,1011369,Lancashire County Council,590801,5200238659,18/02/2022,1550,0,FR5001,Concessionary Fares,3401,General Services,Budgets Outside Cash Limits
Blackpool Council,1011369,Lancashire County Council,590802,5200241829,18/02/2022,1567,0,FR5001,Concessionary Fares,3401,General Services,Budgets Outside Cash Limits
Blackpool Council,1091329,Pentagull Limited,590803,16163,11/02/2022,30000,5000,FGAB,Ict E-Government,3532,Comp-Running & License Costs,Resources
Blackpool Council,1025240,Key Engineering Supplies Ltd,590810,46563,25/02/2022,322.1,0,ZM0018,Highways & Engineering,9773,Orders Received Not Invoiced,Blackpool Services
Blackpool Council,1025240,Key Engineering Supplies Ltd,590810,46563,25/02/2022,386.52,64.42,ZM0018,Highways & Engineering,9511A,Stocks Efin,Blackpool Services
Blackpool Council,1025240,Key Engineering Supplies Ltd,590812,46566,25/02/2022,264.11,0,ZM0018,Highways & Engineering,9773,Orders Received Not Invoiced,Blackpool Services
Blackpool Council,1025240,Key Engineering Supplies Ltd,590812,46566,25/02/2022,264.11,0,ZM0018,Highways & Engineering,9511A,Stocks Efin,Blackpool Services
Blackpool Council,1114704,Morson Human Resources Ltd,590814,HS395153,02/02/2022,2310,385,CTAHHI,Tramway Extention,6506,Consultants Fees,Capital - Commnctn & Regen
Blackpool Council,1009166,Glasdon Uk Ltd,590817,SI831865,04/02/2022,685.55,114.26,CEMCRE,Cems Crems Etc,3041,Other Materials,Governance & Partnerships
Blackpool Council,1037659,Hellermanntyton,590818,G552806,25/02/2022,2023.58,337.26,PJOA,Commercial & Marketing,3041,Other Materials,Places
Blackpool Council,1020550,Hays Specialist Recruitment Ltd,590819,1011925061,07/02/2022,1818.9,303.15,HJA,Growth,0791,Temp/Relief (Bureau Staff),Places
Blackpool Council,1006940,Smiths Equipment Hire Ltd - Smiths Training,590821,07-1006271,03/02/2022,528,88,PJNA,New Features / Schemes - C & E,3006,Hire Of Equipment,Places
Blackpool Council,1088053,Gradko International Limited,590822,210887,25/02/2022,1209.6,201.6,PYEP,Environmental Protection,3001,Office Equipment Purchase,Community & Env Services
Blackpool Council,1064236,Lifestyle Media Group Ltd,590824,107656,08/02/2022,973.25,162.21,PRM,Publications,3301,Printing,Places
Blackpool Council,1121485,Philredom Ltd,590826,PL030122-57,02/02/2022,1625,0,EM1001,Departmental Management,3406,Local Plan,Children'S Services
Blackpool Council,1121485,Philredom Ltd,590827,PL030122-59,02/02/2022,1625,0,EM1001,Departmental Management,3406,Local Plan,Children'S Services
Blackpool Council,1121485,Philredom Ltd,590828,PL030122-60,02/02/2022,1300,0,EM1001,Departmental Management,3406,Local Plan,Children'S Services
Blackpool Council,1102823,Wilde Consultants Limited,590843,22414,25/02/2022,5218.2,869.7,TRA,Traffic Management,4501,Private Contractors,Community & Env Services
Blackpool Council,1049385,Fylde Coast Ymca,590853,11599,04/02/2022,540,90,FK0071,Corporate Training,3426,Course Fees,Chief Executive
Blackpool Council,1014009,Bri-Met Ltd,590855,00051695,04/02/2022,588,98,BEACHP,Beach Patrol,3010,Safety Equipment,Places
Blackpool Council,1102823,Wilde Consultants Limited,590887,22421,25/02/2022,897.6,149.6,TRA,Traffic Management,4501,Private Contractors,Community & Env Services
Blackpool Council,1107600,Click 4 Assistance Ltd,590890,INV062055,25/02/2022,394.92,65.82,PBF,Communications,3535,Website Costs,Places
Blackpool Council,1053592,Tfs Training Consultants Ltd,590908,281,04/02/2022,1320,220,FK0071,Corporate Training,3426,Course Fees,Chief Executive
Blackpool Council,1099796,Valley Equestrian Products Ltd,590915,3624-22,25/02/2022,276.12,46.02,CWASTE,Commercial Waste,4514,Contract 'E',Community & Env Services
Blackpool Council,1006292,Vodafone Corporate Ltd,590926,PY78744,07/02/2022,413.79,68.96,FGAA,Ict Corporate Services,3531,Computer-H'Ware Purchase,Resources
Blackpool Council,1006292,Vodafone Corporate Ltd,590927,PY78745,07/02/2022,413.79,68.96,FGAA,Ict Corporate Services,3531,Computer-H'Ware Purchase,Resources
Blackpool Council,1006292,Vodafone Corporate Ltd,590928,PY78746,07/02/2022,413.79,68.96,FGAA,Ict Corporate Services,3531,Computer-H'Ware Purchase,Resources
Blackpool Council,1006292,Vodafone Corporate Ltd,590929,PY78747,07/02/2022,413.79,68.96,FGAA,Ict Corporate Services,3531,Computer-H'Ware Purchase,Resources
Blackpool Council,1025240,Key Engineering Supplies Ltd,590937,46667,25/02/2022,585.83,97.63,ZM0018,Highways & Engineering,9511A,Stocks Efin,Blackpool Services
Blackpool Council,1102823,Wilde Consultants Limited,590940,22420,25/02/2022,1826.71,304.45,CTZZZZ,Non Specific Contingency Code,6501,Contract Payments,Capital - Comm & Environ
Blackpool Council,1026319,Nominet.Uk,590971,0000003193,01/02/2022,919.13,153.19,FGAA,Ict Corporate Services,3527,Communication Lines,Resources
Blackpool Council,1068185,David Austin Rose Nursery Limited,591057,GDSI19158,10/02/2022,1623.32,270.55,CEMCRE,Cems Crems Etc,3801,Other Expenses,Governance & Partnerships
Blackpool Council,1122898,REDACTED PERSONAL DATA,591060,I9748,25/02/2022,2000,0,AHG,Art Gallery Summary,3456,Payment To Artists,Places
Blackpool Council,1012272,Jpi Media Publishing Ltd,591062,546448,03/02/2022,1175.04,195.84,PBF,Communications,3315,Marketing,Places
Blackpool Council,1099796,Valley Equestrian Products Ltd,591063,3626-22,25/02/2022,260.52,43.42,CWASTE,Commercial Waste,4514,Contract 'E',Community & Env Services
Blackpool Council,1026811,Stannah Lift Services Ltd,591064,1085375263,07/02/2022,547.09,91.18,CXAAA,Local Authority Dwellings,6501,Contract Payments,Capital - Chief Executive
Blackpool Council,1092592,Colliers International Common Client Account,591100,123068,02/02/2022,18740.4,0,HJA,Growth,1301,Rent & Hire Of Premises,Places
Blackpool Council,1111571,Trojan Consultants Limited,591103,INV-17086,25/02/2022,17570.4,2928.4,EM1032,Client Finances,3532,Comp-Running & License Costs,Resources
Blackpool Council,1049304,Insight Direct (Uk) Ltd,591104,2100106885-22,25/02/2022,548.62,91.44,FL1235,Trans - Technical Support,3533,Computer S/W Purchases,Community & Env Services
Blackpool Council,1006944,Siemens Financial Services Ltd,591105,212/22/0086180,25/02/2022,1678.8,279.8,FCADA,Customer Services,3001,Office Equipment Purchase,Resources
Blackpool Council,1011369,Lancashire County Council,591113,5200242901,02/02/2022,1352.54,225.42,FK1006,Head Of Workforce & Org Dev,6214,Legal Services,Chief Executive
Blackpool Council,1066729,Equis Associates Limited,591114,12-85-PG-BC,14/02/2022,17400,2900,CTAHHI,Tramway Extention,6506,Consultants Fees,Capital - Commnctn & Regen
Blackpool Council,1009234,Gary Roy Kirkham,591115,GK 63,08/02/2022,1100,0,TRCHIL,Integrated Transport Children,2201,Contract Hire,Community & Env Services
Blackpool Council,1039525,East Lancashire Hospitals Nhs Trust,591118,E0107205,02/02/2022,4177.05,0,PU0111,Contain Outbreak Mgmnt Covid,4501,Private Contractors,Public Health
Blackpool Council,1103450,Blackpool Entertainment Company Limited,591124,INV005518,04/02/2022,1040,173.33,FMAK,Acquisitions 9/10,1301,Rent & Hire Of Premises,Places
Blackpool Council,1103450,Blackpool Entertainment Company Limited,591125,INV005814,04/02/2022,1040,173.33,FMAK,Acquisitions 9/10,1301,Rent & Hire Of Premises,Places
Blackpool Council,1118699,Enveco Blackpool Waste Services Ltd,591127,30165432,02/02/2022,573.8,95.63,FGAC,Ict Technical Support,2002,Repairs And Maintenance,Resources
Blackpool Council,1087234,Aitch Tools & Fasteners Ltd,591129,058894,02/02/2022,259.78,43.3,ZM0018,Highways & Engineering,9511A,Stocks Efin,Blackpool Services
Blackpool Council,1087234,Aitch Tools & Fasteners Ltd,591131,059009,02/02/2022,1397,0,ZM0018,Highways & Engineering,9773,Orders Received Not Invoiced,Blackpool Services
Blackpool Council,1087234,Aitch Tools & Fasteners Ltd,591131,059009,02/02/2022,1676.4,279.4,ZM0018,Highways & Engineering,9511A,Stocks Efin,Blackpool Services
Blackpool Council,1103450,Blackpool Entertainment Company Limited,591135,INV005831,08/02/2022,420,70,JA0505,Children'S Training,1702,Hire Of Meeting Rooms,Children'S Services
Blackpool Council,1111234,Cbre Ltd,591136,50BR100087761,02/02/2022,12000,2000,HJA,Growth,3413,Consultants,Places
Blackpool Council,1108451,Poulton Pets Ltd T/A Sundown Kennels,591137,BLOO074DEC,02/02/2022,2445,407.5,PYEP,Environmental Protection,3313,General Expenses,Community & Env Services
Blackpool Council,1097997,Szpunar & Associates Ltd,591138,28012022,25/02/2022,580,0,LM0420,Adults Training,3426,Course Fees,Adult & Families
Blackpool Council,1118699,Enveco Blackpool Waste Services Ltd,591139,30163711,02/02/2022,1137.56,189.59,PARADM,Parking Administration,4501,Private Contractors,Budgets Outside Cash Limits
Blackpool Council,1058510,Lifeline Language Services Ltd,591140,1021079,18/02/2022,270.6,45.1,JEA,Senior Management,5507,Personal,Children'S Services
Blackpool Council,1123821,Jr Consulting,591143,BBC21/12,02/02/2022,2450,0,PU0111,Contain Outbreak Mgmnt Covid,4501,Private Contractors,Public Health
Blackpool Council,1133415,Lps Law Ltd,591144,022,25/02/2022,1140,190,LM0420,Adults Training,3426,Course Fees,Adult & Families
Blackpool Council,1117707,Ravenscroft And Co Surveyors Ltd,591145,528,04/02/2022,1866.67,0,AEE,Estates,0781,Contracted,Resources
Blackpool Council,1117705,Rhea Projects Ltd,591146,LAD2-0053,02/02/2022,74509.31,3548.06,LH2092,Lad 2 Funding,4501,Private Contractors,Public Health
Blackpool Council,1117705,Rhea Projects Ltd,591147,LAD2-0057,02/02/2022,71781.94,3418.19,LH2092,Lad 2 Funding,4501,Private Contractors,Public Health
Blackpool Council,1117705,Rhea Projects Ltd,591148,LAD2-0060,02/02/2022,57935.06,2758.81,LH2092,Lad 2 Funding,4501,Private Contractors,Public Health
Blackpool Council,1006385,University Of Central Lancashire,591149,TUI258500001,08/02/2022,725,0,LM0420,Adults Training,3426,Course Fees,Adult & Families
Blackpool Council,1103450,Blackpool Entertainment Company Limited,591151,INV005828,04/02/2022,804,134,JA0505,Children'S Training,1702,Hire Of Meeting Rooms,Children'S Services
Blackpool Council,1091050,Howard Palmer T/A Trojan Travel,591152,037,10/02/2022,1800,0,TRCHIL,Integrated Transport Children,2201,Contract Hire,Community & Env Services
Blackpool Council,1009992,Chartered Institute Of Housing,591153,35927,03/02/2022,344,0,PBC,Strategy Team,4004,Management Fees,Chief Executive
Blackpool Council,1131608,Concept Display Systems Sw Ltd,591154,9051,03/02/2022,59402.28,9900.38,CGTACA,Museum,6501,Contract Payments,Capital - Commnctn & Regen
Blackpool Council,1051299,Leisure Travel,591156,INV00706,08/02/2022,1900,0,TRCHIL,Integrated Transport Children,2201,Contract Hire,Community & Env Services
Blackpool Council,1051299,Leisure Travel,591157,INV00707,08/02/2022,1292,0,TRCHIL,Integrated Transport Children,2201,Contract Hire,Community & Env Services
Blackpool Council,1051299,Leisure Travel,591158,INV00708,08/02/2022,1900,0,TRCHIL,Integrated Transport Children,2201,Contract Hire,Community & Env Services
Blackpool Council,1051299,Leisure Travel,591159,INV00709,08/02/2022,1900,0,TRCHIL,Integrated Transport Children,2201,Contract Hire,Community & Env Services
Blackpool Council,1051299,Leisure Travel,591160,INV00710,08/02/2022,1520,0,TRCHIL,Integrated Transport Children,2201,Contract Hire,Community & Env Services
Blackpool Council,1131154,Focus Consultants 2010 Llp,591161,011046,28/02/2022,4050,675,CGTACA,Museum,6503,Capital Salaries (Pro Advance),Capital - Commnctn & Regen
Blackpool Council,1129634,Av-Id,591163,198,03/02/2022,2043.84,340.64,FGAA,Ict Corporate Services,3531,Computer-H'Ware Purchase,Resources
Blackpool Council,1098651,Direct Parts Supply Ltd T/A Gym-Fit,591168,44245,03/02/2022,558.48,93.08,LEISUR,Leisure Management,1062,Other Minor Repairs,Community & Env Services
Blackpool Council,1006099,Blackpool Teaching Hospitals Nhs Ft,591169,1110060176,07/02/2022,76080,12680,PUBH18,Stop Smoking Services & Interv,4501,Private Contractors,Public Health
Blackpool Council,1009755,D Kirkham,591174,038,08/02/2022,2070,0,TRCHIL,Integrated Transport Children,2201,Contract Hire,Community & Env Services
Blackpool Council,1123254,Anglezarke Building Consultancy Limited,591179,879,03/02/2022,1092,182,PLCAAA,Building Control,3413,Consultants,Places
Blackpool Council,1118699,Enveco Blackpool Waste Services Ltd,591181,30163985,08/02/2022,2976.56,496.09,CEMCRE,Cems Crems Etc,3801,Other Expenses,Governance & Partnerships
Blackpool Council,1119587,Highway Workforce Ltd,591182,HWF 2022-018,04/02/2022,6628.25,1104.71,TRB,Maintenance & Works,4501,Private Contractors,Community & Env Services
Blackpool Council,1113202,Media Powerhouse Ltd,591184,8242,11/02/2022,871.86,145.31,CGTBBB,Conference Centre,6501,Contract Payments,Capital - Commnctn & Regen
Blackpool Council,1119242,Katherine Brady All Things Told,591185,057,14/02/2022,1487.5,0,CGTACA,Museum,6503,Capital Salaries (Pro Advance),Capital - Commnctn & Regen
Blackpool Council,1012071,Bethell Construction Limited,591186,17710,03/02/2022,1105.36,184.23,ENGINE,Engineering,1012,Premises Maint-Priv.Contractor,Community & Env Services
Blackpool Council,1012071,Bethell Construction Limited,591187,17712,03/02/2022,3015.14,502.52,ENGINE,Engineering,1012,Premises Maint-Priv.Contractor,Community & Env Services
Blackpool Council,1012071,Bethell Construction Limited,591188,17711,03/02/2022,974.45,162.41,ENGINE,Engineering,1012,Premises Maint-Priv.Contractor,Community & Env Services
Blackpool Council,1071702,Links Signs & Graphics Ltd,591189,LSGI32774,25/02/2022,817.2,136.2,AHG,Art Gallery Summary,3801,Other Expenses,Places
Blackpool Council,1084141,Gillett Environmental Ltd,591193,OUT-39651,10/02/2022,1574.64,262.44,CWASTE,Commercial Waste,4514,Contract 'E',Community & Env Services
Blackpool Council,1018184,Blackpool Skip Hire Ltd,591194,036856,23/02/2022,258,43,JEA,Senior Management,3006,Hire Of Equipment,Children'S Services
Blackpool Council,1096596,Highfield Pfi Spv Ltd,591195,PHSIP000022,03/02/2022,393132.22,65522.04,EM1029,Highfield Pfi,4515,Contract Services,Children'S Services
Blackpool Council,1096596,Highfield Pfi Spv Ltd,591195,PHSIP000022,03/02/2022,10131.06,1688.51,EM1029,Highfield Pfi,1202,Electricity,Children'S Services
Blackpool Council,1084141,Gillett Environmental Ltd,591197,OUT-39270,08/02/2022,1095.12,182.52,CWASTE,Commercial Waste,4514,Contract 'E',Community & Env Services
Blackpool Council,1087234,Aitch Tools & Fasteners Ltd,591198,059244,04/02/2022,334.8,55.8,LEISUR,Leisure Management,3012,Other Equipment,Community & Env Services
Blackpool Council,1087234,Aitch Tools & Fasteners Ltd,591201,059647,11/02/2022,260,0,ZM0018,Highways & Engineering,9773,Orders Received Not Invoiced,Blackpool Services
Blackpool Council,1087234,Aitch Tools & Fasteners Ltd,591201,059647,11/02/2022,312,52,ZM0018,Highways & Engineering,9511A,Stocks Efin,Blackpool Services
Blackpool Council,1118699,Enveco Blackpool Waste Services Ltd,591202,30165395,03/02/2022,824.22,137.37,ENGINE,Engineering,2004,Running Costs-Diesel,Community & Env Services
Blackpool Council,1118699,Enveco Blackpool Waste Services Ltd,591203,30165431,03/02/2022,4293.04,715.51,ENGINE,Engineering,2004,Running Costs-Diesel,Community & Env Services
Blackpool Council,1118699,Enveco Blackpool Waste Services Ltd,591204,30165379,03/02/2022,865.04,144.18,ENGINE,Engineering,2004,Running Costs-Diesel,Community & Env Services
Blackpool Council,1118699,Enveco Blackpool Waste Services Ltd,591205,30165366,03/02/2022,970.11,161.69,ENGINE,Engineering,2004,Running Costs-Diesel,Community & Env Services
Blackpool Council,1118699,Enveco Blackpool Waste Services Ltd,591206,30165390,03/02/2022,2024.94,337.49,ENGINE,Engineering,2004,Running Costs-Diesel,Community & Env Services
Blackpool Council,1118699,Enveco Blackpool Waste Services Ltd,591207,30165363,03/02/2022,2278.73,379.79,ENGINE,Engineering,2004,Running Costs-Diesel,Community & Env Services
Blackpool Council,1118699,Enveco Blackpool Waste Services Ltd,591208,30165375,03/02/2022,1975.1,329.18,ENGINE,Engineering,2004,Running Costs-Diesel,Community & Env Services
Blackpool Council,1118699,Enveco Blackpool Waste Services Ltd,591210,30165440,03/02/2022,1400.16,233.36,ENGINE,Engineering,2004,Running Costs-Diesel,Community & Env Services
Blackpool Council,1118699,Enveco Blackpool Waste Services Ltd,591211,30165369,03/02/2022,365.81,60.97,BEACHP,Beach Patrol,1201,Fuel Oil,Places
Blackpool Council,1118699,Enveco Blackpool Waste Services Ltd,591212,30165355,03/02/2022,302.46,50.41,BEACHP,Beach Patrol,1201,Fuel Oil,Places
Blackpool Council,1118699,Enveco Blackpool Waste Services Ltd,591213,30165422,03/02/2022,275.1,45.85,BEACHP,Beach Patrol,1201,Fuel Oil,Places
Blackpool Council,1118699,Enveco Blackpool Waste Services Ltd,591214,30165382,03/02/2022,262.81,43.8,BEACHP,Beach Patrol,1201,Fuel Oil,Places
Blackpool Council,1113624,Fox Brothers (Lancashire) Ltd,591215,71383,03/02/2022,1440,240,PJNA,New Features / Schemes - C & E,3006,Hire Of Equipment,Places
Blackpool Council,1019622,Stephen  Floweth,591216,HT0098,08/02/2022,1425,0,TRCHIL,Integrated Transport Children,2201,Contract Hire,Community & Env Services
Blackpool Council,1019622,Stephen  Floweth,591217,HT0095,08/02/2022,950,0,TRCHIL,Integrated Transport Children,2201,Contract Hire,Community & Env Services
Blackpool Council,1077392,Reed Specialist Recruitment Ltd,591220,E020977958M,24/02/2022,893.62,148.94,EM1002,Education Finance,0791,Temp/Relief (Bureau Staff),Children'S Services
Blackpool Council,1077392,Reed Specialist Recruitment Ltd,591220,E020977958M,24/02/2022,3765.46,627.57,JAB,Locality,0791,Temp/Relief (Bureau Staff),Children'S Services
Blackpool Council,1077392,Reed Specialist Recruitment Ltd,591220,E020977958M,24/02/2022,3330.72,555.12,JAH,Duty And Assessment,0791,Temp/Relief (Bureau Staff),Children'S Services
Blackpool Council,1077392,Reed Specialist Recruitment Ltd,591220,E020977958M,24/02/2022,7260.55,1210.1,JBR,Lac - Placements,0791,Temp/Relief (Bureau Staff),Children'S Services
Blackpool Council,1077392,Reed Specialist Recruitment Ltd,591220,E020977958M,24/02/2022,3463.92,577.32,JBT,Looked After Children,0791,Temp/Relief (Bureau Staff),Children'S Services
Blackpool Council,1077392,Reed Specialist Recruitment Ltd,591220,E020977958M,24/02/2022,5153.72,858.96,JEA,Senior Management,0791,Temp/Relief (Bureau Staff),Children'S Services
Blackpool Council,1077392,Reed Specialist Recruitment Ltd,591220,E020977958M,24/02/2022,730.59,121.76,PJBA,Wages Overhead Account,0791,Temp/Relief (Bureau Staff),Places
Blackpool Council,1077392,Reed Specialist Recruitment Ltd,591220,E020977958M,24/02/2022,4707.7,784.63,PU0000,Covid Test And Trace,0791,Temp/Relief (Bureau Staff),Public Health
Blackpool Council,1077392,Reed Specialist Recruitment Ltd,591220,E020977958M,24/02/2022,3095.15,515.86,PU0001,Public Health Team,0791,Temp/Relief (Bureau Staff),Public Health
Blackpool Council,1118699,Enveco Blackpool Waste Services Ltd,591221,30165338,04/02/2022,336,56,LEISUR,Leisure Management,3801,Other Expenses,Community & Env Services
Blackpool Council,1006944,Siemens Financial Services Ltd,591223,244722/0072211,14/02/2022,1314.52,219.08,APFBAB,Vitaline,3711,Subscriptions,Adult & Families
Blackpool Council,1006944,Siemens Financial Services Ltd,591224,244/22/0075564,03/02/2022,596.8,99.46,APFBAB,Vitaline,3711,Subscriptions,Adult & Families
Blackpool Council,1090874,Advanced Health And Care Limited,591226,ARMIN/00020116,25/02/2022,691.2,115.2,APDBAA,Homecare Management,2201,Contract Hire,Adult & Families
Blackpool Council,1009524,E K Motor Factors Ltd,591231,BLM1850942,15/02/2022,360,0,ZM0018,Highways & Engineering,9773,Orders Received Not Invoiced,Blackpool Services
Blackpool Council,1009524,E K Motor Factors Ltd,591231,BLM1850942,15/02/2022,432,72,ZM0018,Highways & Engineering,9511A,Stocks Efin,Blackpool Services
Blackpool Council,1058510,Lifeline Language Services Ltd,591232,1021081,25/02/2022,657.22,109.54,CWAN,Children With Additional Needs,3419,Interpreters Fees,Children'S Services
Blackpool Council,1133349,Amplify Sales Ltd,591234,INV-000016,09/02/2022,300,50,PBF,Communications,3535,Website Costs,Places
Blackpool Council,1057663,Wilde Recruitment Ltd,591238,39621,25/02/2022,736.51,122.75,CTAHHA,Tramway Emergency Works,6501,Contract Payments,Capital - Commnctn & Regen
Blackpool Council,1008039,Woods Waste Ltd,591240,33668,10/02/2022,1309.78,218.3,CEMCRE,Cems Crems Etc,3801,Other Expenses,Governance & Partnerships
Blackpool Council,1071702,Links Signs & Graphics Ltd,591242,LSGI32681,03/02/2022,1210.8,201.8,PRG,Tourism General,3301,Printing,Places
Blackpool Council,1133121,Ray Lee,591244,1053,18/02/2022,11162.5,1700,PJNA,New Features / Schemes - C & E,3308,Servicing,Places
Blackpool Council,1078639,National Crime Agency,591246,SI\024714,03/02/2022,708,0,PYAA,Head Of Environmental Health,3313,General Expenses,Community & Env Services
Blackpool Council,1006940,Smiths Equipment Hire Ltd - Smiths Training,591247,V07-981779,15/02/2022,828,138,PJNB,Lightpool,3006,Hire Of Equipment,Places
Blackpool Council,1119935,Imperial Treasury Services Ltd,591248,1844,03/02/2022,2547.95,0,FH0001,Treasury Management,3401,General Services,Budgets Outside Cash Limits
Blackpool Council,1118699,Enveco Blackpool Waste Services Ltd,591249,30165424,11/02/2022,2445.93,407.66,PARADM,Parking Administration,4501,Private Contractors,Budgets Outside Cash Limits
Blackpool Council,1118699,Enveco Blackpool Waste Services Ltd,591250,30165357,11/02/2022,311.5,51.92,PARADM,Parking Administration,4501,Private Contractors,Budgets Outside Cash Limits
Blackpool Council,1118699,Enveco Blackpool Waste Services Ltd,591251,30165370,11/02/2022,304.66,50.78,PARADM,Parking Administration,4501,Private Contractors,Budgets Outside Cash Limits
Blackpool Council,1118699,Enveco Blackpool Waste Services Ltd,591252,30165383,11/02/2022,411.2,68.53,PARADM,Parking Administration,4501,Private Contractors,Budgets Outside Cash Limits
Blackpool Council,1000009,Blackpool & The Fylde College,591253,S0022842,03/02/2022,9000,0,LM0420,Adults Training,1901,Contributions To Funds,Adult & Families
Blackpool Council,1118699,Enveco Blackpool Waste Services Ltd,591255,30165534,03/02/2022,660000,110000,SCLEAN,Street Cleaning,4501,Private Contractors,Community & Env Services
Blackpool Council,1117002,Redraw Travel Ltd T/A Blackpool Minibuses,591256,INV17915M,08/02/2022,1710,0,TRCHIL,Integrated Transport Children,2201,Contract Hire,Community & Env Services
Blackpool Council,1117002,Redraw Travel Ltd T/A Blackpool Minibuses,591282,INV17950M,08/02/2022,1805,0,TRCHIL,Integrated Transport Children,2201,Contract Hire,Community & Env Services
Blackpool Council,1117002,Redraw Travel Ltd T/A Blackpool Minibuses,591283,INV17984M,08/02/2022,1710,0,TRCHIL,Integrated Transport Children,2201,Contract Hire,Community & Env Services
Blackpool Council,1117002,Redraw Travel Ltd T/A Blackpool Minibuses,591284,INV18018M,08/02/2022,1710,0,TRCHIL,Integrated Transport Children,2201,Contract Hire,Community & Env Services
Blackpool Council,1117002,Redraw Travel Ltd T/A Blackpool Minibuses,591285,INV18052M,08/02/2022,1425,0,TRCHIL,Integrated Transport Children,2201,Contract Hire,Community & Env Services
Blackpool Council,1011675,Bambers Remedial Contractors Limited,591287,17375,07/02/2022,6114.48,0,CX4002,Disabled Facilities Grants,6501,Contract Payments,Capital - Adult Social Care
Blackpool Council,1011675,Bambers Remedial Contractors Limited,591288,17376,07/02/2022,1838.2,0,CXAAA,Local Authority Dwellings,6501,Contract Payments,Capital - Chief Executive
Blackpool Council,1011675,Bambers Remedial Contractors Limited,591289,17377,07/02/2022,5665.51,0,CX4002,Disabled Facilities Grants,6501,Contract Payments,Capital - Adult Social Care
Blackpool Council,1011675,Bambers Remedial Contractors Limited,591290,17378,07/02/2022,5293.09,0,CX4002,Disabled Facilities Grants,6501,Contract Payments,Capital - Adult Social Care
Blackpool Council,1011675,Bambers Remedial Contractors Limited,591291,17379,07/02/2022,2415,0,CX4002,Disabled Facilities Grants,6501,Contract Payments,Capital - Adult Social Care
Blackpool Council,1011675,Bambers Remedial Contractors Limited,591292,17381,07/02/2022,6785.75,0,CX4002,Disabled Facilities Grants,6501,Contract Payments,Capital - Adult Social Care
Blackpool Council,1011675,Bambers Remedial Contractors Limited,591293,17382,07/02/2022,6947.55,0,CX4002,Disabled Facilities Grants,6501,Contract Payments,Capital - Adult Social Care
Blackpool Council,1011675,Bambers Remedial Contractors Limited,591294,17384,07/02/2022,10012.08,0,CX4002,Disabled Facilities Grants,6501,Contract Payments,Capital - Adult Social Care
Blackpool Council,1011675,Bambers Remedial Contractors Limited,591295,17385,07/02/2022,8177.82,0,CX4002,Disabled Facilities Grants,6501,Contract Payments,Capital - Adult Social Care
Blackpool Council,1011675,Bambers Remedial Contractors Limited,591298,17338,07/02/2022,5350,0,CX4002,Disabled Facilities Grants,6501,Contract Payments,Capital - Adult Social Care
Blackpool Council,1053453,Brenntag Uk Ltd,591299,32SI 3337379,28/02/2022,496.98,82.83,LEISUR,Leisure Management,3060,Chemicals,Community & Env Services
Blackpool Council,1072848,Peter Rhodes,591300,01/001 JAN 22,08/02/2022,1706.2,0,TRCHIL,Integrated Transport Children,2201,Contract Hire,Community & Env Services
Blackpool Council,1118699,Enveco Blackpool Waste Services Ltd,591302,30165535,03/02/2022,323458.8,53909.8,DOMPFI,Domestic Waste & Waste Pfi,4501,Private Contractors,Community & Env Services
Blackpool Council,1116301,Wonde Ltd (Gdpr.Co.Uk),591310,SV-198799,03/02/2022,1185,0,EDDIV,Education Diversity,3606,Incidental Expenses,Children'S Services
Blackpool Council,1005102,Sandcastle Waterpark - Boc Ltd,591312,7674,04/02/2022,1950,325,LEISUR,Leisure Management,0911,Training Expenses,Community & Env Services
Blackpool Council,1094355,Les Mills Fitness Uk Ltd,591313,LMUK-SIV-107075,04/02/2022,510,85,LEISUR,Leisure Management,3801,Other Expenses,Community & Env Services
Blackpool Council,1110858,Boditrax Technologies Ltd,591314,INV-1815,04/02/2022,1425.6,237.6,LEISUR,Leisure Management,3801,Other Expenses,Community & Env Services
Blackpool Council,1094355,Les Mills Fitness Uk Ltd,591315,LMUK-SIV-097499,04/02/2022,510,85,LEISUR,Leisure Management,3801,Other Expenses,Community & Env Services
Blackpool Council,1094355,Les Mills Fitness Uk Ltd,591316,LMUK-SIV-104711,04/02/2022,510,85,LEISUR,Leisure Management,3801,Other Expenses,Community & Env Services
Blackpool Council,1006419,Tunstall Healthcare (Uk) Ltd,591317,3IN/10385183,25/02/2022,2248.2,374.7,APFBAB,Vitaline,3004,Operating Lease,Adult & Families
Blackpool Council,1110858,Boditrax Technologies Ltd,591320,INV-1767,04/02/2022,1425.6,237.6,LEISUR,Leisure Management,3801,Other Expenses,Community & Env Services
Blackpool Council,1129069,Fourex Clothing Ltd,591321,INV-56961,04/02/2022,2929.56,488.26,LEISUR,Leisure Management,3201,Clothing & Uniforms,Community & Env Services
Blackpool Council,1105889,3d Environmental Limited,591325,BBC-0350,10/02/2022,871.01,145.17,HOPB,Housing Options,4004,Management Fees,Chief Executive
Blackpool Council,1005071,Blackpool Transport Services Limited,591332,I0003486,14/02/2022,339,0,OTHL,Other Learning,2201,Contract Hire,Children'S Services
Blackpool Council,1021388,St Georges C Of E Academy,591333,0000000348,03/02/2022,30000,0,OPAREA,Opportunity Areas,4515,Contract Services,Places
Blackpool Council,1121122,Angela Latham Psychology Services Ltd,591335,120394,28/02/2022,350,0,BSTPRJ,Better Start Projects,3401,General Services,Better Start Projects
Blackpool Council,1119761,Janet Carroll,591336,10/JAN22/TAS029,03/02/2022,3400,0,OPAREA,Opportunity Areas,4515,Contract Services,Places
Blackpool Council,1117002,Redraw Travel Ltd T/A Blackpool Minibuses,591338,INV17880M,08/02/2022,1710,0,TRCHIL,Integrated Transport Children,2201,Contract Hire,Community & Env Services
Blackpool Council,1091610,Communicate Slt Cic,591339,INV-0639,03/02/2022,460,0,NA1371,Management,4501,Private Contractors,Children'S Services
Blackpool Council,1099512,Dga (Uk) Ltd,591340,SIN220409,14/02/2022,30249,5041.5,CP0511,Anchorsholme Seawall Scheme,6506,Consultants Fees,Capital - Comm & Environ
Blackpool Council,1117705,Rhea Projects Ltd,591341,LAD1-0038,03/02/2022,28577.72,1360.84,LH2090,Green Homes Grant,4501,Private Contractors,Public Health
Blackpool Council,1117705,Rhea Projects Ltd,591342,LAD1-0040,03/02/2022,32721.94,1558.19,LH2090,Green Homes Grant,4501,Private Contractors,Public Health
Blackpool Council,1117705,Rhea Projects Ltd,591344,LAD1-0041,03/02/2022,3864,644,LH2090,Green Homes Grant,4501,Private Contractors,Public Health
Blackpool Council,1117705,Rhea Projects Ltd,591345,LAD2-0054,03/02/2022,69400.41,3304.78,LH2092,Lad 2 Funding,4501,Private Contractors,Public Health
Blackpool Council,1133349,Amplify Sales Ltd,591346,INV-000050,16/02/2022,300,50,PBF,Communications,3535,Website Costs,Places
Blackpool Council,1117705,Rhea Projects Ltd,591347,LAD2-0055,03/02/2022,65637.47,3125.59,LH2092,Lad 2 Funding,4501,Private Contractors,Public Health
Blackpool Council,1117705,Rhea Projects Ltd,591348,LAD2-0056,03/02/2022,74828.25,3563.25,LH2092,Lad 2 Funding,4501,Private Contractors,Public Health
Blackpool Council,1117705,Rhea Projects Ltd,591349,LAD2-0058,03/02/2022,65235.85,3106.47,LH2092,Lad 2 Funding,4501,Private Contractors,Public Health
Blackpool Council,1117705,Rhea Projects Ltd,591350,LAD2-0059,03/02/2022,46975.69,2236.94,LH2092,Lad 2 Funding,4501,Private Contractors,Public Health
Blackpool Council,1117705,Rhea Projects Ltd,591351,LAD2-0061,03/02/2022,51994.04,2475.91,LH2092,Lad 2 Funding,4501,Private Contractors,Public Health
Blackpool Council,1117705,Rhea Projects Ltd,591352,LAD2-0062,03/02/2022,46191.46,2199.59,LH2092,Lad 2 Funding,4501,Private Contractors,Public Health
Blackpool Council,1117705,Rhea Projects Ltd,591354,LAD2-0063,03/02/2022,56029.97,2668.09,LH2092,Lad 2 Funding,4501,Private Contractors,Public Health
Blackpool Council,1117705,Rhea Projects Ltd,591356,LAD2-0065,03/02/2022,33810,5635,LH2092,Lad 2 Funding,4501,Private Contractors,Public Health
Blackpool Council,1011675,Bambers Remedial Contractors Limited,591359,17380,07/02/2022,6480.07,0,CX4002,Disabled Facilities Grants,6501,Contract Payments,Capital - Adult Social Care
Blackpool Council,1102016,Critiqom Limited,591362,073144,03/02/2022,1404,234,FBBEA,"Income, Recovery & Debtors",3302,Stationery,Resources
Blackpool Council,1117705,Rhea Projects Ltd,591363,LAD1-0039,03/02/2022,6198.29,295.16,LH2090,Green Homes Grant,4501,Private Contractors,Public Health
Blackpool Council,1110996,Philip Holmes T/A Dragon Creative,591365,102388,09/02/2022,1320,0,PJW,Management - Places - Illumina,3401,General Services,Places
Blackpool Council,1007058,Scanlite Visual Communications Ltd,591367,218081,04/02/2022,2304,384,PPA,Head Of Tourism Services,3401,General Services,Places
Blackpool Council,1103450,Blackpool Entertainment Company Limited,591368,INV005834,09/02/2022,1659.38,184.38,PPA,Head Of Tourism Services,3401,General Services,Places
Blackpool Council,1099512,Dga (Uk) Ltd,591373,SIN220410,14/02/2022,720,120,CP0511,Anchorsholme Seawall Scheme,6506,Consultants Fees,Capital - Comm & Environ
Blackpool Council,1020550,Hays Specialist Recruitment Ltd,591374,1011945568,15/02/2022,1909.2,318.2,HJA,Growth,0791,Temp/Relief (Bureau Staff),Places
Blackpool Council,1006940,Smiths Equipment Hire Ltd - Smiths Training,591376,07-1004282,03/02/2022,462,77,PJAA,"Erection, Operation & Dismantl",3006,Hire Of Equipment,Places
Blackpool Council,1006940,Smiths Equipment Hire Ltd - Smiths Training,591377,07-1004283,03/02/2022,453.6,75.6,PJAA,"Erection, Operation & Dismantl",3006,Hire Of Equipment,Places
Blackpool Council,1006940,Smiths Equipment Hire Ltd - Smiths Training,591383,V01-981774,03/02/2022,369,61.5,PJNB,Lightpool,3006,Hire Of Equipment,Places
Blackpool Council,1006940,Smiths Equipment Hire Ltd - Smiths Training,591384,V01-981775,03/02/2022,585,97.5,PJNA,New Features / Schemes - C & E,3006,Hire Of Equipment,Places
Blackpool Council,1006940,Smiths Equipment Hire Ltd - Smiths Training,591385,V07-981781,03/02/2022,2346,391,PJAA,"Erection, Operation & Dismantl",3006,Hire Of Equipment,Places
Blackpool Council,1006940,Smiths Equipment Hire Ltd - Smiths Training,591386,V07-985901,03/02/2022,408,68,PJAA,"Erection, Operation & Dismantl",3006,Hire Of Equipment,Places
Blackpool Council,1006940,Smiths Equipment Hire Ltd - Smiths Training,591387,V07-995164,03/02/2022,2394,399,PJAA,"Erection, Operation & Dismantl",3006,Hire Of Equipment,Places
Blackpool Council,1006940,Smiths Equipment Hire Ltd - Smiths Training,591389,V12-981782,03/02/2022,2898,483,PJNB,Lightpool,3006,Hire Of Equipment,Places
Blackpool Council,1006940,Smiths Equipment Hire Ltd - Smiths Training,591391,V12-971246,03/02/2022,973.18,46.34,PJNA,New Features / Schemes - C & E,3006,Hire Of Equipment,Places
Blackpool Council,1114704,Morson Human Resources Ltd,591392,HS396362,09/02/2022,2310,385,CTAHHI,Tramway Extention,6506,Consultants Fees,Capital - Commnctn & Regen
Blackpool Council,1099512,Dga (Uk) Ltd,591393,SIN220411,14/02/2022,17472,2912,CGTBBB,Conference Centre,6506,Consultants Fees,Capital - Commnctn & Regen
Blackpool Council,1011369,Lancashire County Council,591399,5200238700,04/02/2022,1022756,0,JBR,Lac - Placements,4701,Other Contracted Services,Children'S Services
Blackpool Council,1129444,Redshank Large Format Ltd,591446,PROFORMA-145367,25/02/2022,477.6,79.6,PJOA,Commercial & Marketing,3301,Printing,Places
Blackpool Council,1118699,Enveco Blackpool Waste Services Ltd,591452,30165441,07/02/2022,502.21,83.7,APFBAB,Vitaline,4501,Private Contractors,Adult & Families
Blackpool Council,1044156,Pell Frischmann,591454,64020044,10/02/2022,6462.72,1077.12,CTAHHI,Tramway Extention,6506,Consultants Fees,Capital - Commnctn & Regen
Blackpool Council,1006940,Smiths Equipment Hire Ltd - Smiths Training,591456,VI2-98I783,07/02/2022,282.24,47.04,PJNB,Lightpool,3308,Servicing,Places
Blackpool Council,1102016,Critiqom Limited,591457,073202,07/02/2022,8371.8,1395.3,FBBEA,"Income, Recovery & Debtors",3511,Postages,Resources
Blackpool Council,1102016,Critiqom Limited,591458,073201,07/02/2022,1463.14,243.85,FBBEA,"Income, Recovery & Debtors",3301,Printing,Resources
Blackpool Council,1118715,Alison Black Ltd T/A Sportmax,591511,118078,25/02/2022,970.26,161.71,LEISUR,Leisure Management,3048,Cost Of Goods Sold,Community & Env Services
Blackpool Council,1119587,Highway Workforce Ltd,591513,HWF 2022-009,16/02/2022,13882.19,2313.7,TRB,Maintenance & Works,4501,Private Contractors,Community & Env Services
Blackpool Council,1044156,Pell Frischmann,591518,64020048,10/02/2022,1123.02,187.17,CGICAD,Enterprise Zone,6506,Consultants Fees,Capital - Commnctn & Regen
Blackpool Council,1020550,Hays Specialist Recruitment Ltd,591519,1011944773,16/02/2022,4586.58,764.43,HJA,Growth,0791,Temp/Relief (Bureau Staff),Places
Blackpool Council,1103450,Blackpool Entertainment Company Limited,591520,INV005836,09/02/2022,1050,175,PTA,Economic Development,3315,Marketing,Places
Blackpool Council,1073709,Delphi Medical Limited,591522,SINV86/00001011,11/02/2022,2795,0,PUBH04,Substance Misuse,4501,Private Contractors,Public Health
Blackpool Council,1073709,Delphi Medical Limited,591523,SINV86/00001012,11/02/2022,2150,0,PUBH04,Substance Misuse,4501,Private Contractors,Public Health
Blackpool Council,1073709,Delphi Medical Limited,591525,SINV86/00001013,11/02/2022,3010,0,PUBH04,Substance Misuse,4501,Private Contractors,Public Health
Blackpool Council,1082924,Dotdigital Emea Ltd,591526,DM1411767,14/02/2022,432,72,PBF,Communications,3315,Marketing,Places
Blackpool Council,1116850,Armfield Academy,591527,9500000076,07/02/2022,4380,0,OTHL,Other Learning,0917,Other Exps,Children'S Services
Blackpool Council,1006099,Blackpool Teaching Hospitals Nhs Ft,591528,1110060253,14/02/2022,3926.82,654.47,PU2061,Domestic Violence,4501,Private Contractors,Public Health
Blackpool Council,1006099,Blackpool Teaching Hospitals Nhs Ft,591529,1110060256,14/02/2022,4321.2,720.2,PU2061,Domestic Violence,4501,Private Contractors,Public Health
Blackpool Council,1107790,Taylek Ltd,591533,INV-20594,08/02/2022,604.8,100.8,PJLA,Maintenance,3041,Other Materials,Places
Blackpool Council,1107790,Taylek Ltd,591536,INV-20648,08/02/2022,263.34,43.89,PJRA,Electrical Infra - Places,3041,Other Materials,Places
Blackpool Council,1011369,Lancashire County Council,591538,5200244731,09/02/2022,3000,500,PTA,Economic Development,3711,Subscriptions,Places
Blackpool Council,1011369,Lancashire County Council,591539,5200244748,08/02/2022,547320.82,0,DOMPFI,Domestic Waste & Waste Pfi,4513,Contract 'A',Community & Env Services
Blackpool Council,1011369,Lancashire County Council,591539,5200244748,08/02/2022,558002.66,0,ZB0001,Gen.Fund Capital Balance Sheet,9724,Waste (Ex Pfi),Capital Summary
Blackpool Council,1018184,Blackpool Skip Hire Ltd,591541,036653,08/02/2022,720,120,PJHA,"Depot, Management & Admin",3006,Hire Of Equipment,Places
Blackpool Council,1017722,Terrys Cut Price Carpets Ltd,591542,1707,11/02/2022,708,118,JEA,Senior Management,5554,Personal Needs (Lca Only),Children'S Services
Blackpool Council,1107790,Taylek Ltd,591543,INV-20785,09/02/2022,1040.83,173.47,PJOA,Commercial & Marketing,3041,Other Materials,Places
Blackpool Council,1107790,Taylek Ltd,591546,INV-20775,08/02/2022,309,51.5,PJOA,Commercial & Marketing,3041,Other Materials,Places
Blackpool Council,1107790,Taylek Ltd,591547,INV-20951,25/02/2022,838.41,139.73,PJRA,Electrical Infra - Places,3041,Other Materials,Places
Blackpool Council,1107790,Taylek Ltd,591550,INV-20782,09/02/2022,503.52,83.92,PJOA,Commercial & Marketing,3041,Other Materials,Places
Blackpool Council,1006940,Smiths Equipment Hire Ltd - Smiths Training,591557,V07-981780,08/02/2022,1776,296,PJNA,New Features / Schemes - C & E,3006,Hire Of Equipment,Places
Blackpool Council,1006940,Smiths Equipment Hire Ltd - Smiths Training,591559,07-1008269,10/02/2022,630.33,105.05,PJNA,New Features / Schemes - C & E,3006,Hire Of Equipment,Places
Blackpool Council,1005071,Blackpool Transport Services Limited,591562,I0003500,17/02/2022,1845.6,0,JEA,Senior Management,5552,Bus Pass / Travel,Children'S Services
Blackpool Council,1091329,Pentagull Limited,591570,18245,11/02/2022,15776.24,2629.37,FGAA,Ict Corporate Services,3532,Comp-Running & License Costs,Resources
Blackpool Council,1123022,Chadwick High School,591604,1001149/0260,14/02/2022,1890,0,VIRTUL,Virtual Hub,0917,Other Exps,Children'S Services
Blackpool Council,1007487,Post Office Ltd,591605,200 BLACKPOOL 03022022,08/02/2022,5000,0,FC1802,Social Fund - Client,5209,Crisis/Emergency Support,Resources
Blackpool Council,1102016,Critiqom Limited,591610,073203,08/02/2022,670,111.59,FBBEA,"Income, Recovery & Debtors",3301,Printing,Resources
Blackpool Council,1102016,Critiqom Limited,591611,073204,08/02/2022,3551.98,592,FBBEA,"Income, Recovery & Debtors",3511,Postages,Resources
Blackpool Council,1090774,Richardson Traction Limited,591613,22290,08/02/2022,5520,920,PJNA,New Features / Schemes - C & E,3006,Hire Of Equipment,Places
Blackpool Council,1090774,Richardson Traction Limited,591614,22319,08/02/2022,3600,600,PJNA,New Features / Schemes - C & E,3006,Hire Of Equipment,Places
Blackpool Council,1018711,Yorkshire Building Society,591615,00016048,08/02/2022,1808.5,0,PJAA,"Erection, Operation & Dismantl",3308,Servicing,Places
Blackpool Council,1117805,City Of London,591616,4308054,08/02/2022,3000,500,PJNA,New Features / Schemes - C & E,3308,Servicing,Places
Blackpool Council,1118699,Enveco Blackpool Waste Services Ltd,591636,30165621,08/02/2022,3372,562,PYLA,Licencing,1012,Premises Maint-Priv.Contractor,Community & Env Services
Blackpool Council,1035017,Newauto Ltd T/A Mogo Uk,591644,T32221,08/02/2022,1083.3,180.55,PYLA,Licencing,3041,Other Materials,Community & Env Services
Blackpool Council,1007206,Road Safety Services Ltd,591646,90069,10/02/2022,335.16,55.86,ZM0003,Planning,9624,Rechargeable Works Account,Place Directorate
Blackpool Council,1007206,Road Safety Services Ltd,591647,90068,10/02/2022,443.52,73.92,ZM0003,Planning,9624,Rechargeable Works Account,Place Directorate
Blackpool Council,1132871,Trapeze Media,591649,INV-0467,15/02/2022,4650,775,PPA,Head Of Tourism Services,3401,General Services,Places
Blackpool Council,1053021,Wesley Media/The Yaboo Company Ltd,591652,60023,15/02/2022,432,72,CEMCRE,Cems Crems Etc,3012,Other Equipment,Governance & Partnerships
Blackpool Council,1007206,Road Safety Services Ltd,591656,89898,08/02/2022,718.2,119.7,ZM0003,Planning,9624,Rechargeable Works Account,Place Directorate
Blackpool Council,1007206,Road Safety Services Ltd,591657,89897,08/02/2022,950.4,158.4,ZM0003,Planning,9624,Rechargeable Works Account,Place Directorate
Blackpool Council,1074968,P N Grundy Ltd,591663,796,09/02/2022,300,0,FK0071,Corporate Training,3426,Course Fees,Chief Executive
Blackpool Council,1119864,Lorraine Petersen Educational Consultancy,591666,795,09/02/2022,2750,0,OTHL,Other Learning,0917,Other Exps,Children'S Services
Blackpool Council,1110996,Philip Holmes T/A Dragon Creative,591670,102402,10/02/2022,2042.4,0,PJNA,New Features / Schemes - C & E,3308,Servicing,Places
Blackpool Council,1010300,Blacktax Radio Taxis T/A Blackpool Courier,591671,85,16/02/2022,1378,0,TRCHIL,Integrated Transport Children,2201,Contract Hire,Community & Env Services
Blackpool Council,1010300,Blacktax Radio Taxis T/A Blackpool Courier,591672,84,16/02/2022,950,0,TRCHIL,Integrated Transport Children,2201,Contract Hire,Community & Env Services
Blackpool Council,1010300,Blacktax Radio Taxis T/A Blackpool Courier,591673,86,16/02/2022,1444,0,TRCHIL,Integrated Transport Children,2201,Contract Hire,Community & Env Services
Blackpool Council,1119933,Mitchell Bailey T/A Pda Technical,591674,330,15/02/2022,480,0,PJHA,"Depot, Management & Admin",3308,Servicing,Places
Blackpool Council,1119933,Mitchell Bailey T/A Pda Technical,591675,331,15/02/2022,800,0,PJHA,"Depot, Management & Admin",3308,Servicing,Places
Blackpool Council,1027764,Colins Travel,591676,106,16/02/2022,1702,0,TRCHIL,Integrated Transport Children,2201,Contract Hire,Community & Env Services
Blackpool Council,1027764,Colins Travel,591677,107,16/02/2022,1574,0,TRCHIL,Integrated Transport Children,2201,Contract Hire,Community & Env Services
Blackpool Council,1126236,New Concept Security Ltd,591679,16063,10/02/2022,3411.92,568.66,SECURE,Security Services,3401,General Services,Community & Env Services
Blackpool Council,1011369,Lancashire County Council,591681,5200244426,09/02/2022,1771430.64,0,DOMPFI,Domestic Waste & Waste Pfi,4513,Contract 'A',Community & Env Services
Blackpool Council,1131140,Cma Touring Limited,591686,00000297,09/02/2022,1440,240,PJHA,"Depot, Management & Admin",3308,Servicing,Places
Blackpool Council,1005071,Blackpool Transport Services Limited,591688,I0003501,17/02/2022,1950,0,JEA,Senior Management,2301,Bus & Tram Fares,Children'S Services
Blackpool Council,1122955,Iris Software Ltd - No 7 Account,591689,SIN008972,10/02/2022,1854.6,309.1,CATERG,Catering Services,3532,Comp-Running & License Costs,Community & Env Services
Blackpool Council,1107721,Continental Lasers (Uk) Ltd,591726,2667,09/02/2022,4244.4,707.4,PJNA,New Features / Schemes - C & E,3006,Hire Of Equipment,Places
Blackpool Council,1107721,Continental Lasers (Uk) Ltd,591727,2668,09/02/2022,5040,840,PJNA,New Features / Schemes - C & E,3006,Hire Of Equipment,Places
Blackpool Council,1006099,Blackpool Teaching Hospitals Nhs Ft,591729,1110059934,09/02/2022,3926.82,654.47,PU2061,Domestic Violence,4501,Private Contractors,Public Health
Blackpool Council,1006099,Blackpool Teaching Hospitals Nhs Ft,591730,1110059937,09/02/2022,4321.2,720.2,PU2061,Domestic Violence,4501,Private Contractors,Public Health
Blackpool Council,1119587,Highway Workforce Ltd,591733,HWF 2022-019,11/02/2022,9121.03,1520.17,TRB,Maintenance & Works,4501,Private Contractors,Community & Env Services
Blackpool Council,1131198,Permanent Futures Ltd,591747,247607,28/02/2022,1530,255,OTHL,Other Learning,0917,Other Exps,Children'S Services
Blackpool Council,1066073,Blackpool Coastal Housing,591749,30002050,09/02/2022,551.27,91.88,FMAJ,Garages,1064,Delegated Maintenance,Resources
Blackpool Council,1093145,On A Roll Sandwich Company,591753,227744,10/02/2022,699.8,0,CATERG,Catering Services,3101,Provisions,Community & Env Services
Blackpool Council,1093145,On A Roll Sandwich Company,591755,227746,10/02/2022,415.95,0,CATERG,Catering Services,3101,Provisions,Community & Env Services
Blackpool Council,1011970,A1 Streamline Road Markings Ltd,591757,7390,11/02/2022,967.15,161.19,ENGINE,Engineering,1012,Premises Maint-Priv.Contractor,Community & Env Services
Blackpool Council,1011970,A1 Streamline Road Markings Ltd,591758,7337,09/02/2022,1466.09,244.35,ENGINE,Engineering,1012,Premises Maint-Priv.Contractor,Community & Env Services
Blackpool Council,1011970,A1 Streamline Road Markings Ltd,591759,7338,09/02/2022,2339.35,389.89,ENGINE,Engineering,1012,Premises Maint-Priv.Contractor,Community & Env Services
Blackpool Council,1026811,Stannah Lift Services Ltd,591761,1085374004,23/02/2022,1189,0,CX4002,Disabled Facilities Grants,6501,Contract Payments,Capital - Adult Social Care
Blackpool Council,1026811,Stannah Lift Services Ltd,591762,1085376639,28/02/2022,1246,0,CX4002,Disabled Facilities Grants,6501,Contract Payments,Capital - Adult Social Care
Blackpool Council,1026811,Stannah Lift Services Ltd,591763,1085376642,23/02/2022,4916,0,CX4002,Disabled Facilities Grants,6501,Contract Payments,Capital - Adult Social Care
Blackpool Council,1026811,Stannah Lift Services Ltd,591764,1085378332,23/02/2022,5164,0,CX4002,Disabled Facilities Grants,6501,Contract Payments,Capital - Adult Social Care
Blackpool Council,1026811,Stannah Lift Services Ltd,591765,1085388859,23/02/2022,4324.8,720.8,CXAAA,Local Authority Dwellings,6501,Contract Payments,Capital - Chief Executive
Blackpool Council,1026811,Stannah Lift Services Ltd,591766,1085381370,23/02/2022,2479,0,CX4002,Disabled Facilities Grants,6501,Contract Payments,Capital - Adult Social Care
Blackpool Council,1026811,Stannah Lift Services Ltd,591767,1085383033,23/02/2022,5995,0,CX4002,Disabled Facilities Grants,6501,Contract Payments,Capital - Adult Social Care
Blackpool Council,1026811,Stannah Lift Services Ltd,591768,1085386613,23/02/2022,3368,0,CX4002,Disabled Facilities Grants,6501,Contract Payments,Capital - Adult Social Care
Blackpool Council,1011675,Bambers Remedial Contractors Limited,591769,17363,23/02/2022,465,0,CX4002,Disabled Facilities Grants,6501,Contract Payments,Capital - Adult Social Care
Blackpool Council,1011675,Bambers Remedial Contractors Limited,591770,17368,23/02/2022,1118.61,0,CX4002,Disabled Facilities Grants,6501,Contract Payments,Capital - Adult Social Care
Blackpool Council,1011675,Bambers Remedial Contractors Limited,591771,17390,23/02/2022,6083.02,0,CXAAA,Local Authority Dwellings,6501,Contract Payments,Capital - Chief Executive
Blackpool Council,1011675,Bambers Remedial Contractors Limited,591772,17392,23/02/2022,675,0,CXAAA,Local Authority Dwellings,6501,Contract Payments,Capital - Chief Executive
Blackpool Council,1011970,A1 Streamline Road Markings Ltd,591779,7352,09/02/2022,1289.91,214.99,ENGINE,Engineering,1012,Premises Maint-Priv.Contractor,Community & Env Services
Blackpool Council,1011970,A1 Streamline Road Markings Ltd,591781,7343,09/02/2022,689.82,114.97,ENGINE,Engineering,1012,Premises Maint-Priv.Contractor,Community & Env Services
Blackpool Council,1040938,Urban Coffee Services,591784,17620,10/02/2022,350.81,0,APDBBB,Arc,3101,Provisions,Adult & Families
Blackpool Council,1117002,Redraw Travel Ltd T/A Blackpool Minibuses,591785,INV17834M,16/02/2022,1425,0,TRCHIL,Integrated Transport Children,2201,Contract Hire,Community & Env Services
Blackpool Council,1086714,Liveasy Ltd,591786,BP0149ARC,10/02/2022,460.8,76.8,APDBBB,Arc,3066,Personal Needs Of Clients,Adult & Families
Blackpool Council,1086714,Liveasy Ltd,591787,BP0150ARC,10/02/2022,758.4,126.4,APDBBB,Arc,3066,Personal Needs Of Clients,Adult & Families
Blackpool Council,1115480,Seating Matters Ltd,591788,47512,28/02/2022,2592,432,MTEAJ,Equipment,5401,Aids To Daily Living,Adult & Families
Blackpool Council,1115480,Seating Matters Ltd,591789,47513,28/02/2022,2820,470,MTEAJ,Equipment,5401,Aids To Daily Living,Adult & Families
Blackpool Council,1111496,Bes Healthcare Ltd,591792,INVBES160312,28/02/2022,512.16,85.36,MTEAJ,Equipment,5401,Aids To Daily Living,Adult & Families
Blackpool Council,1111496,Bes Healthcare Ltd,591793,INVBES160323,28/02/2022,482.76,80.46,MTEAJ,Equipment,5401,Aids To Daily Living,Adult & Families
Blackpool Council,1091465,Dm Orthotics Limited,591795,9999,28/02/2022,681.04,0,MTEAJ,Equipment,5401,Aids To Daily Living,Adult & Families
Blackpool Council,1076636,Chicken Joes Ltd,591839,706461,17/02/2022,610.39,0,CATERG,Catering Services,3101,Provisions,Community & Env Services
Blackpool Council,1026738,Cassidy + Ashton,591840,18798,11/02/2022,4080,680,CGICAD,Enterprise Zone,6506,Consultants Fees,Capital - Commnctn & Regen
Blackpool Council,1076636,Chicken Joes Ltd,591850,723566,24/02/2022,251,0,CATERG,Catering Services,3101,Provisions,Community & Env Services
Blackpool Council,1050522,Pasta King (Uk) Limited,591851,504733,11/02/2022,264.8,0,CATERG,Catering Services,3101,Provisions,Community & Env Services
Blackpool Council,1099746,Unity Academy,591862,9000000346,11/02/2022,400,0,OTHL,Other Learning,0917,Other Exps,Children'S Services
Blackpool Council,1110951,Leisure Property Services Limited,591867,INV-1677,16/02/2022,3900,650,FMAK,Acquisitions 9/10,3801,Other Expenses,Places
Blackpool Council,1010554,Baines Endowed C Of E Academy,591869,0000000353,11/02/2022,2685,0,MNGMT,Central Management,0917,Other Exps,Children'S Services
Blackpool Council,1023161,Suez Recycling And Recovery Uk Ltd,591870,80269320,25/02/2022,50612.58,8435.43,DOMPFI,Domestic Waste & Waste Pfi,4501,Private Contractors,Community & Env Services
Blackpool Council,1105580,Buttress Architects Limited,591873,15904,21/02/2022,1200,200,CGTACA,Museum,6506,Consultants Fees,Capital - Commnctn & Regen
Blackpool Council,1021388,St Georges C Of E Academy,591876,0000000354,11/02/2022,4785,0,MNGMT,Central Management,0917,Other Exps,Children'S Services
Blackpool Council,1006853,St John Vianney School,591880,SJV210027,11/02/2022,1470,0,MNGMT,Central Management,0917,Other Exps,Children'S Services
Blackpool Council,1099746,Unity Academy,591881,9000000417,11/02/2022,8939,0,OTHL,Other Learning,0917,Other Exps,Children'S Services
Blackpool Council,1070036,Gaist Solutions Ltd,591882,11250,11/02/2022,12000,2000,CTACBA,Ltp Scheme 21/22,6501,Contract Payments,Capital - Commnctn & Regen
Blackpool Council,1022781,Moore Readymix Ltd,591887,123644,25/02/2022,660,110,ENGINE,Engineering,3041,Other Materials,Community & Env Services
Blackpool Council,1022781,Moore Readymix Ltd,591893,123593,25/02/2022,258.48,43.08,ENGINE,Engineering,3041,Other Materials,Community & Env Services
Blackpool Council,1022781,Moore Readymix Ltd,591894,123596,25/02/2022,258.48,43.08,ENGINE,Engineering,3041,Other Materials,Community & Env Services
Blackpool Council,1013064,Tarmac Lafarge Trading Limited,591900,9044719384,18/02/2022,476.95,79.49,ENGINE,Engineering,3041,Other Materials,Community & Env Services
Blackpool Council,1013064,Tarmac Lafarge Trading Limited,591901,9044743533,23/02/2022,338.48,56.41,ENGINE,Engineering,3041,Other Materials,Community & Env Services
Blackpool Council,1013064,Tarmac Lafarge Trading Limited,591902,9044743534,23/02/2022,434.68,72.44,ENGINE,Engineering,3041,Other Materials,Community & Env Services
Blackpool Council,1013064,Tarmac Lafarge Trading Limited,591903,9044733208,23/02/2022,854.76,142.46,ENGINE,Engineering,3041,Other Materials,Community & Env Services
Blackpool Council,1013064,Tarmac Lafarge Trading Limited,591904,9044733207,23/02/2022,943.23,157.2,ENGINE,Engineering,3041,Other Materials,Community & Env Services
Blackpool Council,1006940,Smiths Equipment Hire Ltd - Smiths Training,591907,05-1008922,11/02/2022,370.56,61.76,ENGINE,Engineering,3041,Other Materials,Community & Env Services
Blackpool Council,1011714,Michael Hope Haulage Limited,591913,001562,11/02/2022,2160,360,SCHEME,Highways Schemes,1012,Premises Maint-Priv.Contractor,Community & Env Services
Blackpool Council,1006196,Prism Medical Uk Ltd,591914,5501227,28/02/2022,412.66,68.78,MVA,18-64,5401,Aids To Daily Living,Adult & Families
Blackpool Council,1011714,Michael Hope Haulage Limited,591915,001563,11/02/2022,2160,360,SCHEME,Highways Schemes,1012,Premises Maint-Priv.Contractor,Community & Env Services
Blackpool Council,1011868,W H Tarmacadam Limited,591916,3987,11/02/2022,46392,7732,SCHEME,Highways Schemes,1012,Premises Maint-Priv.Contractor,Community & Env Services
Blackpool Council,1077568,A & J Properties,591917,CONTRIBUTION - FENCING COSTS,15/02/2022,4500,0,PYAA,Head Of Environmental Health,3801,Other Expenses,Community & Env Services
Blackpool Council,1026738,Cassidy + Ashton,591919,18911,11/02/2022,7200,1200,CGICAD,Enterprise Zone,6506,Consultants Fees,Capital - Commnctn & Regen
Blackpool Council,1045794,Amion Consulting Limited,591923,AEL5337,11/02/2022,15450,2575,DDC,Partnerships & Business Dev,3413,Consultants,Places
Blackpool Council,1044156,Pell Frischmann,591924,64020084,16/02/2022,2037.6,339.6,TRA,Traffic Management,4501,Private Contractors,Community & Env Services
Blackpool Council,1044156,Pell Frischmann,591925,64020085,15/02/2022,336.29,56.05,CGICAF,G&P Prudential Schemes,6506,Consultants Fees,Capital - Commnctn & Regen
Blackpool Council,1049385,Fylde Coast Ymca,591928,80001120,18/02/2022,540,90,FK0071,Corporate Training,3426,Course Fees,Chief Executive
Blackpool Council,1049385,Fylde Coast Ymca,591929,80001117,18/02/2022,540,90,FK0071,Corporate Training,3426,Course Fees,Chief Executive
Blackpool Council,1049385,Fylde Coast Ymca,591930,80001118,18/02/2022,540,90,FK0071,Corporate Training,3426,Course Fees,Chief Executive
Blackpool Council,1049385,Fylde Coast Ymca,591931,80001119,18/02/2022,540,90,FK0071,Corporate Training,3426,Course Fees,Chief Executive
Blackpool Council,1049385,Fylde Coast Ymca,591932,80001121,18/02/2022,432,72,LM0420,Adults Training,3426,Course Fees,Adult & Families
Blackpool Council,1086456,Adelaide Street Family Practice,591938,LYRL/00000142,11/02/2022,285,0,PUBH18,Stop Smoking Services & Interv,4501,Private Contractors,Public Health
Blackpool Council,1006099,Blackpool Teaching Hospitals Nhs Ft,591939,BQGWY/00000036,14/02/2022,2793.91,133.04,PUBH18,Stop Smoking Services & Interv,4501,Private Contractors,Public Health
Blackpool Council,1118715,Alison Black Ltd T/A Sportmax,591941,118006,18/02/2022,529.26,88.21,LEISUR,Leisure Management,3048,Cost Of Goods Sold,Community & Env Services
Blackpool Council,1074052,Brent Stevenson Memorials Ltd,591942,23640,21/02/2022,1170,195,CEMCRE,Cems Crems Etc,3801,Other Expenses,Governance & Partnerships
Blackpool Council,1010090,Vodafone Limited,591948,UK10/012022/395,11/02/2022,1535.12,255.85,FGAA,Ict Corporate Services,3527,Communication Lines,Resources
Blackpool Council,1015228,Virgin Media Payments Limited,591949,806981-229,16/02/2022,377.77,62.96,FGAA,Ict Corporate Services,3521,Landline - Line Rental,Resources
Blackpool Council,1010138,C Cabs,591950,08218,16/02/2022,969,0,TRCHIL,Integrated Transport Children,2201,Contract Hire,Community & Env Services
Blackpool Council,1010138,C Cabs,591951,08216,16/02/2022,570,0,TRCHIL,Integrated Transport Children,2201,Contract Hire,Community & Env Services
Blackpool Council,1010138,C Cabs,591952,08220,16/02/2022,950,0,TRCHIL,Integrated Transport Children,2201,Contract Hire,Community & Env Services
Blackpool Council,1010138,C Cabs,591953,08219,16/02/2022,1550,0,TRCHIL,Integrated Transport Children,2201,Contract Hire,Community & Env Services
Blackpool Council,1010138,C Cabs,591954,08221,16/02/2022,1140,0,TRCHIL,Integrated Transport Children,2201,Contract Hire,Community & Env Services
Blackpool Council,1010138,C Cabs,591955,08222,16/02/2022,532,0,TRCHIL,Integrated Transport Children,2201,Contract Hire,Community & Env Services
Blackpool Council,1010138,C Cabs,591956,08223,16/02/2022,1000,0,TRCHIL,Integrated Transport Children,2201,Contract Hire,Community & Env Services
Blackpool Council,1010138,C Cabs,591957,08225,16/02/2022,912,0,TRCHIL,Integrated Transport Children,2201,Contract Hire,Community & Env Services
Blackpool Council,1010138,C Cabs,591958,08227,16/02/2022,950,0,TRCHIL,Integrated Transport Children,2201,Contract Hire,Community & Env Services
Blackpool Council,1010138,C Cabs,591959,08228,16/02/2022,874,0,TRCHIL,Integrated Transport Children,2201,Contract Hire,Community & Env Services
Blackpool Council,1010138,C Cabs,591960,08226,16/02/2022,1020,0,TRCHIL,Integrated Transport Children,2201,Contract Hire,Community & Env Services
Blackpool Council,1010138,C Cabs,591962,08229,16/02/2022,760,0,TRCHIL,Integrated Transport Children,2201,Contract Hire,Community & Env Services
Blackpool Council,1010138,C Cabs,591963,08230,16/02/2022,874,0,TRCHIL,Integrated Transport Children,2201,Contract Hire,Community & Env Services
Blackpool Council,1010138,C Cabs,591964,08231,16/02/2022,950,0,TRCHIL,Integrated Transport Children,2201,Contract Hire,Community & Env Services
Blackpool Council,1010138,C Cabs,591965,08232,16/02/2022,950,0,TRCHIL,Integrated Transport Children,2201,Contract Hire,Community & Env Services
Blackpool Council,1010138,C Cabs,591966,08233,16/02/2022,1254,0,TRCHIL,Integrated Transport Children,2201,Contract Hire,Community & Env Services
Blackpool Council,1010138,C Cabs,591967,08236,16/02/2022,950,0,TRCHIL,Integrated Transport Children,2201,Contract Hire,Community & Env Services
Blackpool Council,1010138,C Cabs,591968,08224,16/02/2022,625,0,TRCHIL,Integrated Transport Children,2201,Contract Hire,Community & Env Services
Blackpool Council,1010138,C Cabs,591970,08217,16/02/2022,1170,0,TRCHIL,Integrated Transport Children,2201,Contract Hire,Community & Env Services
Blackpool Council,1010138,C Cabs,591971,08235,16/02/2022,1292,0,TRCHIL,Integrated Transport Children,2201,Contract Hire,Community & Env Services
Blackpool Council,1008525,Kingswood Office Supplies Limited,591974,423986,18/02/2022,428.04,71.34,AER,Dual Use Properties,3302,Stationery,Resources
Blackpool Council,1090628,The Furniture Recycling Group,591976,INV29131,17/02/2022,317.02,52.84,CWASTE,Commercial Waste,4501,Private Contractors,Community & Env Services
Blackpool Council,1118699,Enveco Blackpool Waste Services Ltd,591978,30165605,11/02/2022,2259.72,376.62,PJHA,"Depot, Management & Admin",3308,Servicing,Places
Blackpool Council,1057573,Bwb Consulting Limited,591979,1331,28/02/2022,3960,660,CGICAD,Enterprise Zone,6506,Consultants Fees,Capital - Commnctn & Regen
Blackpool Council,1024273,Abbeydale Medical Centre,591982,LYQZ/00000033,11/02/2022,365,0,PUBH02,Sexual Health Services-Contrac,4501,Private Contractors,Public Health
Blackpool Council,1086456,Adelaide Street Family Practice,591983,LYRL/00000141,11/02/2022,838,0,PUBH02,Sexual Health Services-Contrac,4501,Private Contractors,Public Health
Blackpool Council,1009019,Highfield Surgery,591986,LZCM/00000075,11/02/2022,1309,0,PUBH02,Sexual Health Services-Contrac,4501,Private Contractors,Public Health
Blackpool Council,1013245,St Pauls Medical Centre,591988,LYTK/00000113,11/02/2022,529,0,PUBH02,Sexual Health Services-Contrac,4501,Private Contractors,Public Health
Blackpool Council,1084725,Stonyhill Medical Practice,591989,LZLQ/00000101,11/02/2022,1604.52,0,PUBH02,Sexual Health Services-Contrac,4501,Private Contractors,Public Health
Blackpool Council,1132978,Cornerstone Design And Marketing Limited,592034,10675,25/02/2022,285.48,47.58,SPORTY,Sports & Physical Activity,3302,Stationery,Community & Env Services
Blackpool Council,1010300,Blacktax Radio Taxis T/A Blackpool Courier,592050,83,16/02/2022,315.2,0,APBBAD,Keats Day Centre,2241,Scheduled Taxi Use,Adult & Families
Blackpool Council,1017722,Terrys Cut Price Carpets Ltd,592053,1712,14/02/2022,456,76,FC1802,Social Fund - Client,5210,Community Care Support,Resources
Blackpool Council,1017722,Terrys Cut Price Carpets Ltd,592054,1713,16/02/2022,1167.6,194.6,JEA,Senior Management,5554,Personal Needs (Lca Only),Children'S Services
Blackpool Council,1081133,Lavat Consulting Limited T/A Pstax,592055,109233,28/02/2022,1512,252,FBBCA,Accountancy,3413,Consultants,Resources
Blackpool Council,1098892,Global Outdoor Media Limited,592058,SINV00274259,14/02/2022,960,160,PBF,Communications,3806,Advertising-General,Places
Blackpool Council,1090774,Richardson Traction Limited,592062,22363,14/02/2022,4500,750,PJNA,New Features / Schemes - C & E,3006,Hire Of Equipment,Places
Blackpool Council,1133437,Commericial City Ltd,592064,946/Q035,18/02/2022,1300,0,CGTBBB,Conference Centre,6501,Contract Payments,Capital - Commnctn & Regen
Blackpool Council,1011369,Lancashire County Council,592068,5200244611,16/02/2022,7368.78,0,CWAN,Children With Additional Needs,4101,Other Local Authorities,Children'S Services
Blackpool Council,1020550,Hays Specialist Recruitment Ltd,592072,1011962721,22/02/2022,1896.3,316.05,HJA,Growth,0791,Temp/Relief (Bureau Staff),Places
Blackpool Council,1114704,Morson Human Resources Ltd,592074,HS397865,16/02/2022,2310,385,CTAHHI,Tramway Extention,6506,Consultants Fees,Capital - Commnctn & Regen
Blackpool Council,1011868,W H Tarmacadam Limited,592075,4110,14/02/2022,28176,4696,SCHEME,Highways Schemes,1012,Premises Maint-Priv.Contractor,Community & Env Services
Blackpool Council,1016258,M J Teale Plant Hire Ltd,592076,001537,14/02/2022,1966.15,327.67,SCHEME,Highways Schemes,1012,Premises Maint-Priv.Contractor,Community & Env Services
Blackpool Council,1007008,Screwfix Direct Ltd,592090,1236344758,14/02/2022,411.92,68.65,PJHA,"Depot, Management & Admin",3041,Other Materials,Places
Blackpool Council,1015228,Virgin Media Payments Limited,592091,806981-228,14/02/2022,315.95,52.66,FGAA,Ict Corporate Services,3521,Landline - Line Rental,Resources
Blackpool Council,1111470,National Association Of Virtual School Heads,592092,INV-0219,15/02/2022,598,0,VIRTUL,Virtual Hub,0911,Training Expenses,Children'S Services
Blackpool Council,1118699,Enveco Blackpool Waste Services Ltd,592094,30165937,21/02/2022,1678.33,279.72,CEMCRE,Cems Crems Etc,3801,Other Expenses,Governance & Partnerships
Blackpool Council,1016649,Iems Services,592110,2254,14/02/2022,440,0,PJRA,Electrical Infra - Places,3308,Servicing,Places
Blackpool Council,1115302,Catch 22 Charity Ltd,592117,61638,14/02/2022,3594,599,JPA,Children Centres,3711,Subscriptions,Children'S Services
Blackpool Council,1117551,Sj Services,592118,156,16/02/2022,3300,0,PJNA,New Features / Schemes - C & E,3308,Servicing,Places
Blackpool Council,1118699,Enveco Blackpool Waste Services Ltd,592119,30164668,14/02/2022,13928.89,2321.48,PJHA,"Depot, Management & Admin",3308,Servicing,Places
Blackpool Council,1016649,Iems Services,592120,2262,14/02/2022,440,0,PJHA,"Depot, Management & Admin",3308,Servicing,Places
Blackpool Council,1016649,Iems Services,592121,2263,14/02/2022,440,0,PJHA,"Depot, Management & Admin",3308,Servicing,Places
Blackpool Council,1016649,Iems Services,592122,2261,14/02/2022,440,0,PJHA,"Depot, Management & Admin",3308,Servicing,Places
Blackpool Council,1131037,Technology One,592123,U004507,25/02/2022,54067.5,9011.25,CGRESO,Resources Schemes,6526,I.T. Software Purchase,Capital - Resources
Blackpool Council,1010300,Blacktax Radio Taxis T/A Blackpool Courier,592127,82,14/02/2022,1290,0,TRADUL,Intergrated Transport Adults,2201,Contract Hire,Community & Env Services
Blackpool Council,1011369,Lancashire County Council,592128,5200244008,15/02/2022,1231,0,FR5001,Concessionary Fares,3401,General Services,Budgets Outside Cash Limits
Blackpool Council,1011369,Lancashire County Council,592129,5200240749,15/02/2022,293087,0,FR5001,Concessionary Fares,3401,General Services,Budgets Outside Cash Limits
Blackpool Council,1011369,Lancashire County Council,592130,5200244010,15/02/2022,293087,0,FR5001,Concessionary Fares,3401,General Services,Budgets Outside Cash Limits
Blackpool Council,1011369,Lancashire County Council,592131,5200238655,15/02/2022,293087,0,FR5001,Concessionary Fares,3401,General Services,Budgets Outside Cash Limits
Blackpool Council,1011369,Lancashire County Council,592215,5200240756,15/02/2022,1846,0,FR5001,Concessionary Fares,3401,General Services,Budgets Outside Cash Limits
Blackpool Council,1010138,C Cabs,592217,08237,14/02/2022,568.4,0,LM2408,Provider Hub,2201,Contract Hire,Adult & Families
Blackpool Council,1038116,The Big Blue Hotel,592222,33161,14/02/2022,1100,52.38,PRB,Events,1704,Bed & Breakfast Accomm.,Places
Blackpool Council,1109966,J C Walwyn And Sons Ltd,592223,107110,18/02/2022,285,47.5,CEMCRE,Cems Crems Etc,3453,Caskets/Urns/Posy Holders,Governance & Partnerships
Blackpool Council,1118699,Enveco Blackpool Waste Services Ltd,592225,30165933,14/02/2022,3524.96,587.49,DOMPFI,Domestic Waste & Waste Pfi,2002,Repairs And Maintenance,Community & Env Services
Blackpool Council,1118699,Enveco Blackpool Waste Services Ltd,592225,30165933,14/02/2022,1108.03,184.67,DOMPFI,Domestic Waste & Waste Pfi,2004,Running Costs-Diesel,Community & Env Services
Blackpool Council,1005071,Blackpool Transport Services Limited,592230,I0003518,21/02/2022,679.5,0,OTHL,Other Learning,2201,Contract Hire,Children'S Services
Blackpool Council,1005071,Blackpool Transport Services Limited,592231,I0003519,21/02/2022,1698.63,0,FRAEA,Public Transport Contracts,3401,General Services,Community & Env Services
Blackpool Council,1129634,Av-Id,592240,195,14/02/2022,284.88,47.48,FGAA,Ict Corporate Services,3531,Computer-H'Ware Purchase,Resources
Blackpool Council,1023161,Suez Recycling And Recovery Uk Ltd,592242,80266942,14/02/2022,65151.95,10858.66,DOMPFI,Domestic Waste & Waste Pfi,4501,Private Contractors,Community & Env Services
Blackpool Council,1119587,Highway Workforce Ltd,592249,HWF 2022-021,24/02/2022,11788.74,1964.79,TRB,Maintenance & Works,4501,Private Contractors,Community & Env Services
Blackpool Council,1095414,Healthcare Conferences Uk Ltd,592258,421237,15/02/2022,354,59,BCA,Corp And Member Services,0911,Training Expenses,Governance & Partnerships
Blackpool Council,1099746,Unity Academy,592264,9000000359,17/02/2022,315,0,SBOARD,Springboard,4501,Private Contractors,Children'S Services
Blackpool Council,1082721,Duxburys Property Consultants Ltd,592265,22960,15/02/2022,900,150,CGICAD,Enterprise Zone,6506,Consultants Fees,Capital - Commnctn & Regen
Blackpool Council,1026738,Cassidy + Ashton,592272,18802,15/02/2022,3540,590,CXC11,Site Development,6503,Capital Salaries (Pro Advance),Capital - Chief Executive
Blackpool Council,1118699,Enveco Blackpool Waste Services Ltd,592275,30165931,15/02/2022,962.99,160.5,BEACHP,Beach Patrol,2002,Repairs And Maintenance,Places
Blackpool Council,1013064,Tarmac Lafarge Trading Limited,592279,9044750848,25/02/2022,343.6,57.26,ENGINE,Engineering,3041,Other Materials,Community & Env Services
Blackpool Council,1133538,Stephen Ambler,592284,0931951,15/02/2022,300,0,PJAA,"Erection, Operation & Dismantl",3308,Servicing,Places
Blackpool Council,1133538,Stephen Ambler,592285,0931952,21/02/2022,300,0,PJAA,"Erection, Operation & Dismantl",3308,Servicing,Places
Blackpool Council,1122575,Cnc Robotics Ltd,592290,WBINV-204,15/02/2022,4500,750,PJNA,New Features / Schemes - C & E,3308,Servicing,Places
Blackpool Council,1007008,Screwfix Direct Ltd,592297,1237006937,15/02/2022,270.42,0,ZM0018,Highways & Engineering,9773,Orders Received Not Invoiced,Blackpool Services
Blackpool Council,1007008,Screwfix Direct Ltd,592297,1237006937,15/02/2022,324.5,54.08,ZM0018,Highways & Engineering,9511A,Stocks Efin,Blackpool Services
Blackpool Council,1129132,Mhr International Uk Ltd,592303,SIN143518,14/02/2022,16892.78,2815.46,CGRESO,Resources Schemes,6526,I.T. Software Purchase,Capital - Resources
Blackpool Council,1129132,Mhr International Uk Ltd,592304,SIN145326,18/02/2022,16892.78,2815.46,CGRESO,Resources Schemes,6526,I.T. Software Purchase,Capital - Resources
Blackpool Council,1000009,Blackpool & The Fylde College,592310,S0022844,15/02/2022,597,0,EDDIV,Education Diversity,4101,Other Local Authorities,Children'S Services
Blackpool Council,1008620,Ppg Architectural Coatings Uk Limited,592314,4481575476,25/02/2022,574.94,0,ZM0018,Highways & Engineering,9773,Orders Received Not Invoiced,Blackpool Services
Blackpool Council,1008620,Ppg Architectural Coatings Uk Limited,592314,4481575476,25/02/2022,689.92,114.98,ZM0018,Highways & Engineering,9511A,Stocks Efin,Blackpool Services
Blackpool Council,1009004,Bemrosebooth Paragon Limited T/A Paragon Id,592315,500517,28/02/2022,2520,420,PARADM,Parking Administration,3302,Stationery,Budgets Outside Cash Limits
Blackpool Council,1009004,Bemrosebooth Paragon Limited T/A Paragon Id,592316,500519,28/02/2022,1404,234,PARADM,Parking Administration,3302,Stationery,Budgets Outside Cash Limits
Blackpool Council,1090774,Richardson Traction Limited,592372,22330,15/02/2022,900,150,PJNB,Lightpool,2211,Casual Hire,Places
Blackpool Council,1090774,Richardson Traction Limited,592373,22329,15/02/2022,420,70,PJNA,New Features / Schemes - C & E,2211,Casual Hire,Places
Blackpool Council,1090774,Richardson Traction Limited,592374,22328,15/02/2022,960,160,PJAA,"Erection, Operation & Dismantl",3006,Hire Of Equipment,Places
Blackpool Council,1086156,Water Saving Techniques Limited,592379,SI-5252,25/02/2022,6480,1080,PARADE,Parades & Seawall,1012,Premises Maint-Priv.Contractor,Community & Env Services
Blackpool Council,1047045,St Thomas' Church,592384,001-2022,15/02/2022,5330,0,NA1371,Management,1301,Rent & Hire Of Premises,Children'S Services
Blackpool Council,1108452,Delphi Medical Consultants Ltd,592400,SINV85/00000376,18/02/2022,31667,0,PU2069,Changing Futures,4501,Private Contractors,Public Health
Blackpool Council,1006099,Blackpool Teaching Hospitals Nhs Ft,592403,1110060095,15/02/2022,13705.2,2284.2,EDDIV,Education Diversity,3413,Consultants,Children'S Services
Blackpool Council,1009079,Pearson Education Ltd,592404,IHNG62_VOC,15/02/2022,497,0,EDDIV,Education Diversity,3404,Exam Fees & Exps (Sch),Children'S Services
Blackpool Council,1132962,Sysco Productions Ltd,592405,196344,18/02/2022,1370.88,228.48,CGTACA,Museum,6517,Equipment,Capital - Commnctn & Regen
Blackpool Council,1133481,Jenny-Lee Fisher T/A Fisher Freelance,592406,2022-1BPC,23/02/2022,620,0,AHHBA,Blackpool Museum,3801,Other Expenses,Places
Blackpool Council,1120039,REDACTED PERSONAL DATA,592407,LCM0014,18/02/2022,787.5,0,AHHBA,Blackpool Museum,3801,Other Expenses,Places
Blackpool Council,1010138,C Cabs,592409,08238,15/02/2022,3698.1,0,EDDIV,Education Diversity,2201,Contract Hire,Children'S Services
Blackpool Council,1010138,C Cabs,592410,08239,15/02/2022,548.8,0,EDDIV,Education Diversity,2201,Contract Hire,Children'S Services
Blackpool Council,1128443,Andrea Howe,592423,AHBC010,16/02/2022,3094,0,LH2092,Lad 2 Funding,4501,Private Contractors,Public Health
Blackpool Council,1110600,REDACTED PERSONAL DATA,592426,155,21/02/2022,800,0,AHG,Art Gallery Summary,3456,Payment To Artists,Places
Blackpool Council,1013064,Tarmac Lafarge Trading Limited,592429,9044761536,25/02/2022,606.87,101.14,ENGINE,Engineering,3041,Other Materials,Community & Env Services
Blackpool Council,1065725,REDACTED PERSONAL DATA,592488,HK00145,18/02/2022,560,0,MUSIC,Music & Cultural Education,3801,Other Expenses,Children'S Services
Blackpool Council,1071702,Links Signs & Graphics Ltd,592493,LSGI32919,25/02/2022,1212,202,AHG,Art Gallery Summary,3301,Printing,Places
Blackpool Council,1016961,Elygra Limited,592495,15301,21/02/2022,8458.8,1409.8,CATERG,Catering Services,3301,Printing,Community & Env Services
Blackpool Council,1118699,Enveco Blackpool Waste Services Ltd,592496,30165425,17/02/2022,1047.41,174.57,CATERG,Catering Services,4501,Private Contractors,Community & Env Services
Blackpool Council,1013064,Tarmac Lafarge Trading Limited,592500,9044761537,25/02/2022,449.89,74.98,ENGINE,Engineering,3041,Other Materials,Community & Env Services
Blackpool Council,1093145,On A Roll Sandwich Company,592501,228267,17/02/2022,598.62,0,CATERG,Catering Services,3101,Provisions,Community & Env Services
Blackpool Council,1093145,On A Roll Sandwich Company,592502,229062,18/02/2022,348.82,0,CATERG,Catering Services,3101,Provisions,Community & Env Services
Blackpool Council,1093145,On A Roll Sandwich Company,592503,228271,17/02/2022,451.15,0,CATERG,Catering Services,3101,Provisions,Community & Env Services
Blackpool Council,1010069,Caterware Ltd,592504,INV000531,18/02/2022,344.49,57.42,CATERG,Catering Services,3051,Kitchen (Heavy) Equip-Repair,Community & Env Services
Blackpool Council,1093145,On A Roll Sandwich Company,592507,229063,18/02/2022,274.27,0,CATERG,Catering Services,3101,Provisions,Community & Env Services
Blackpool Council,1093145,On A Roll Sandwich Company,592508,229060,18/02/2022,653.07,0,CATERG,Catering Services,3101,Provisions,Community & Env Services
Blackpool Council,1008308,Laca,592509,INV-01764-C9V5D8,17/02/2022,302.4,50.4,CATERG,Catering Services,3711,Subscriptions,Community & Env Services
Blackpool Council,1010069,Caterware Ltd,592510,INV000562,18/02/2022,319.11,53.19,CATERG,Catering Services,3051,Kitchen (Heavy) Equip-Repair,Community & Env Services
Blackpool Council,1093145,On A Roll Sandwich Company,592513,228269,17/02/2022,378.85,0,CATERG,Catering Services,3101,Provisions,Community & Env Services
Blackpool Council,1093145,On A Roll Sandwich Company,592515,229064,18/02/2022,414.5,0,CATERG,Catering Services,3101,Provisions,Community & Env Services
Blackpool Council,1125370,Durrocoat Ltd,592525,4408,25/02/2022,384,64,PJNA,New Features / Schemes - C & E,3308,Servicing,Places
Blackpool Council,1117705,Rhea Projects Ltd,592547,LAD1-0042,17/02/2022,51704.65,2462.13,LH2090,Green Homes Grant,4501,Private Contractors,Public Health
Blackpool Council,1117705,Rhea Projects Ltd,592548,RP-1492,17/02/2022,33120,5520,LH2078,Energy Efficiency C1 Scheme,4501,Private Contractors,Public Health
Blackpool Council,1117705,Rhea Projects Ltd,592549,LAD2-0074,17/02/2022,30629.81,1458.56,LH2092,Lad 2 Funding,4501,Private Contractors,Public Health
Blackpool Council,1117705,Rhea Projects Ltd,592551,LAD1-0043,17/02/2022,53599.89,2552.38,LH2090,Green Homes Grant,4501,Private Contractors,Public Health
Blackpool Council,1040364,Conlon Construction Ltd,592552,11089,16/02/2022,474254.03,79042.34,CGTACA,Museum,6501,Contract Payments,Capital - Commnctn & Regen
Blackpool Council,1040364,Conlon Construction Ltd,592552,11089,16/02/2022,12223.04,0,ZF0001,"Insurance,Dso,Banking",97B6,Retention Monies - Cap Trsfr,Total Reconciliations
Blackpool Council,1117705,Rhea Projects Ltd,592553,LAD1-0044,17/02/2022,7194.47,342.59,LH2090,Green Homes Grant,4501,Private Contractors,Public Health
Blackpool Council,1117705,Rhea Projects Ltd,592554,LAD1-0045,17/02/2022,31267.04,1488.91,LH2090,Green Homes Grant,4501,Private Contractors,Public Health
Blackpool Council,1117705,Rhea Projects Ltd,592555,LAD1-0046,17/02/2022,40755.1,1940.72,LH2090,Green Homes Grant,4501,Private Contractors,Public Health
Blackpool Council,1117705,Rhea Projects Ltd,592556,LAD1-0047,17/02/2022,33024.47,1572.59,LH2090,Green Homes Grant,4501,Private Contractors,Public Health
Blackpool Council,1117705,Rhea Projects Ltd,592557,LAD2-0066,17/02/2022,39075.75,1860.75,LH2092,Lad 2 Funding,4501,Private Contractors,Public Health
Blackpool Council,1117705,Rhea Projects Ltd,592558,LAD2-0067,17/02/2022,54071.72,2574.84,LH2092,Lad 2 Funding,4501,Private Contractors,Public Health
Blackpool Council,1117705,Rhea Projects Ltd,592559,LAD2-0068,17/02/2022,49422.86,2353.47,LH2092,Lad 2 Funding,4501,Private Contractors,Public Health
Blackpool Council,1117705,Rhea Projects Ltd,592560,LAD2-0069,17/02/2022,65743.8,3130.66,LH2092,Lad 2 Funding,4501,Private Contractors,Public Health
Blackpool Council,1117705,Rhea Projects Ltd,592561,LAD2-0070,17/02/2022,72328.61,3444.22,LH2092,Lad 2 Funding,4501,Private Contractors,Public Health
Blackpool Council,1117705,Rhea Projects Ltd,592562,LAD2-0071,17/02/2022,61935.58,2949.31,LH2092,Lad 2 Funding,4501,Private Contractors,Public Health
Blackpool Council,1117705,Rhea Projects Ltd,592563,LAD2-0072,17/02/2022,69007.97,3286.09,LH2092,Lad 2 Funding,4501,Private Contractors,Public Health
Blackpool Council,1117705,Rhea Projects Ltd,592564,LAD2-0073,17/02/2022,59515.31,2834.06,LH2092,Lad 2 Funding,4501,Private Contractors,Public Health
Blackpool Council,1117705,Rhea Projects Ltd,592565,LAD2-0075,17/02/2022,31773.66,1513.03,LH2092,Lad 2 Funding,4501,Private Contractors,Public Health
Blackpool Council,1117705,Rhea Projects Ltd,592566,LAD2-0076,17/02/2022,46523.55,2215.41,LH2092,Lad 2 Funding,4501,Private Contractors,Public Health
Blackpool Council,1117705,Rhea Projects Ltd,592567,LAD2-0077,17/02/2022,53391.85,2542.47,LH2092,Lad 2 Funding,4501,Private Contractors,Public Health
Blackpool Council,1117705,Rhea Projects Ltd,592568,LAD2-0078,17/02/2022,45310.79,2157.66,LH2092,Lad 2 Funding,4501,Private Contractors,Public Health
Blackpool Council,1129132,Mhr International Uk Ltd,592569,SIN144323,17/02/2022,2376,396,CGRESO,Resources Schemes,6526,I.T. Software Purchase,Capital - Resources
Blackpool Council,1129132,Mhr International Uk Ltd,592570,SIN146183,25/02/2022,5328,888,CGRESO,Resources Schemes,6526,I.T. Software Purchase,Capital - Resources
Blackpool Council,1125367,Abs Education Consultancy,592571,073,17/02/2022,1100,0,MNGMT,Central Management,3413,Consultants,Children'S Services
Blackpool Council,1115477,REDACTED PERSONAL DATA,592615,0047,25/02/2022,280,0,AHG,Art Gallery Summary,3456,Payment To Artists,Places
Blackpool Council,1106132,Bridge Education And Training Ltd,592617,9309,18/02/2022,810,135,AEF,Facilities,0791,Temp/Relief (Bureau Staff),Resources
Blackpool Council,1106132,Bridge Education And Training Ltd,592618,9232,21/02/2022,810,135,AEF,Facilities,0791,Temp/Relief (Bureau Staff),Resources
Blackpool Council,1086714,Liveasy Ltd,592620,BP0152ARC,17/02/2022,758.4,126.4,APDBBB,Arc,3066,Personal Needs Of Clients,Adult & Families
Blackpool Council,1126236,New Concept Security Ltd,592622,16066,18/02/2022,3411.92,568.66,SECURE,Security Services,3401,General Services,Community & Env Services
Blackpool Council,1106132,Bridge Education And Training Ltd,592623,9111,23/02/2022,810,135,AEF,Facilities,0791,Temp/Relief (Bureau Staff),Resources
Blackpool Council,1106132,Bridge Education And Training Ltd,592624,9170,28/02/2022,810,135,AEF,Facilities,0791,Temp/Relief (Bureau Staff),Resources
Blackpool Council,1082721,Duxburys Property Consultants Ltd,592625,22970,17/02/2022,780,130,HJA,Growth,3413,Consultants,Places
Blackpool Council,1082721,Duxburys Property Consultants Ltd,592626,22968,17/02/2022,780,130,HJA,Growth,3413,Consultants,Places
Blackpool Council,1009260,G S Brown,592638,10216,23/02/2022,950,0,TRCHIL,Integrated Transport Children,2201,Contract Hire,Community & Env Services
Blackpool Council,1009260,G S Brown,592639,10217,23/02/2022,720,0,TRADUL,Intergrated Transport Adults,2201,Contract Hire,Community & Env Services
Blackpool Council,1011714,Michael Hope Haulage Limited,592643,001565,18/02/2022,2160,360,SCHEME,Highways Schemes,1012,Premises Maint-Priv.Contractor,Community & Env Services
Blackpool Council,1011970,A1 Streamline Road Markings Ltd,592645,7383,18/02/2022,840,140,ENGINE,Engineering,1012,Premises Maint-Priv.Contractor,Community & Env Services
Blackpool Council,1114704,Morson Human Resources Ltd,592653,HS399284,23/02/2022,2310,385,CTAHHI,Tramway Extention,6506,Consultants Fees,Capital - Commnctn & Regen
Blackpool Council,1121796,Smart Tech Security,592658,10082,18/02/2022,720,120,CGTAAA,Leisure Assets,6501,Contract Payments,Capital - Commnctn & Regen
Blackpool Council,1018184,Blackpool Skip Hire Ltd,592659,037237,23/02/2022,1620,270,PJHA,"Depot, Management & Admin",3006,Hire Of Equipment,Places
Blackpool Council,1117351,Open Text,592661,9002968150,22/02/2022,489.74,81.62,CTAHHA,Tramway Emergency Works,6506,Consultants Fees,Capital - Commnctn & Regen
Blackpool Council,1011269,Fylde Council,592662,73280474,18/02/2022,650.34,0,FBBEA,"Income, Recovery & Debtors",3511,Postages,Resources
Blackpool Council,1106798,Cd Chauffeur Hire,592663,396,18/02/2022,732,0,BCA,Corp And Member Services,2211,Casual Hire,Governance & Partnerships
Blackpool Council,1008026,Metal Express (Fac083),592664,9307,18/02/2022,18010.8,3001.8,PJNA,New Features / Schemes - C & E,3041,Other Materials,Places
Blackpool Council,1133399,Robert Pinkus Commercial Property Consultant,592665,7154,18/02/2022,3000,500,CGICAD,Enterprise Zone,6527,Marketing,Capital - Commnctn & Regen
Blackpool Council,1133538,Stephen Ambler,592674,0931953,25/02/2022,300,0,PJHA,"Depot, Management & Admin",3308,Servicing,Places
Blackpool Council,1129634,Av-Id,592712,194,18/02/2022,3889.68,648.28,FGAA,Ict Corporate Services,3531,Computer-H'Ware Purchase,Resources
Blackpool Council,1082399,REDACTED PERSONAL DATA,592720,212207,18/02/2022,320,0,MUSIC,Music & Cultural Education,3008,Educational Equipment,Children'S Services
Blackpool Council,1072848,Peter Rhodes,592723,01/017JAN22,18/02/2022,1691,0,TRCHIL,Integrated Transport Children,2201,Contract Hire,Community & Env Services
Blackpool Council,1107632,Right To Succeed,592730,INV-00214,21/02/2022,10082.4,1680.4,OPAREA,Opportunity Areas,4515,Contract Services,Places
Blackpool Council,1103692,Calico Enterprise Limited,592798,SINV20/00003920,24/02/2022,2452.8,408.8,DOMPFI,Domestic Waste & Waste Pfi,4501,Private Contractors,Community & Env Services
Blackpool Council,1038314,Century Plastics Ltd,592799,96115309,23/02/2022,2010,0,ZM0018,Highways & Engineering,9773,Orders Received Not Invoiced,Blackpool Services
Blackpool Council,1038314,Century Plastics Ltd,592799,96115309,23/02/2022,2412,402,ZM0018,Highways & Engineering,9511A,Stocks Efin,Blackpool Services
Blackpool Council,1006449,Tmp (Uk) Ltd,592801,215921,21/02/2022,283.96,47.32,AEV,Vacant & Under Used,3806,Advertising-General,Resources
Blackpool Council,1006449,Tmp (Uk) Ltd,592802,215922,21/02/2022,319.46,53.24,AEV,Vacant & Under Used,3806,Advertising-General,Resources
Blackpool Council,1122575,Cnc Robotics Ltd,592813,INV-2019265,21/02/2022,4500,750,PJNA,New Features / Schemes - C & E,3308,Servicing,Places
Blackpool Council,1122575,Cnc Robotics Ltd,592821,INV-2019269,21/02/2022,3000,500,PJNA,New Features / Schemes - C & E,3308,Servicing,Places
Blackpool Council,1129132,Mhr International Uk Ltd,592824,SIN144144,21/02/2022,3636,606,CGRESO,Resources Schemes,6526,I.T. Software Purchase,Capital - Resources
Blackpool Council,1090774,Richardson Traction Limited,592825,22399,25/02/2022,1200,200,PJLA,Maintenance,2211,Casual Hire,Places
Blackpool Council,1012272,Jpi Media Publishing Ltd,592838,557186,25/02/2022,705.02,117.5,PBF,Communications,3315,Marketing,Places
Blackpool Council,1009166,Glasdon Uk Ltd,592840,SI833661,28/02/2022,258.45,43.07,BEACHP,Beach Patrol,2001,Purchases,Places
Blackpool Council,1098293,Dy Property Services Ltd,592841,IV00587,28/02/2022,8640,1440,HOPB,Housing Options,4004,Management Fees,Chief Executive
Blackpool Council,1007206,Road Safety Services Ltd,592842,90030,22/02/2022,6805.28,1134.21,PRB,Events,3401,General Services,Places
Blackpool Council,1009803,Corrys Limited,592843,1122,22/02/2022,2352,392,PRB,Events,3006,Hire Of Equipment,Places
Blackpool Council,1009803,Corrys Limited,592844,1123,22/02/2022,504,84,PRB,Events,3006,Hire Of Equipment,Places
Blackpool Council,1085614,James Raffan T/A Lancashire Marquee Hire,592845,101002,22/02/2022,1094.4,182.4,PRB,Events,3006,Hire Of Equipment,Places
Blackpool Council,1105909,Cj'S Cycles,592846,215890,22/02/2022,1800,300,PRB,Events,3401,General Services,Places
Blackpool Council,1105909,Cj'S Cycles,592847,215891,22/02/2022,1800,300,PRB,Events,3401,General Services,Places
Blackpool Council,1128579,Trueline Consultancy,592850,04-2022,25/02/2022,20000,0,TRB,Maintenance & Works,4501,Private Contractors,Community & Env Services
Blackpool Council,1088121,Candy House,592853,BC004,23/02/2022,2300,0,PRF,Keeping Blackpool Alive,3401,General Services,Places
Blackpool Council,1118699,Enveco Blackpool Waste Services Ltd,592859,30166018,22/02/2022,2322.34,387.05,ENGINE,Engineering,3041,Other Materials,Community & Env Services
Blackpool Council,1118699,Enveco Blackpool Waste Services Ltd,592864,30165941,22/02/2022,1734.2,289.03,ENGINE,Engineering,3041,Other Materials,Community & Env Services
Blackpool Council,1103450,Blackpool Entertainment Company Limited,592870,INV005816,22/02/2022,48000,8000,PRA,Conferences,3701,Grants,Places
Blackpool Council,1103450,Blackpool Entertainment Company Limited,592872,INV005845,22/02/2022,345.3,57.55,PTC,"A.C.E. Regen, Tourism & Cultur",1301,Rent & Hire Of Premises,Places
Blackpool Council,1118015,Gcjr Consultants Ltd,592873,793,22/02/2022,2100,350,PTC,"A.C.E. Regen, Tourism & Cultur",3413,Consultants,Places
Blackpool Council,1007206,Road Safety Services Ltd,592878,90205,25/02/2022,272.33,45.39,TRA,Traffic Management,4501,Private Contractors,Community & Env Services
Blackpool Council,1006419,Tunstall Healthcare (Uk) Ltd,592882,3IN/10384817,22/02/2022,4896,816,APFBAB,Vitaline,3004,Operating Lease,Adult & Families
Blackpool Council,1086156,Water Saving Techniques Limited,592910,SI-5263,24/02/2022,33540,5590,DIRCTR,Directorate,4501,Private Contractors,Community & Env Services
Blackpool Council,1102328,Revoe Learning Academy,592912,RVLSI9,22/02/2022,3450,0,MNGMT,Central Management,0917,Other Exps,Children'S Services
Blackpool Council,1026811,Stannah Lift Services Ltd,592930,1085389903,28/02/2022,5646,0,CX4002,Disabled Facilities Grants,6501,Contract Payments,Capital - Adult Social Care
Blackpool Council,1026811,Stannah Lift Services Ltd,592931,1085388642,28/02/2022,547.74,91.29,MVBBJ,Equipment,5401,Aids To Daily Living,Adult & Families
Blackpool Council,1026811,Stannah Lift Services Ltd,592933,1085390714,28/02/2022,16300.89,0,CX4002,Disabled Facilities Grants,6501,Contract Payments,Capital - Adult Social Care
Blackpool Council,1026811,Stannah Lift Services Ltd,592934,1085392095,28/02/2022,2833.28,0,CX4002,Disabled Facilities Grants,6501,Contract Payments,Capital - Adult Social Care
Blackpool Council,1112303,Access-Able (Uk) Limited (Fac001),592942,4745,28/02/2022,10883.5,0,CX4002,Disabled Facilities Grants,6501,Contract Payments,Capital - Adult Social Care
Blackpool Council,1004963,F Parkinson Ltd,592944,10320,24/02/2022,73735.64,12289.27,CGICAF,G&P Prudential Schemes,6501,Contract Payments,Capital - Commnctn & Regen
Blackpool Council,1004963,F Parkinson Ltd,592944,10320,24/02/2022,1900.41,0,ZF0001,"Insurance,Dso,Banking",97B6,Retention Monies - Cap Trsfr,Total Reconciliations
Blackpool Council,1006940,Smiths Equipment Hire Ltd - Smiths Training,592945,V12-971247,23/02/2022,1218,58,PJNB,Lightpool,3006,Hire Of Equipment,Places
Blackpool Council,1006944,Siemens Financial Services Ltd,592947,244/22/0051465,23/02/2022,334.83,55.8,APFBAB,Vitaline,4501,Private Contractors,Adult & Families
Blackpool Council,1011806,A D J Doors Ltd T/A Keman Roller Shutters,592977,9018,24/02/2022,468,78,PJNA,New Features / Schemes - C & E,3401,General Services,Places
Blackpool Council,1118699,Enveco Blackpool Waste Services Ltd,593000,30166012,23/02/2022,10598.26,1766.38,PYLA,Licencing,1012,Premises Maint-Priv.Contractor,Community & Env Services
Blackpool Council,1099746,Unity Academy,593009,9000000434,23/02/2022,8939,0,OPAREA,Opportunity Areas,4515,Contract Services,Places
Blackpool Council,1118699,Enveco Blackpool Waste Services Ltd,593012,30166010,28/02/2022,14314.62,2385.77,PJHA,"Depot, Management & Admin",3308,Servicing,Places
Blackpool Council,1123611,South West Councils,593016,0000068315,24/02/2022,1368,228,BEA,Democratic Services & Admin,0911,Training Expenses,Governance & Partnerships
Blackpool Council,1106840,Hartshead Productions Ltd,593017,0001865,23/02/2022,1600,0,MUSIC,Music & Cultural Education,3822,Photography,Children'S Services
Blackpool Council,1006644,Telewest/Virgin Media Payments Ltd,593018,0677437901/506/0222,23/02/2022,3245.48,540.91,FGAA,Ict Corporate Services,3521,Landline - Line Rental,Resources
Blackpool Council,1028228,Danfo (Uk) Ltd,593024,0000006241,23/02/2022,48744,8124,PUBCON,Public Conveniences,4501,Private Contractors,Community & Env Services
Blackpool Council,1006644,Telewest/Virgin Media Payments Ltd,593026,078850001/547/0222,23/02/2022,314.4,52.4,FGAA,Ict Corporate Services,3521,Landline - Line Rental,Resources
Blackpool Council,1006644,Telewest/Virgin Media Payments Ltd,593030,081127901/504/0222,23/02/2022,612,102,FGAA,Ict Corporate Services,3521,Landline - Line Rental,Resources
Blackpool Council,1008026,Metal Express (Fac083),593034,9309,23/02/2022,574.2,95.7,PJNA,New Features / Schemes - C & E,3041,Other Materials,Places
Blackpool Council,1103450,Blackpool Entertainment Company Limited,593036,INV005654,23/02/2022,1435.2,239.2,AEH,Built Heritage,3401,General Services,Places
Blackpool Council,1071702,Links Signs & Graphics Ltd,593039,LSGI32290,23/02/2022,964.8,160.8,CGTCCD,Heritage Action Zone,6501,Contract Payments,Capital - Commnctn & Regen
Blackpool Council,1071702,Links Signs & Graphics Ltd,593040,LSGI32258,23/02/2022,552,92,AEH,Built Heritage,0981,Professional Fees,Places
Blackpool Council,1073709,Delphi Medical Limited,593041,SINV86/00001031,25/02/2022,2150,0,PUBH04,Substance Misuse,4501,Private Contractors,Public Health
Blackpool Council,1073709,Delphi Medical Limited,593042,SINV86/00001032,25/02/2022,1290,0,PUBH04,Substance Misuse,4501,Private Contractors,Public Health
Blackpool Council,1120062,Nexus Planning Limited,593096,NP00009717,25/02/2022,468,78,PLBAAA,Development Control,0981,Professional Fees,Places
Blackpool Council,1102943,Titanium Fireworks Ltd,593098,2405,24/02/2022,10560,1760,PJW,Management - Places - Illumina,3401,General Services,Places
Blackpool Council,1090804,Getty Images (Uk) Limited,593099,2006718,24/02/2022,297.6,49.6,PBF,Communications,3315,Marketing,Places
Blackpool Council,1128579,Trueline Consultancy,593103,05-2022,25/02/2022,9050,0,TRB,Maintenance & Works,4501,Private Contractors,Community & Env Services
Blackpool Council,1119933,Mitchell Bailey T/A Pda Technical,593104,334,25/02/2022,1400,0,PJHA,"Depot, Management & Admin",3308,Servicing,Places
Blackpool Council,1117078,Thynne Creative Ltd,593110,TCI001107,24/02/2022,18000,3000,TRB,Maintenance & Works,4501,Private Contractors,Community & Env Services
Blackpool Council,1106288,Blackpool Housing Company Ltd,593111,MCDERMOT,24/02/2022,645.2,107.53,HOPB,Housing Options,4004,Management Fees,Chief Executive
Blackpool Council,1006385,University Of Central Lancashire,593112,5109029,24/02/2022,6000,1000,PUBH24,Children'S Public Health,4501,Private Contractors,Public Health
Blackpool Council,1007487,Post Office Ltd,593118,200BLACKPOOL21022022,24/02/2022,3000,0,FC1802,Social Fund - Client,5209,Crisis/Emergency Support,Resources
Blackpool Council,1063803,Global Media Group Services Ltd,593119,C-INV036082,24/02/2022,469.2,78.2,PBF,Communications,3315,Marketing,Places
Blackpool Council,1063803,Global Media Group Services Ltd,593120,C-INV036083,24/02/2022,2400,400,PBF,Communications,3315,Marketing,Places
Blackpool Council,1011868,W H Tarmacadam Limited,593122,4224,24/02/2022,59124,9854,SCHEME,Highways Schemes,1012,Premises Maint-Priv.Contractor,Community & Env Services
Blackpool Council,1114664,REDACTED PERSONAL DATA,593128,050,24/02/2022,1610,0,HS0005,Whole School Approach,0911,Training Expenses,Children'S Services
Blackpool Council,1090874,Advanced Health And Care Limited,593130,ARMIN/00019990,24/02/2022,672,112,APDBAA,Homecare Management,2201,Contract Hire,Adult & Families
Blackpool Council,1011923,Rp Tyson Construction Ltd,593134,IN3438,24/02/2022,357852.04,0,CXC11,Site Development,6501,Contract Payments,Capital - Chief Executive
Blackpool Council,1011923,Rp Tyson Construction Ltd,593134,IN3438,24/02/2022,11532.76,0,ZH0001,Housing Revenue Account,97A6,Retention Monies - Capital,Housing Revenue Account
Blackpool Council,1007487,Post Office Ltd,593135,200 BLACKPOOLCF 21022022,25/02/2022,3000,0,ZS0001,Social Work And Safeguarding,96P8,Court Protection Suspense,Cafs
Blackpool Council,1117705,Rhea Projects Ltd,593175,LAD2-0015,25/02/2022,66133.6,3149.22,LH2092,Lad 2 Funding,4501,Private Contractors,Public Health
Blackpool Council,1090874,Advanced Health And Care Limited,593178,ARCMIN/001000293,25/02/2022,1401.92,233.65,APDBAA,Homecare Management,3313,General Expenses,Adult & Families
Blackpool Council,1010386,Montgomery Academy,593182,3000000198,28/02/2022,8939,0,OPAREA,Opportunity Areas,4515,Contract Services,Places
Blackpool Council,1101124,South Shore Academy,593184,SSSI 58,25/02/2022,8939,0,OPAREA,Opportunity Areas,4515,Contract Services,Places
Blackpool Council,1104384,Blackpool Aspire Academy,593190,7000000175,25/02/2022,8939,0,OPAREA,Opportunity Areas,4515,Contract Services,Places
Blackpool Council,1006944,Siemens Financial Services Ltd,593191,244/22/0032025,25/02/2022,2067.76,344.62,APFBAB,Vitaline,4501,Private Contractors,Adult & Families
Blackpool Council,1011806,A D J Doors Ltd T/A Keman Roller Shutters,593206,9171,28/02/2022,432,72,AHG,Art Gallery Summary,4501,Private Contractors,Places
Blackpool Council,1006292,Vodafone Corporate Ltd,593212,PZ93581,25/02/2022,413.79,68.96,FGAA,Ict Corporate Services,3531,Computer-H'Ware Purchase,Resources
Blackpool Council,1006292,Vodafone Corporate Ltd,593213,PZ19764,25/02/2022,702.99,117.16,FGAA,Ict Corporate Services,3531,Computer-H'Ware Purchase,Resources
Blackpool Council,1006292,Vodafone Corporate Ltd,593214,PZ41182,25/02/2022,413.79,68.96,FGAA,Ict Corporate Services,3531,Computer-H'Ware Purchase,Resources
Blackpool Council,1006292,Vodafone Corporate Ltd,593215,PZ41184,25/02/2022,413.79,68.96,FGAA,Ict Corporate Services,3531,Computer-H'Ware Purchase,Resources
Blackpool Council,1006292,Vodafone Corporate Ltd,593216,PZ41185,25/02/2022,413.79,68.96,FGAA,Ict Corporate Services,3531,Computer-H'Ware Purchase,Resources
Blackpool Council,1006292,Vodafone Corporate Ltd,593217,PZ41186,25/02/2022,413.79,68.96,FGAA,Ict Corporate Services,3531,Computer-H'Ware Purchase,Resources
Blackpool Council,1006292,Vodafone Corporate Ltd,593218,PZ41187,25/02/2022,413.79,68.96,FGAA,Ict Corporate Services,3531,Computer-H'Ware Purchase,Resources
Blackpool Council,1006292,Vodafone Corporate Ltd,593219,PZ41188,25/02/2022,413.79,68.96,FGAA,Ict Corporate Services,3531,Computer-H'Ware Purchase,Resources
Blackpool Council,1006292,Vodafone Corporate Ltd,593220,PZ70207,25/02/2022,413.79,68.96,FGAA,Ict Corporate Services,3531,Computer-H'Ware Purchase,Resources
Blackpool Council,1006292,Vodafone Corporate Ltd,593225,PZ70213,28/02/2022,702.99,117.16,FGAA,Ict Corporate Services,3531,Computer-H'Ware Purchase,Resources
Blackpool Council,1006292,Vodafone Corporate Ltd,593226,PZ79501,28/02/2022,1236,206,FGAA,Ict Corporate Services,3531,Computer-H'Ware Purchase,Resources
Blackpool Council,1006292,Vodafone Corporate Ltd,593227,PZ93571,28/02/2022,413.79,68.96,FGAA,Ict Corporate Services,3531,Computer-H'Ware Purchase,Resources
Blackpool Council,1006292,Vodafone Corporate Ltd,593228,PZ93572,28/02/2022,413.79,68.96,FGAA,Ict Corporate Services,3531,Computer-H'Ware Purchase,Resources
Blackpool Council,1006292,Vodafone Corporate Ltd,593229,PZ93573,28/02/2022,413.79,68.96,FGAA,Ict Corporate Services,3531,Computer-H'Ware Purchase,Resources
Blackpool Council,1044905,Eric Wright Construction Ltd,593231,CNCSI00192,25/02/2022,70125.25,11687.54,CGICAD,Enterprise Zone,6501,Contract Payments,Capital - Commnctn & Regen
Blackpool Council,1044905,Eric Wright Construction Ltd,593231,CNCSI00192,25/02/2022,889.91,0,ZF0001,"Insurance,Dso,Banking",97B6,Retention Monies - Cap Trsfr,Total Reconciliations
Blackpool Council,1129473,Tracey Litherland T/A Buttylicious,593232,1-16,25/02/2022,256,0,PTA,Economic Development,6215,Catering Services,Places
Blackpool Council,1133061,Beck Interiors Limited,593233,7192,25/02/2022,24282,4047,CGTACA,Museum,6517,Equipment,Capital - Commnctn & Regen
Blackpool Council,1133061,Beck Interiors Limited,593233,7192,25/02/2022,1065,0,ZF0001,"Insurance,Dso,Banking",97B6,Retention Monies - Cap Trsfr,Total Reconciliations
Blackpool Council,1083256,Community Lighting Partnership (Bpool) Ltd,593234,146,25/02/2022,518987.89,86497.98,FL1259,Pfi Management Costs,4501,Private Contractors,Community & Env Services
Blackpool Council,1006292,Vodafone Corporate Ltd,593298,PZ93574,28/02/2022,413.79,68.96,FGAA,Ict Corporate Services,3531,Computer-H'Ware Purchase,Resources
Blackpool Council,1006292,Vodafone Corporate Ltd,593299,PZ93575,28/02/2022,413.79,68.96,FGAA,Ict Corporate Services,3531,Computer-H'Ware Purchase,Resources
Blackpool Council,1006292,Vodafone Corporate Ltd,593300,PZ93576,28/02/2022,413.79,68.96,FGAA,Ict Corporate Services,3531,Computer-H'Ware Purchase,Resources
Blackpool Council,1006292,Vodafone Corporate Ltd,593301,PZ93577,28/02/2022,413.79,68.96,FGAA,Ict Corporate Services,3531,Computer-H'Ware Purchase,Resources
Blackpool Council,1006292,Vodafone Corporate Ltd,593302,PZ93578,28/02/2022,413.79,68.96,FGAA,Ict Corporate Services,3531,Computer-H'Ware Purchase,Resources
Blackpool Council,1006292,Vodafone Corporate Ltd,593303,PZ93579,28/02/2022,413.79,68.96,FGAA,Ict Corporate Services,3531,Computer-H'Ware Purchase,Resources
Blackpool Council,1006292,Vodafone Corporate Ltd,593304,PZ93580,28/02/2022,413.79,68.96,FGAA,Ict Corporate Services,3531,Computer-H'Ware Purchase,Resources
Blackpool Council,1006292,Vodafone Corporate Ltd,593305,PZ93582,28/02/2022,413.79,68.96,FGAA,Ict Corporate Services,3531,Computer-H'Ware Purchase,Resources
Blackpool Council,1006292,Vodafone Corporate Ltd,593306,PZ93583,28/02/2022,413.79,68.96,FGAA,Ict Corporate Services,3531,Computer-H'Ware Purchase,Resources
Blackpool Council,1006292,Vodafone Corporate Ltd,593307,PZ93584,28/02/2022,413.79,68.96,FGAA,Ict Corporate Services,3531,Computer-H'Ware Purchase,Resources
Blackpool Council,1006292,Vodafone Corporate Ltd,593308,PZ93585,28/02/2022,413.79,68.96,FGAA,Ict Corporate Services,3531,Computer-H'Ware Purchase,Resources
Blackpool Council,1006292,Vodafone Corporate Ltd,593309,PZ93586,28/02/2022,413.79,68.96,FGAA,Ict Corporate Services,3531,Computer-H'Ware Purchase,Resources
Blackpool Council,1006292,Vodafone Corporate Ltd,593310,RA03429,28/02/2022,413.79,68.96,FGAA,Ict Corporate Services,3531,Computer-H'Ware Purchase,Resources
Blackpool Council,1006292,Vodafone Corporate Ltd,593311,RA03430,28/02/2022,413.79,68.96,FGAA,Ict Corporate Services,3531,Computer-H'Ware Purchase,Resources
Blackpool Council,1006292,Vodafone Corporate Ltd,593312,RA03431,28/02/2022,413.79,68.96,FGAA,Ict Corporate Services,3531,Computer-H'Ware Purchase,Resources
Blackpool Council,1006292,Vodafone Corporate Ltd,593313,RA03432,28/02/2022,413.79,68.96,FGAA,Ict Corporate Services,3531,Computer-H'Ware Purchase,Resources
Blackpool Council,1006292,Vodafone Corporate Ltd,593314,RA03433,28/02/2022,413.79,68.96,FGAA,Ict Corporate Services,3531,Computer-H'Ware Purchase,Resources
Blackpool Council,1006292,Vodafone Corporate Ltd,593315,RA03434,28/02/2022,413.79,68.96,FGAA,Ict Corporate Services,3531,Computer-H'Ware Purchase,Resources
Blackpool Council,1006292,Vodafone Corporate Ltd,593316,RA03435,28/02/2022,413.79,68.96,FGAA,Ict Corporate Services,3531,Computer-H'Ware Purchase,Resources
Blackpool Council,1006292,Vodafone Corporate Ltd,593317,RA03436,28/02/2022,413.79,68.96,FGAA,Ict Corporate Services,3531,Computer-H'Ware Purchase,Resources
Blackpool Council,1103692,Calico Enterprise Limited,593320,SINV20/00003416,28/02/2022,2166,361,FC1802,Social Fund - Client,5210,Community Care Support,Resources
Blackpool Council,1010300,Blacktax Radio Taxis T/A Blackpool Courier,593325,64,28/02/2022,4638.3,0,APDBBB,Arc,2241,Scheduled Taxi Use,Adult & Families
Blackpool Council,1103692,Calico Enterprise Limited,593332,SINV20/00003859,28/02/2022,3530.98,175.83,FC1802,Social Fund - Client,5210,Community Care Support,Resources
Blackpool Council,1103692,Calico Enterprise Limited,593334,SINV20/00003741,28/02/2022,3916.8,652.8,FC1802,Social Fund - Client,5210,Community Care Support,Resources
Blackpool Council,1103692,Calico Enterprise Limited,593336,SINV20/00003740,28/02/2022,3916.8,652.8,FC1802,Social Fund - Client,5210,Community Care Support,Resources
Blackpool Council,1012096,St Mary'S Catholic Academy,593353,0000000472,28/02/2022,8939,0,MNGMT,Central Management,3801,Other Expenses,Children'S Services
Blackpool Council,1097432,Colette Cassin Communications Consultancy,593372,00/06,28/02/2022,1500,0,PRF,Keeping Blackpool Alive,3401,General Services,Places
Blackpool Council,1018184,Blackpool Skip Hire Ltd,593380,037063,28/02/2022,1094.4,182.4,PJHA,"Depot, Management & Admin",3006,Hire Of Equipment,Places
Blackpool Council,1041733,Dhl International (Uk) Ltd,593386,AVI8994106,28/02/2022,344.81,0,PJHA,"Depot, Management & Admin",3511,Postages,Places
Blackpool Council,1125489,Garth Steven Gatrix T/A Abingdon Studios Ltd,593410,ABSHAZ02,28/02/2022,1500,0,CGTCCD,Heritage Action Zone,6501,Contract Payments,Capital - Commnctn & Regen
Blackpool Council,1119043,Qualia Care Ltd T/A Hillside,4513234,396112,23/02/2022,543.57,0,MVDBC,Nursing Placements,7583,Indep Sect Nursing Homes,Adult & Families
Blackpool Council,1080116,Olivia Josephine Care Ltd - Willows Care Home,4591389,431367,16/02/2022,1174.11,0,MVDBD,Residential Placements,7583,Indep Sect Nursing Homes,Adult & Families
Blackpool Council,1080116,Olivia Josephine Care Ltd - Willows Care Home,4591389,431367,16/02/2022,578.57,0,MVDBD,Residential Placements,7582,Indep Sect Residential Homes,Adult & Families
Blackpool Council,1080116,Olivia Josephine Care Ltd - Willows Care Home,4591390,431076,16/02/2022,9600,0,MGDBD,Residential Placements,4505,Residential Homes,Adult & Families
Blackpool Council,1080116,Olivia Josephine Care Ltd - Willows Care Home,4591391,430505I,16/02/2022,1091.72,0,MGCBD,Residential Placements,4505,Residential Homes,Adult & Families
Blackpool Council,1080116,Olivia Josephine Care Ltd - Willows Care Home,4591392,431269,16/02/2022,355.91,0,MGCAD,Residential Placements,7582,Indep Sect Residential Homes,Adult & Families
Blackpool Council,1080116,Olivia Josephine Care Ltd - Willows Care Home,4591393,431410,16/02/2022,3250,0,MVDAD,Residential Placements,4505,Residential Homes,Adult & Families
Blackpool Council,1080116,Olivia Josephine Care Ltd - Willows Care Home,4591394,430690,16/02/2022,1617.96,0,MVDBD,Residential Placements,4505,Residential Homes,Adult & Families
Blackpool Council,1117457,Wrps Ltd,4593559,9689,14/02/2022,673.94,112.32,CXC21,Hra Capital Programme 2021/22,6501,Contract Payments,Capital - Chief Executive
Blackpool Council,1105003,Socal Healthcare Ltd,4595342,1121-044-045,07/02/2022,368,0,JDEAAA,Safeguarding Adults,4501,Private Contractors,Adult & Families
Blackpool Council,1128884,REDACTED PERSONAL DATA,4596053,432927,17/02/2022,351.44,0,MVDBB,Direct Payments,5604,Direct Payments,Adult & Families
Blackpool Council,1080116,Olivia Josephine Care Ltd - Willows Care Home,4600532,434186,16/02/2022,3975,0,MRDAD,Residential Placements,4505,Residential Homes,Adult & Families
Blackpool Council,1080116,Olivia Josephine Care Ltd - Willows Care Home,4600534,434115,16/02/2022,1400,0,MGDBD,Residential Placements,4505,Residential Homes,Adult & Families
Blackpool Council,1080116,Olivia Josephine Care Ltd - Willows Care Home,4600535,434458,16/02/2022,342.82,0,MVDAD,Residential Placements,7582,Indep Sect Residential Homes,Adult & Families
Blackpool Council,1080116,Olivia Josephine Care Ltd - Willows Care Home,4600536,433628I,16/02/2022,1091.72,0,MGCBD,Residential Placements,4505,Residential Homes,Adult & Families
Blackpool Council,1080116,Olivia Josephine Care Ltd - Willows Care Home,4600537,433754,16/02/2022,1617.96,0,MVDBD,Residential Placements,4505,Residential Homes,Adult & Families
Blackpool Council,1008906,Rentokil Initial Uk Ltd,4605422,34101865,18/02/2022,480.18,80.03,AEB,Buildings,1012,Premises Maint-Priv.Contractor,Resources
Blackpool Council,1080116,Olivia Josephine Care Ltd - Willows Care Home,4607990,437725I,16/02/2022,2385,0,MRDAD,Residential Placements,4505,Residential Homes,Adult & Families
Blackpool Council,1080116,Olivia Josephine Care Ltd - Willows Care Home,4607992,437605,16/02/2022,2800,0,MGDBD,Residential Placements,4505,Residential Homes,Adult & Families
Blackpool Council,1080116,Olivia Josephine Care Ltd - Willows Care Home,4607993,437420,16/02/2022,3235.92,0,MVDBD,Residential Placements,4505,Residential Homes,Adult & Families
Blackpool Council,1080116,Olivia Josephine Care Ltd - Willows Care Home,4607994,437471I,16/02/2022,2183.44,0,MGCBD,Residential Placements,4505,Residential Homes,Adult & Families
Blackpool Council,1105240,Hanzak Ltd T/A Dr Rashad Nazir,4611298,21064RN,07/02/2022,1750,0,JDEAAA,Safeguarding Adults,4501,Private Contractors,Adult & Families
Blackpool Council,1105240,Hanzak Ltd T/A Dr Rashad Nazir,4611299,21065RN,07/02/2022,350,0,JDEAAA,Safeguarding Adults,4501,Private Contractors,Adult & Families
Blackpool Council,1084280,Alpha Biolabs,4614445,INV601028,18/02/2022,516,86,JEA,Senior Management,4712,Experts Fees,Children'S Services
Blackpool Council,1000009,Blackpool & The Fylde College,4616935,S0022756,08/02/2022,222620,0,CWAN,Children With Additional Needs,4501,Private Contractors,Children'S Services
Blackpool Council,1026450,Doncaster Deaf Trust,4616949,19690,01/02/2022,13492.66,0,CWAN,Children With Additional Needs,4501,Private Contractors,Children'S Services
Blackpool Council,1117445,REDACTED PERSONAL DATA,4617252,441925,17/02/2022,612.07,0,MDBBB,Direct Payments,5604,Direct Payments,Adult & Families
Blackpool Council,1011675,Bambers Remedial Contractors Limited,4617588,17310,22/02/2022,35904.92,5984.15,CXC11,Site Development,6501,Contract Payments,Capital - Chief Executive
Blackpool Council,1011675,Bambers Remedial Contractors Limited,4617610,17342,14/02/2022,17400,2900,CXC21,Hra Capital Programme 2021/22,6501,Contract Payments,Capital - Chief Executive
Blackpool Council,1117457,Wrps Ltd,4617611,9964,03/02/2022,783.73,130.62,CXC21,Hra Capital Programme 2021/22,6501,Contract Payments,Capital - Chief Executive
Blackpool Council,1117457,Wrps Ltd,4617612,9965,03/02/2022,783.73,130.62,CXC21,Hra Capital Programme 2021/22,6501,Contract Payments,Capital - Chief Executive
Blackpool Council,1011675,Bambers Remedial Contractors Limited,4617616,17254,03/02/2022,101862.58,16977.1,CXC11,Site Development,6501,Contract Payments,Capital - Chief Executive
Blackpool Council,1011995,Technical & Electrical Services Ltd,4617617,VR 21661,14/02/2022,343.07,57.18,CXC21,Hra Capital Programme 2021/22,6501,Contract Payments,Capital - Chief Executive
Blackpool Council,1117457,Wrps Ltd,4617624,9982,04/02/2022,8999.84,1499.97,CXXXX,Hra Non Specific Contingency,6501,Contract Payments,Capital - Chief Executive
Blackpool Council,1077392,Reed Specialist Recruitment Ltd,4617679,E0237789015D1,07/02/2022,3330.72,555.12,JAB,Locality,0791,Temp/Relief (Bureau Staff),Children'S Services
Blackpool Council,1077392,Reed Specialist Recruitment Ltd,4617679,E0237789015D1,07/02/2022,3018.51,503.08,JAH,Duty And Assessment,0791,Temp/Relief (Bureau Staff),Children'S Services
Blackpool Council,1077392,Reed Specialist Recruitment Ltd,4617679,E0237789015D1,07/02/2022,3330.72,555.12,JBR,Lac - Placements,0791,Temp/Relief (Bureau Staff),Children'S Services
Blackpool Council,1077392,Reed Specialist Recruitment Ltd,4617679,E0237789015D1,07/02/2022,1798.56,299.76,JBT,Looked After Children,0791,Temp/Relief (Bureau Staff),Children'S Services
Blackpool Council,1077392,Reed Specialist Recruitment Ltd,4617679,E0237789015D1,07/02/2022,4861.16,810.19,JEA,Senior Management,0791,Temp/Relief (Bureau Staff),Children'S Services
Blackpool Council,1077392,Reed Specialist Recruitment Ltd,4617679,E0237789015D1,07/02/2022,5962.96,993.82,PU0000,Covid Test And Trace,0791,Temp/Relief (Bureau Staff),Public Health
Blackpool Council,1077392,Reed Specialist Recruitment Ltd,4617679,E0237789015D1,07/02/2022,727.44,121.24,PU0001,Public Health Team,0791,Temp/Relief (Bureau Staff),Public Health
Blackpool Council,1104767,North Star Environmental Ltd,4617801,INV-24582,04/02/2022,341.4,56.9,CXC21,Hra Capital Programme 2021/22,6501,Contract Payments,Capital - Chief Executive
Blackpool Council,1120588,G2 Recruitment Solutions,4617848,93695,04/02/2022,2511,418.5,AEF,Facilities,0791,Temp/Relief (Bureau Staff),Resources
Blackpool Council,1123190,Cder Group Limted,4617861,194026,04/02/2022,753.22,125.54,FBBEA,"Income, Recovery & Debtors",3807,Legal & Court Costs,Resources
Blackpool Council,1132493,Portman Recruitment Limited,4619027,INVBPCC15,03/02/2022,1425.6,237.6,JAB,Locality,0791,Temp/Relief (Bureau Staff),Children'S Services
Blackpool Council,1132514,Personnel Leasing Limited,4619028,INV0BP032,03/02/2022,2026.32,337.72,JBT,Looked After Children,0791,Temp/Relief (Bureau Staff),Children'S Services
Blackpool Council,1132514,Personnel Leasing Limited,4619029,INV0BP033,03/02/2022,2141.52,356.92,JBT,Looked After Children,0791,Temp/Relief (Bureau Staff),Children'S Services
Blackpool Council,1116043,Pro-Active Management Associates Ltd,4619036,256,04/02/2022,840,0,JEA,Senior Management,3413,Consultants,Children'S Services
Blackpool Council,1094411,Fox Fire Security Limited,4619069,3541,07/02/2022,1134,189,AER,Dual Use Properties,1012,Premises Maint-Priv.Contractor,Resources
Blackpool Council,1011995,Technical & Electrical Services Ltd,4619075,C 9700,03/02/2022,1921.9,320.32,CXC21,Hra Capital Programme 2021/22,6501,Contract Payments,Capital - Chief Executive
Blackpool Council,1002210,Read & Errington,4619077,C&R 109067/4,01/02/2022,2490.47,0,CX4024,Winter Warmth Grant,6501,Contract Payments,Capital - Adult Social Care
Blackpool Council,1002210,Read & Errington,4619078,C&R 109069/2,01/02/2022,2247.1,0,CX4024,Winter Warmth Grant,6501,Contract Payments,Capital - Adult Social Care
Blackpool Council,1115716,North Liverpool Construction Ltd (Fac067),4619080,129309,03/02/2022,2360.12,393.35,CXC21,Hra Capital Programme 2021/22,6501,Contract Payments,Capital - Chief Executive
Blackpool Council,1002210,Read & Errington,4619082,MRC 108777/3,02/02/2022,1898.22,0,CX4024,Winter Warmth Grant,6501,Contract Payments,Capital - Adult Social Care
Blackpool Council,1104767,North Star Environmental Ltd,4619085,INV-24594,10/02/2022,282,47,CXC21,Hra Capital Programme 2021/22,6501,Contract Payments,Capital - Chief Executive
Blackpool Council,1115668,Greenfield Removals Ltd,4619122,INV-16378,04/02/2022,600,100,CXC21,Hra Capital Programme 2021/22,6501,Contract Payments,Capital - Chief Executive
Blackpool Council,1115668,Greenfield Removals Ltd,4619123,INV-16379,04/02/2022,542.4,90.4,CXC21,Hra Capital Programme 2021/22,6501,Contract Payments,Capital - Chief Executive
Blackpool Council,1115668,Greenfield Removals Ltd,4619125,INV-16381,04/02/2022,586.8,97.8,CXC21,Hra Capital Programme 2021/22,6501,Contract Payments,Capital - Chief Executive
Blackpool Council,1115668,Greenfield Removals Ltd,4619126,INV-16377,04/02/2022,3440.28,573.38,CXC21,Hra Capital Programme 2021/22,6501,Contract Payments,Capital - Chief Executive
Blackpool Council,1115668,Greenfield Removals Ltd,4619127,INV-16376,04/02/2022,3420,570,CXC21,Hra Capital Programme 2021/22,6501,Contract Payments,Capital - Chief Executive
Blackpool Council,1115668,Greenfield Removals Ltd,4619134,INV-16345,03/02/2022,565.2,94.2,CXC21,Hra Capital Programme 2021/22,6501,Contract Payments,Capital - Chief Executive
Blackpool Council,1080116,Olivia Josephine Care Ltd - Willows Care Home,4620221,443290,16/02/2022,1400,0,MGDBD,Residential Placements,4505,Residential Homes,Adult & Families
Blackpool Council,1080116,Olivia Josephine Care Ltd - Willows Care Home,4620222,443164,16/02/2022,1617.96,0,MVDBD,Residential Placements,4505,Residential Homes,Adult & Families
Blackpool Council,1080116,Olivia Josephine Care Ltd - Willows Care Home,4620223,443219I,16/02/2022,3821.02,0,MGCBD,Residential Placements,7582,Indep Sect Residential Homes,Adult & Families
Blackpool Council,1120334,Bridge4learning Education Services Ltd,4620576,B4L AM BLACKPOOL02 04/01/2022,01/02/2022,15013.14,0,VIRTUL,Virtual Hub,4501,Private Contractors,Children'S Services
Blackpool Council,1044395,Sellick Partnership Limited,4620844,INV392111,09/02/2022,1565.1,260.85,BAAA,Legal Services,0793,Supply Cost Of Other Agency,Governance & Partnerships
Blackpool Council,1088102,Whistl Uk Limited,4620848,IN18US22000180,04/02/2022,3241.4,540.23,FCADA,Customer Services,3511,Postages,Resources
Blackpool Council,1120006,REDACTED PERSONAL DATA,4620865,269776,03/02/2022,900,150,BAAA,Legal Services,4707,Counsels Fees,Governance & Partnerships
Blackpool Council,1091377,REDACTED PERSONAL DATA,4620866,265109,03/02/2022,1320,220,BAAA,Legal Services,4707,Counsels Fees,Governance & Partnerships
Blackpool Council,1117457,Wrps Ltd,4620870,10016,11/02/2022,593.76,98.96,CXC21,Hra Capital Programme 2021/22,6501,Contract Payments,Capital - Chief Executive
Blackpool Council,1117457,Wrps Ltd,4620871,10012,11/02/2022,1016.34,169.39,CXC21,Hra Capital Programme 2021/22,6501,Contract Payments,Capital - Chief Executive
Blackpool Council,1117457,Wrps Ltd,4620872,10013,11/02/2022,647.56,107.93,CXXXX,Hra Non Specific Contingency,6501,Contract Payments,Capital - Chief Executive
Blackpool Council,1117457,Wrps Ltd,4620873,10014,11/02/2022,2250,375,CXC21,Hra Capital Programme 2021/22,6501,Contract Payments,Capital - Chief Executive
Blackpool Council,1117457,Wrps Ltd,4620874,10015,11/02/2022,918,153,CXC21,Hra Capital Programme 2021/22,6501,Contract Payments,Capital - Chief Executive
Blackpool Council,1045649,Independent Living (North West) Ltd,4620891,HDC 089C-19,01/02/2022,4872.8,812.13,MTEBG,Day Services,4508,Day Care,Adult & Families
Blackpool Council,1045649,Independent Living (North West) Ltd,4620892,WM089C-19,01/02/2022,13106.96,2184.49,MTEBG,Day Services,4508,Day Care,Adult & Families
Blackpool Council,1114367,Northwest Leaving Care Services Ltd,4620918,3702KHS,04/02/2022,4800,0,JEA,Senior Management,5551,Rent & Rent Bonds,Children'S Services
Blackpool Council,1114367,Northwest Leaving Care Services Ltd,4620919,3703JWS,04/02/2022,3400,0,JEA,Senior Management,5551,Rent & Rent Bonds,Children'S Services
Blackpool Council,1114367,Northwest Leaving Care Services Ltd,4620943,3704DSS,04/02/2022,13500,0,JEA,Senior Management,5551,Rent & Rent Bonds,Children'S Services
Blackpool Council,1113165,Target Psychology Ltd,4620963,1/22/5645,04/02/2022,2978.64,496.44,JEA,Senior Management,4712,Experts Fees,Children'S Services
Blackpool Council,1111078,Dr Y P Shukla,4620977,01/2022,10/02/2022,1050,0,JDEAAA,Safeguarding Adults,4501,Private Contractors,Adult & Families
Blackpool Council,1100468,Post Office Ltd,4621350,1000/90059213,11/02/2022,288.6,0,EM1032,Client Finances,5209,Crisis/Emergency Support,Resources
Blackpool Council,1114605,Charnwood Kennels Ltd,4621359,0298,02/02/2022,395,0,MVA,18-64,4502,Dog Kennelling Contractor,Adult & Families
Blackpool Council,1128694,Imap Centre Limited,4621364,R0020,02/02/2022,54684,0,JEA,Senior Management,4501,Private Contractors,Children'S Services
Blackpool Council,1111328,Hadley Fraser Ltd,4621375,BLA129,11/02/2022,7719.84,1286.64,JDEAAA,Safeguarding Adults,4501,Private Contractors,Adult & Families
Blackpool Council,1100913,Hopscotch Care Limited,4621377,1167,02/02/2022,14171.34,0,JEA,Senior Management,4501,Private Contractors,Children'S Services
Blackpool Council,1006196,Prism Medical Uk Ltd,4622416,5478294,01/02/2022,1462.39,243.73,MTEAJ,Equipment,5401,Aids To Daily Living,Adult & Families
Blackpool Council,1006196,Prism Medical Uk Ltd,4622417,5478848,01/02/2022,649.96,108.33,MTEAJ,Equipment,5401,Aids To Daily Living,Adult & Families
Blackpool Council,1006196,Prism Medical Uk Ltd,4622418,5479186,01/02/2022,333.86,55.64,MTEAJ,Equipment,5401,Aids To Daily Living,Adult & Families
Blackpool Council,1006196,Prism Medical Uk Ltd,4622419,5479428,01/02/2022,667.75,111.29,MTEAJ,Equipment,5401,Aids To Daily Living,Adult & Families
Blackpool Council,1006196,Prism Medical Uk Ltd,4622425,5482049,01/02/2022,253.75,42.29,MTEAJ,Equipment,5401,Aids To Daily Living,Adult & Families
Blackpool Council,1011995,Technical & Electrical Services Ltd,4622427,C 9656,03/02/2022,3460.57,576.76,CXC21,Hra Capital Programme 2021/22,6501,Contract Payments,Capital - Chief Executive
Blackpool Council,1011995,Technical & Electrical Services Ltd,4622428,C 9657,03/02/2022,3460.57,576.76,CXC21,Hra Capital Programme 2021/22,6501,Contract Payments,Capital - Chief Executive
Blackpool Council,1011995,Technical & Electrical Services Ltd,4622429,C 9658,03/02/2022,3204,534,CXC21,Hra Capital Programme 2021/22,6501,Contract Payments,Capital - Chief Executive
Blackpool Council,1011995,Technical & Electrical Services Ltd,4622430,VR 21482,03/02/2022,343.07,57.18,CXC21,Hra Capital Programme 2021/22,6501,Contract Payments,Capital - Chief Executive
Blackpool Council,1115716,North Liverpool Construction Ltd (Fac067),4622431,129333,11/02/2022,2141.89,356.98,CXC21,Hra Capital Programme 2021/22,6501,Contract Payments,Capital - Chief Executive
Blackpool Council,1115716,North Liverpool Construction Ltd (Fac067),4622433,129335,11/02/2022,1020,170,CXC21,Hra Capital Programme 2021/22,6501,Contract Payments,Capital - Chief Executive
Blackpool Council,1115668,Greenfield Removals Ltd,4622610,INV-16399,11/02/2022,3949.02,658.17,CXC21,Hra Capital Programme 2021/22,6501,Contract Payments,Capital - Chief Executive
Blackpool Council,1115668,Greenfield Removals Ltd,4622611,INV-16397,11/02/2022,632.04,105.34,CXC21,Hra Capital Programme 2021/22,6501,Contract Payments,Capital - Chief Executive
Blackpool Council,1123190,Cder Group Limted,4622644,194879,11/02/2022,1067.34,177.89,FBBEA,"Income, Recovery & Debtors",3801,Other Expenses,Resources
Blackpool Council,1107100,Nonstop Consulting Ltd,4622832,194829,10/02/2022,1685.75,280.96,JAH,Duty And Assessment,0791,Temp/Relief (Bureau Staff),Children'S Services
Blackpool Council,1107100,Nonstop Consulting Ltd,4622833,194828,10/02/2022,1764.36,294.06,JAH,Duty And Assessment,0791,Temp/Relief (Bureau Staff),Children'S Services
Blackpool Council,1115716,North Liverpool Construction Ltd (Fac067),4622859,129341,11/02/2022,351,58.5,MVA,18-64,5401,Aids To Daily Living,Adult & Families
Blackpool Council,1115716,North Liverpool Construction Ltd (Fac067),4622860,129348,11/02/2022,546,91,MVBBJ,Equipment,5401,Aids To Daily Living,Adult & Families
Blackpool Council,1117457,Wrps Ltd,4622862,10068,11/02/2022,4740,790,CXXXX,Hra Non Specific Contingency,6501,Contract Payments,Capital - Chief Executive
Blackpool Council,1115716,North Liverpool Construction Ltd (Fac067),4622866,129343,11/02/2022,468,78,MVBBJ,Equipment,5401,Aids To Daily Living,Adult & Families
Blackpool Council,1115716,North Liverpool Construction Ltd (Fac067),4622868,129346,11/02/2022,273,45.5,MVBBJ,Equipment,5401,Aids To Daily Living,Adult & Families
Blackpool Council,1115716,North Liverpool Construction Ltd (Fac067),4622869,129349,11/02/2022,351,58.5,MVA,18-64,5401,Aids To Daily Living,Adult & Families
Blackpool Council,1115716,North Liverpool Construction Ltd (Fac067),4622871,129336,11/02/2022,864,144,CXC21,Hra Capital Programme 2021/22,6501,Contract Payments,Capital - Chief Executive
Blackpool Council,1115716,North Liverpool Construction Ltd (Fac067),4622876,129357,11/02/2022,690,115,CXAAA,Local Authority Dwellings,6501,Contract Payments,Capital - Chief Executive
Blackpool Council,1009824,Acorn Care & Education Ltd,4623125,62884,11/02/2022,15782.67,0,CWAN,Children With Additional Needs,4501,Private Contractors,Children'S Services
Blackpool Council,1088102,Whistl Uk Limited,4623143,IN18US22000230,11/02/2022,4499.27,749.88,FCADA,Customer Services,3511,Postages,Resources
Blackpool Council,1041219,Abelglass Trade Supplies Ltd,4623238,INV-7029,14/02/2022,4503.6,750.6,CXC21,Hra Capital Programme 2021/22,6501,Contract Payments,Capital - Chief Executive
Blackpool Council,1115668,Greenfield Removals Ltd,4623240,INV-16400,11/02/2022,679.2,113.2,CXC21,Hra Capital Programme 2021/22,6501,Contract Payments,Capital - Chief Executive
Blackpool Council,1115668,Greenfield Removals Ltd,4623241,INV-16401,11/02/2022,8115,1352.5,CXC21,Hra Capital Programme 2021/22,6501,Contract Payments,Capital - Chief Executive
Blackpool Council,1115668,Greenfield Removals Ltd,4623242,INV-16402,11/02/2022,2116.8,352.8,CXC21,Hra Capital Programme 2021/22,6501,Contract Payments,Capital - Chief Executive
Blackpool Council,1115716,North Liverpool Construction Ltd (Fac067),4623277,129337,11/02/2022,2868.61,478.1,CXC21,Hra Capital Programme 2021/22,6501,Contract Payments,Capital - Chief Executive
Blackpool Council,1117457,Wrps Ltd,4623281,10069,11/02/2022,563.9,93.98,CXC21,Hra Capital Programme 2021/22,6501,Contract Payments,Capital - Chief Executive
Blackpool Council,1017722,Terrys Cut Price Carpets Ltd,4623282,1680,09/02/2022,255.6,0,CX4024,Winter Warmth Grant,6501,Contract Payments,Capital - Adult Social Care
Blackpool Council,1002210,Read & Errington,4623286,C&R109061/3,09/02/2022,3774.99,0,CX4024,Winter Warmth Grant,6501,Contract Payments,Capital - Adult Social Care
Blackpool Council,1104767,North Star Environmental Ltd,4623292,INV-24605,11/02/2022,1170,195,CXC21,Hra Capital Programme 2021/22,6501,Contract Payments,Capital - Chief Executive
Blackpool Council,1121068,Rj Lift Services Ltd,4623494,198890,03/02/2022,497.52,82.92,AER,Dual Use Properties,1101,Lifts,Resources
Blackpool Council,1099262,Nhs Blackpool Ccg,4623948,7011219571,01/02/2022,2205.9,0,MFABE,Supported & Other Accom,4201,Joint Authorities,Adult & Families
Blackpool Council,1105003,Socal Healthcare Ltd,4624256,0122-080-081,08/02/2022,350,0,JDEAAA,Safeguarding Adults,4501,Private Contractors,Adult & Families
Blackpool Council,1130794,Thornbury Nursing Services (Ir35 Compliant),4624257,5703912,17/02/2022,613.09,0,MTEBF,Home Care,4512,Other Care Block Payments,Adult & Families
Blackpool Council,1130794,Thornbury Nursing Services (Ir35 Compliant),4624258,5703914,17/02/2022,660.12,0,MTEBF,Home Care,4512,Other Care Block Payments,Adult & Families
Blackpool Council,1114522,The Oyster Partnership Ltd,4624259,10918633,09/02/2022,1299.6,216.6,BAAA,Legal Services,0793,Supply Cost Of Other Agency,Governance & Partnerships
Blackpool Council,1115108,Lindsay Cunningham Limited,4624260,851 A,16/02/2022,315.87,52.64,JEA,Senior Management,4712,Experts Fees,Children'S Services
Blackpool Council,1016930,REDACTED PERSONAL DATA,4624261,269782,03/02/2022,870,145,BAAA,Legal Services,4707,Counsels Fees,Governance & Partnerships
Blackpool Council,1016930,REDACTED PERSONAL DATA,4624262,266915,04/02/2022,870,145,BAAA,Legal Services,4707,Counsels Fees,Governance & Partnerships
Blackpool Council,1115108,Lindsay Cunningham Limited,4624263,850 A,11/02/2022,1019.22,169.87,JEA,Senior Management,4712,Experts Fees,Children'S Services
Blackpool Council,1115108,Lindsay Cunningham Limited,4624276,848 A,11/02/2022,2403.72,400.62,JEA,Senior Management,4712,Experts Fees,Children'S Services
Blackpool Council,1132258,Novus Property Solutions Ltd,4624280,21120398,03/02/2022,28596.6,4766.1,CXXXX,Hra Non Specific Contingency,6501,Contract Payments,Capital - Chief Executive
Blackpool Council,1073324,Dale Power Solutions Plc,4624380,SI264758,16/02/2022,1243.2,207.2,AER,Dual Use Properties,1012,Premises Maint-Priv.Contractor,Resources
Blackpool Council,1103692,Calico Enterprise Limited,4624548,SINV20/00003473,11/02/2022,813.6,135.6,CXXXX,Hra Non Specific Contingency,6501,Contract Payments,Capital - Chief Executive
Blackpool Council,1115668,Greenfield Removals Ltd,4624549,INV-16409,17/02/2022,6750.6,1125.1,CXC21,Hra Capital Programme 2021/22,6501,Contract Payments,Capital - Chief Executive
Blackpool Council,1115668,Greenfield Removals Ltd,4624718,INV-16410,17/02/2022,2792.88,465.48,CXC21,Hra Capital Programme 2021/22,6501,Contract Payments,Capital - Chief Executive
Blackpool Council,1115668,Greenfield Removals Ltd,4624719,INV-16411,17/02/2022,3891,648.5,CXC21,Hra Capital Programme 2021/22,6501,Contract Payments,Capital - Chief Executive
Blackpool Council,1115668,Greenfield Removals Ltd,4624724,INV-16412,17/02/2022,4610.88,768.48,CXC21,Hra Capital Programme 2021/22,6501,Contract Payments,Capital - Chief Executive
Blackpool Council,1041219,Abelglass Trade Supplies Ltd,4624725,INV-7051,14/02/2022,5529.97,921.66,CXC21,Hra Capital Programme 2021/22,6501,Contract Payments,Capital - Chief Executive
Blackpool Council,1115034,Childrens Medico-Legal Services Ltd,4624727,HDR/0122/2182,11/02/2022,324,54,JEA,Senior Management,4712,Experts Fees,Children'S Services
Blackpool Council,1105784,Dr Karen Shannon Associates,4624728,INV-3773,04/02/2022,1425,112.5,JEA,Senior Management,4712,Experts Fees,Children'S Services
Blackpool Council,1122908,Cavity Extraction Specialists Nw Ltd,4624731,114384,03/02/2022,1833.6,305.6,CXC21,Hra Capital Programme 2021/22,6501,Contract Payments,Capital - Chief Executive
Blackpool Council,1132514,Personnel Leasing Limited,4624765,INV0BP034,09/02/2022,2051.76,341.96,JBT,Looked After Children,0791,Temp/Relief (Bureau Staff),Children'S Services
Blackpool Council,1132514,Personnel Leasing Limited,4624766,INV0BP035,09/02/2022,2077.2,346.2,JBT,Looked After Children,0791,Temp/Relief (Bureau Staff),Children'S Services
Blackpool Council,1132514,Personnel Leasing Limited,4624767,INV0BP036,09/02/2022,1998,333,JAH,Duty And Assessment,0791,Temp/Relief (Bureau Staff),Children'S Services
Blackpool Council,1107100,Nonstop Consulting Ltd,4624785,195169,17/02/2022,2114.33,352.39,JBT,Looked After Children,0791,Temp/Relief (Bureau Staff),Children'S Services
Blackpool Council,1132411,Coast Accommodation Limited,4624792,CO-38215-00005,16/02/2022,1320,0,JEA,Senior Management,5551,Rent & Rent Bonds,Children'S Services
Blackpool Council,1123190,Cder Group Limted,4624818,195731,18/02/2022,1628.99,271.5,FBBEA,"Income, Recovery & Debtors",3807,Legal & Court Costs,Resources
Blackpool Council,1026811,Stannah Lift Services Ltd,4624898,1085362865,02/02/2022,880.39,146.73,MVBBJ,Equipment,5401,Aids To Daily Living,Adult & Families
Blackpool Council,1026811,Stannah Lift Services Ltd,4624898,1085362865,02/02/2022,417.6,69.6,CXAAA,Local Authority Dwellings,6501,Contract Payments,Capital - Chief Executive
Blackpool Council,1044395,Sellick Partnership Limited,4625094,INV394131,18/02/2022,1875.3,312.55,BAAA,Legal Services,0793,Supply Cost Of Other Agency,Governance & Partnerships
Blackpool Council,1123190,Cder Group Limted,4625103,195734,18/02/2022,11849.24,1974.87,PARADM,Parking Administration,7366,Car Parking Fees,Budgets Outside Cash Limits
Blackpool Council,1009824,Acorn Care & Education Ltd,4625106,63146,18/02/2022,399.63,0,CWAN,Children With Additional Needs,4501,Private Contractors,Children'S Services
Blackpool Council,1009824,Acorn Care & Education Ltd,4625107,63147,18/02/2022,582.66,0,CWAN,Children With Additional Needs,4501,Private Contractors,Children'S Services
Blackpool Council,1011973,Automatic Alarms Ltd,4625130,346343,15/02/2022,471.05,78.51,PJHA,"Depot, Management & Admin",1171,Alarms,Places
Blackpool Council,1037705,Walker Fire (Uk) Ltd,4625131,22751021,11/02/2022,353.82,58.97,AEB,Buildings,1012,Premises Maint-Priv.Contractor,Resources
Blackpool Council,1070009,Nigel Stirrup T/A Mw Access Hire,4625132,099,11/02/2022,475,0,FMAE,Civic Centre,1012,Premises Maint-Priv.Contractor,Resources
Blackpool Council,1133225,Med Rescue 24 Ltd,4625146,INV-0599,02/02/2022,280,0,MSDAK,Other Services,4501,Private Contractors,Adult & Families
Blackpool Council,1133273,Adept Scaffolding,4625301,13996,14/02/2022,1800,300,CXXXX,Hra Non Specific Contingency,6501,Contract Payments,Capital - Chief Executive
Blackpool Council,1111078,Dr Y P Shukla,4625306,02/2022,18/02/2022,1750,0,JDEAAA,Safeguarding Adults,4501,Private Contractors,Adult & Families
Blackpool Council,1105003,Socal Healthcare Ltd,4625309,0122-082-083,07/02/2022,350,0,JDEAAA,Safeguarding Adults,4501,Private Contractors,Adult & Families
Blackpool Council,1044756,Nec Software Solutions Ltd,4625311,91456193,15/02/2022,322.51,53.75,EM1032,Client Finances,3532,Comp-Running & License Costs,Resources
Blackpool Council,1044756,Nec Software Solutions Ltd,4625311,91456193,15/02/2022,476.69,79.45,FBBEA,"Income, Recovery & Debtors",3532,Comp-Running & License Costs,Resources
Blackpool Council,1044756,Nec Software Solutions Ltd,4625311,91456193,15/02/2022,799.2,133.2,FCACA,Benefits - Admin,3532,Comp-Running & License Costs,Resources
Blackpool Council,1009824,Acorn Care & Education Ltd,4625339,63145,18/02/2022,399.62,0,CWAN,Children With Additional Needs,4501,Private Contractors,Children'S Services
Blackpool Council,1107100,Nonstop Consulting Ltd,4625490,195322,17/02/2022,2114.33,352.39,JAH,Duty And Assessment,0791,Temp/Relief (Bureau Staff),Children'S Services
Blackpool Council,1107100,Nonstop Consulting Ltd,4625491,195321,17/02/2022,2008.66,334.78,JAH,Duty And Assessment,0791,Temp/Relief (Bureau Staff),Children'S Services
Blackpool Council,1116276,Exclusive Secure Care Services Ltd,4625494,11578,02/02/2022,1042,0,JEA,Senior Management,5505,Travel,Children'S Services
Blackpool Council,1066073,Blackpool Coastal Housing,4625497,30002053,02/02/2022,24974.68,4162.45,CXC11,Site Development,6501,Contract Payments,Capital - Chief Executive
Blackpool Council,1116598,Dc & Mg Associates Ltd,4625498,21 1654,03/02/2022,1572,262,CXC11,Site Development,6501,Contract Payments,Capital - Chief Executive
Blackpool Council,1116598,Dc & Mg Associates Ltd,4625499,211655,11/02/2022,2688,448,CXC11,Site Development,6506,Consultants Fees,Capital - Chief Executive
Blackpool Council,1130794,Thornbury Nursing Services (Ir35 Compliant),4625518,5706151,17/02/2022,638.28,0,MTEBF,Home Care,4512,Other Care Block Payments,Adult & Families
Blackpool Council,1009824,Acorn Care & Education Ltd,4625519,63148,18/02/2022,582.67,0,CWAN,Children With Additional Needs,4501,Private Contractors,Children'S Services
Blackpool Council,1133598,Mayfield School,4625527,IN012318,15/02/2022,7894,0,CWAN,Children With Additional Needs,4101,Other Local Authorities,Children'S Services
Blackpool Council,1121417,Oxford University Innovation Limited,4625801,0000040328,16/02/2022,13530,2255,BSTPRJ,Better Start Projects,3401,General Services,Better Start Projects
Blackpool Council,1026181,Blackpool Sixth Form College,4625804,5101048,01/02/2022,2022.59,0,CWAN,Children With Additional Needs,4501,Private Contractors,Children'S Services
Blackpool Council,1024640,REDACTED PERSONAL DATA,4625823,455900,11/02/2022,876,146,BAAA,Legal Services,4707,Counsels Fees,Governance & Partnerships
Blackpool Council,1086620,REDACTED PERSONAL DATA,4625824,440264,17/02/2022,1188,198,BAAA,Legal Services,4707,Counsels Fees,Governance & Partnerships
Blackpool Council,1085291,REDACTED PERSONAL DATA,4625825,266832,09/02/2022,1110,185,BAAA,Legal Services,4707,Counsels Fees,Governance & Partnerships
Blackpool Council,1118307,REDACTED PERSONAL DATA,4625829,268545,09/02/2022,672,112,BAAA,Legal Services,4707,Counsels Fees,Governance & Partnerships
Blackpool Council,1014404,REDACTED PERSONAL DATA,4625834,266257,10/02/2022,1440,240,BAAA,Legal Services,4707,Counsels Fees,Governance & Partnerships
Blackpool Council,1118162,REDACTED PERSONAL DATA,4625838,457879,10/02/2022,1668,278,BAAA,Legal Services,4707,Counsels Fees,Governance & Partnerships
Blackpool Council,1024640,REDACTED PERSONAL DATA,4625841,462797,11/02/2022,624,104,BAAA,Legal Services,4707,Counsels Fees,Governance & Partnerships
Blackpool Council,1014404,REDACTED PERSONAL DATA,4625842,269776,16/02/2022,1380,230,BAAA,Legal Services,4707,Counsels Fees,Governance & Partnerships
Blackpool Council,1086620,REDACTED PERSONAL DATA,4625844,459557,11/02/2022,348,58,BAAA,Legal Services,4707,Counsels Fees,Governance & Partnerships
Blackpool Council,1086620,REDACTED PERSONAL DATA,4625845,459554,11/02/2022,348,58,BAAA,Legal Services,4707,Counsels Fees,Governance & Partnerships
Blackpool Council,1086620,REDACTED PERSONAL DATA,4625846,459556,11/02/2022,348,58,BAAA,Legal Services,4707,Counsels Fees,Governance & Partnerships
Blackpool Council,1024640,REDACTED PERSONAL DATA,4626114,462797,04/02/2022,384,64,BAAA,Legal Services,4707,Counsels Fees,Governance & Partnerships
Blackpool Council,1115108,Lindsay Cunningham Limited,4626122,854 A,17/02/2022,828.09,138.01,JEA,Senior Management,4712,Experts Fees,Children'S Services
Blackpool Council,1115108,Lindsay Cunningham Limited,4626134,853 A,17/02/2022,744.69,124.11,JEA,Senior Management,4712,Experts Fees,Children'S Services
Blackpool Council,1113288,REDACTED PERSONAL DATA,4626137,REDACTED PERSONAL DATA,10/02/2022,491.4,81.9,JEA,Senior Management,4712,Experts Fees,Children'S Services
Blackpool Council,1044395,Sellick Partnership Limited,4626147,INV394312,23/02/2022,1776.6,296.1,BAAA,Legal Services,0793,Supply Cost Of Other Agency,Governance & Partnerships
Blackpool Council,1103450,Blackpool Entertainment Company Limited,4626151,INV005793,21/02/2022,1010.75,0,PVA,Other External Funding,3401,General Services,Places
Blackpool Council,1088102,Whistl Uk Limited,4626187,IN18US22000350,18/02/2022,4015.13,669.19,FCADA,Customer Services,3511,Postages,Resources
Blackpool Council,1124612,REDACTED PERSONAL DATA,4626191,HOUS 004,03/02/2022,495,0,HOPB,Housing Options,1704,Bed & Breakfast Accomm.,Chief Executive
Blackpool Council,1004960,Renaissance Uk Limited,4626205,1347,10/02/2022,299,0,ADAUT,Autism,0911,Training Expenses,Adult & Families
Blackpool Council,1114522,The Oyster Partnership Ltd,4626207,10919180,16/02/2022,1618.8,269.8,BAAA,Legal Services,0793,Supply Cost Of Other Agency,Governance & Partnerships
Blackpool Council,1106812,Novello B & B,4626209,6371608,11/02/2022,385,0,HOPB,Housing Options,1704,Bed & Breakfast Accomm.,Chief Executive
Blackpool Council,1094411,Fox Fire Security Limited,4626217,INV-3550,18/02/2022,396,66,PTA,Economic Development,1012,Premises Maint-Priv.Contractor,Places
Blackpool Council,1128694,Imap Centre Limited,4626360,E0028,23/02/2022,19232.22,0,CWAN,Children With Additional Needs,4501,Private Contractors,Children'S Services
Blackpool Council,1074768,Thompsons Solicitors (No 1 Office Account),4626767,1411923,04/02/2022,420,70,EM1021,Business Partnering Schls&Corp,6214,Legal Services,Chief Executive
Blackpool Council,1111078,Dr Y P Shukla,4626768,03/2022,23/02/2022,1750,0,JDEAAA,Safeguarding Adults,4501,Private Contractors,Adult & Families
Blackpool Council,1117950,Dr D Patrick - Esengo Ventures Limited,4626772,7,18/02/2022,5728,0,JDEAAA,Safeguarding Adults,4501,Private Contractors,Adult & Families
Blackpool Council,1077392,Reed Specialist Recruitment Ltd,4627448,E020976683M,04/02/2022,1350.29,225.05,BAAA,Legal Services,0791,Temp/Relief (Bureau Staff),Governance & Partnerships
Blackpool Council,1077392,Reed Specialist Recruitment Ltd,4627448,E020976683M,04/02/2022,1489.36,248.23,EM1002,Education Finance,0791,Temp/Relief (Bureau Staff),Children'S Services
Blackpool Council,1077392,Reed Specialist Recruitment Ltd,4627448,E020976683M,04/02/2022,5173.06,862.17,JAB,Locality,0791,Temp/Relief (Bureau Staff),Children'S Services
Blackpool Council,1077392,Reed Specialist Recruitment Ltd,4627448,E020976683M,04/02/2022,3330.72,555.12,JAH,Duty And Assessment,0791,Temp/Relief (Bureau Staff),Children'S Services
Blackpool Council,1077392,Reed Specialist Recruitment Ltd,4627448,E020976683M,04/02/2022,1665.36,277.56,JBR,Lac - Placements,0791,Temp/Relief (Bureau Staff),Children'S Services
Blackpool Council,1077392,Reed Specialist Recruitment Ltd,4627448,E020976683M,04/02/2022,3914.02,652.34,JBT,Looked After Children,0791,Temp/Relief (Bureau Staff),Children'S Services
Blackpool Council,1077392,Reed Specialist Recruitment Ltd,4627448,E020976683M,04/02/2022,5153.72,858.96,JEA,Senior Management,0791,Temp/Relief (Bureau Staff),Children'S Services
Blackpool Council,1077392,Reed Specialist Recruitment Ltd,4627448,E020976683M,04/02/2022,795.06,132.51,PJBA,Wages Overhead Account,0791,Temp/Relief (Bureau Staff),Places
Blackpool Council,1077392,Reed Specialist Recruitment Ltd,4627448,E020976683M,04/02/2022,3750.95,625.17,PU0000,Covid Test And Trace,0791,Temp/Relief (Bureau Staff),Public Health
Blackpool Council,1077392,Reed Specialist Recruitment Ltd,4627448,E020976683M,04/02/2022,2767.33,461.23,PU0001,Public Health Team,0791,Temp/Relief (Bureau Staff),Public Health
Blackpool Council,1133269,REDACTED PERSONAL DATA,4627489,509,17/02/2022,1451.46,0,HOPB,Housing Options,1704,Bed & Breakfast Accomm.,Chief Executive
Blackpool Council,1106471,Mayne Special Needs,4627496,MSN-BES833,02/02/2022,430,0,MTEAJ,Equipment,5401,Aids To Daily Living,Adult & Families
Blackpool Council,1011859,Devonshire Blinds Ltd,4627497,211213ADMIN1,02/02/2022,350.2,58.37,CXC11,Site Development,6518,Miscellaneous - Capital,Capital - Chief Executive
Blackpool Council,1114118,Medequip Assistive Technology Limited,4627498,50118,01/02/2022,1200,200,MTEAJ,Equipment,5401,Aids To Daily Living,Adult & Families
Blackpool Council,1104767,North Star Environmental Ltd,4627499,INV-24695,18/02/2022,420,70,CXC21,Hra Capital Programme 2021/22,6501,Contract Payments,Capital - Chief Executive
Blackpool Council,1106471,Mayne Special Needs,4627501,MSN-BES834,01/02/2022,440,0,MTEAJ,Equipment,5401,Aids To Daily Living,Adult & Families
Blackpool Council,1041219,Abelglass Trade Supplies Ltd,4627538,INV-7065,03/02/2022,1646.4,274.4,CXC21,Hra Capital Programme 2021/22,6501,Contract Payments,Capital - Chief Executive
Blackpool Council,1011518,Tw Joinery & Fencing Contractors,4627539,3425,03/02/2022,4812,802,CXC21,Hra Capital Programme 2021/22,6501,Contract Payments,Capital - Chief Executive
Blackpool Council,1053017,Sandcastle Care Ltd,4627677,5876,10/02/2022,8923.68,0,JEA,Senior Management,4501,Private Contractors,Children'S Services
Blackpool Council,1118744,Lonsdale Care Ltd,4627685,LC00311,16/02/2022,13520,0,JEA,Senior Management,4501,Private Contractors,Children'S Services
Blackpool Council,1118744,Lonsdale Care Ltd,4627686,LC00310,16/02/2022,13800,0,JEA,Senior Management,4501,Private Contractors,Children'S Services
Blackpool Council,1107100,Nonstop Consulting Ltd,4627740,195558,24/02/2022,2114.33,352.39,JBT,Looked After Children,0791,Temp/Relief (Bureau Staff),Children'S Services
Blackpool Council,1068890,David Baines T/A Maydene Hotel,4627749,964,11/02/2022,2550,0,HOPB,Housing Options,1704,Bed & Breakfast Accomm.,Chief Executive
Blackpool Council,1007467,Premier Paper Group Ltd,4627760,1976141,04/02/2022,259.5,43.25,PRINTS,Print Blackpool,3344,Paper,Places
Blackpool Council,1082681,Ad Merchandise Ltd,4627771,42326,10/02/2022,312,52,PRINTS,Print Blackpool,3408,Services To Clients,Places
Blackpool Council,1088379,Innotech Digital & Display Ltd,4627773,490220,11/02/2022,314.39,52.4,PRINTS,Print Blackpool,3408,Services To Clients,Places
Blackpool Council,1011995,Technical & Electrical Services Ltd,4627786,VR 21747,28/02/2022,343.07,57.18,CXC21,Hra Capital Programme 2021/22,6501,Contract Payments,Capital - Chief Executive
Blackpool Council,1011995,Technical & Electrical Services Ltd,4627788,VR 21744,14/02/2022,271.52,45.25,CXC21,Hra Capital Programme 2021/22,6501,Contract Payments,Capital - Chief Executive
Blackpool Council,1123264,Bell Decorating Group Limited,4627802,CSI15612,24/02/2022,1533.92,255.65,CXXXX,Hra Non Specific Contingency,6501,Contract Payments,Capital - Chief Executive
Blackpool Council,1011995,Technical & Electrical Services Ltd,4627803,C 9724,22/02/2022,4214.4,702.4,CXC21,Hra Capital Programme 2021/22,6501,Contract Payments,Capital - Chief Executive
Blackpool Council,1011995,Technical & Electrical Services Ltd,4627804,C 9725,22/02/2022,3031.2,505.2,CXC21,Hra Capital Programme 2021/22,6501,Contract Payments,Capital - Chief Executive
Blackpool Council,1011995,Technical & Electrical Services Ltd,4627805,C 9729,04/02/2022,254.76,42.46,CXC21,Hra Capital Programme 2021/22,6501,Contract Payments,Capital - Chief Executive
Blackpool Council,1011817,Jack Cunliffe Blackpool Ltd,4627813,22218,03/02/2022,467.88,77.98,AEB,Buildings,1012,Premises Maint-Priv.Contractor,Resources
Blackpool Council,1075165,Vector Foiltec Ltd,4627856,R293-26,16/02/2022,1618.8,269.8,AEB,Buildings,1012,Premises Maint-Priv.Contractor,Resources
Blackpool Council,1094411,Fox Fire Security Limited,4627882,3564,24/02/2022,384,64,AER,Dual Use Properties,1012,Premises Maint-Priv.Contractor,Resources
Blackpool Council,1130425,Sure Maintenance,4627905,320269,23/02/2022,342,57,AEB,Buildings,1121,Heating & Ventilation,Resources
Blackpool Council,1130425,Sure Maintenance,4627908,320267,23/02/2022,478.8,79.8,AEB,Buildings,1012,Premises Maint-Priv.Contractor,Resources
Blackpool Council,1066073,Blackpool Coastal Housing,4627909,30002057,11/02/2022,21074.8,3512.47,JEA,Senior Management,4004,Management Fees,Children'S Services
Blackpool Council,1133598,Mayfield School,4627920,IN012346,15/02/2022,3553.5,0,CWAN,Children With Additional Needs,4101,Other Local Authorities,Children'S Services
Blackpool Council,1133598,Mayfield School,4627921,IN012345,17/02/2022,4738,0,CWAN,Children With Additional Needs,4101,Other Local Authorities,Children'S Services
Blackpool Council,1059592,John Macadam & Son (Rescue) Ltd,4627922,0000001026,02/02/2022,3528,588,FV6707,Macadams,7366,Car Parking Fees,Budgets Outside Cash Limits
Blackpool Council,1105889,3d Environmental Limited,4627956,BPCASC-0041,10/02/2022,336.5,56.08,MVA,18-64,4501,Private Contractors,Adult & Families
Blackpool Council,1107100,Nonstop Consulting Ltd,4627959,195355,18/02/2022,814.32,135.72,JAH,Duty And Assessment,0791,Temp/Relief (Bureau Staff),Children'S Services
Blackpool Council,1132538,Lh Assessments Ltd,4627962,LH210122,15/02/2022,3283.5,0,JEA,Senior Management,4712,Experts Fees,Children'S Services
Blackpool Council,1116675,Pickering Psychology Services Ltd,4627968,PPS4032,15/02/2022,748.48,124.75,JEA,Senior Management,4712,Experts Fees,Children'S Services
Blackpool Council,1010652,Conifers Nursing Home,4628651,446510,09/02/2022,1228.86,0,MFCBC,Nursing Placements,4506,Nursing Homes,Adult & Families
Blackpool Council,1010652,Conifers Nursing Home,4628653,446023I,09/02/2022,1228.86,0,MFDBC,Nursing Placements,4506,Nursing Homes,Adult & Families
Blackpool Council,1010652,Conifers Nursing Home,4628654,445841,09/02/2022,1228.86,0,MGBBC,Nursing Placements,4506,Nursing Homes,Adult & Families
Blackpool Council,1010652,Conifers Nursing Home,4628656,446507I,09/02/2022,1228.86,0,MRDBC,Nursing Placements,4506,Nursing Homes,Adult & Families
Blackpool Council,1010652,Conifers Nursing Home,4628657,445872,09/02/2022,1228.86,0,MGBBC,Nursing Placements,4506,Nursing Homes,Adult & Families
Blackpool Council,1010652,Conifers Nursing Home,4628658,446388,09/02/2022,1228.86,0,MGCBC,Nursing Placements,4506,Nursing Homes,Adult & Families
Blackpool Council,1010652,Conifers Nursing Home,4628659,446454,09/02/2022,1228.86,0,MGDBC,Nursing Placements,4506,Nursing Homes,Adult & Families
Blackpool Council,1010652,Conifers Nursing Home,4628660,446693,09/02/2022,1228.86,0,MVBBC,Nursing Placements,4506,Nursing Homes,Adult & Families
Blackpool Council,1010652,Conifers Nursing Home,4628662,446158I,09/02/2022,1228.86,0,MGCBC,Nursing Placements,4506,Nursing Homes,Adult & Families
Blackpool Council,1080116,Olivia Josephine Care Ltd - Willows Care Home,4628878,446401I,16/02/2022,3975,0,MRDAD,Residential Placements,4505,Residential Homes,Adult & Families
Blackpool Council,1080116,Olivia Josephine Care Ltd - Willows Care Home,4628879,446292,16/02/2022,3386.19,0,MVDBD,Residential Placements,7582,Indep Sect Residential Homes,Adult & Families
Blackpool Council,1080116,Olivia Josephine Care Ltd - Willows Care Home,4628881,446578,16/02/2022,1400,0,MGDBD,Residential Placements,4505,Residential Homes,Adult & Families
Blackpool Council,1089769,Federation Of Jewish Services,4628887,446733,09/02/2022,1532,0,MVCBC,Nursing Placements,4506,Nursing Homes,Adult & Families
Blackpool Council,1010652,Conifers Nursing Home,4629234,446851,09/02/2022,1512,0,MVBBE,Supported & Other Accommodatio,4201,Joint Authorities,Adult & Families
Blackpool Council,1113165,Target Psychology Ltd,4629332,1/22/5661,18/02/2022,636.48,106.08,JEA,Senior Management,4712,Experts Fees,Children'S Services
Blackpool Council,1123264,Bell Decorating Group Limited,4629338,CSI12955,03/02/2022,676.96,112.83,CXXXX,Hra Non Specific Contingency,6501,Contract Payments,Capital - Chief Executive
Blackpool Council,1130438,James Andrews Recruitment Solutions Ltd,4629339,00243475,02/02/2022,1429.2,238.2,CX4002,Disabled Facilities Grants,6506,Consultants Fees,Capital - Adult Social Care
Blackpool Council,1114242,REDACTED PERSONAL DATA,4629650,REDACTED PERSONAL DATA,18/02/2022,422.93,0,JEA,Senior Management,4712,Experts Fees,Children'S Services
Blackpool Council,1114242,REDACTED PERSONAL DATA,4629652,REDACTED PERSONAL DATA,23/02/2022,345.45,0,JEA,Senior Management,4712,Experts Fees,Children'S Services
Blackpool Council,1006099,Blackpool Teaching Hospitals Nhs Ft,4629653,1110059941,01/02/2022,13116.75,0,PU1016,Universal Grant Funding,4501,Private Contractors,Public Health
Blackpool Council,1102421,Rachel Dey T/A Pebbles Nursery,4629663,SEND 4,01/02/2022,1643.29,0,CWAN,Children With Additional Needs,4403,Special Needs - Children,Children'S Services
Blackpool Council,1095986,Hawes Side Academy,4629665,HSAI0075,01/02/2022,6624.63,0,CWAN,Children With Additional Needs,4403,Special Needs - Children,Children'S Services
Blackpool Council,1099749,Devonshire Primary Academy,4629666,DPASI6,01/02/2022,16477,0,CWAN,Children With Additional Needs,4403,Special Needs - Children,Children'S Services
Blackpool Council,1041219,Abelglass Trade Supplies Ltd,4629685,INV-7030,28/02/2022,823.2,137.2,CXC21,Hra Capital Programme 2021/22,6501,Contract Payments,Capital - Chief Executive
Blackpool Council,1041219,Abelglass Trade Supplies Ltd,4629686,INV-7074,28/02/2022,2318.4,386.4,CXC21,Hra Capital Programme 2021/22,6501,Contract Payments,Capital - Chief Executive
Blackpool Council,1122908,Cavity Extraction Specialists Nw Ltd,4629687,114385,14/02/2022,1508.4,251.4,CXC21,Hra Capital Programme 2021/22,6501,Contract Payments,Capital - Chief Executive
Blackpool Council,1039034,Contract Floors Ltd,4629688,INV-1753,14/02/2022,594,99,CXC21,Hra Capital Programme 2021/22,6501,Contract Payments,Capital - Chief Executive
Blackpool Council,1097592,Creative Software Solutions (Europe) Ltd,4629689,1103604,25/02/2022,14176.8,2362.8,MTEAJ,Equipment,5401,Aids To Daily Living,Adult & Families
Blackpool Council,1099469,Blackpool Gateway Academy,4629715,5000000079,03/02/2022,22325,0,CWAN,Children With Additional Needs,4403,Special Needs - Children,Children'S Services
Blackpool Council,1013665,Weeton St Michael'S C Of E Primary School,4629716,218,01/02/2022,12246.95,0,CWAN,Children With Additional Needs,4101,Other Local Authorities,Children'S Services
Blackpool Council,1011973,Automatic Alarms Ltd,4629724,346269,14/02/2022,298.04,49.67,AEB,Buildings,1012,Premises Maint-Priv.Contractor,Resources
Blackpool Council,1112757,Corona Contracts Ltd,4629729,4098,25/02/2022,516,86,AEB,Buildings,1012,Premises Maint-Priv.Contractor,Resources
Blackpool Council,1006099,Blackpool Teaching Hospitals Nhs Ft,4629734,1110060066,07/02/2022,26980.2,4496.7,BSTPRJ,Better Start Projects,3401,General Services,Better Start Projects
Blackpool Council,1116224,Bluegrass Research Ltd,4629753,1291,25/02/2022,5928,988,BSTPRJ,Better Start Projects,3401,General Services,Better Start Projects
Blackpool Council,1102182,Taylor Davenport Resourcing Ltd,4630372,BLK237,01/02/2022,12957.19,2159.53,JAB,Locality,0791,Temp/Relief (Bureau Staff),Children'S Services
Blackpool Council,1007814,Water Plus Limited,4630427,UU-INV07169750,08/02/2022,772.54,0,HJA,Growth,1401,Water Charges-Metered,Places
Blackpool Council,1123190,Cder Group Limted,4630567,196611,25/02/2022,6716.1,1119.35,FV6705,Phoenix Commercial Collection,7366,Car Parking Fees,Budgets Outside Cash Limits
Blackpool Council,1123190,Cder Group Limted,4630569,196609,25/02/2022,4111.48,685.25,FBBEA,"Income, Recovery & Debtors",3807,Legal & Court Costs,Resources
Blackpool Council,1009824,Acorn Care & Education Ltd,4630570,63821,25/02/2022,3120,0,CWAN,Children With Additional Needs,2211,Casual Hire,Children'S Services
Blackpool Council,1009824,Acorn Care & Education Ltd,4630572,63822,25/02/2022,1200,0,CWAN,Children With Additional Needs,2211,Casual Hire,Children'S Services
Blackpool Council,1102182,Taylor Davenport Resourcing Ltd,4630891,BLK229,02/02/2022,8384.4,1397.4,JAB,Locality,0791,Temp/Relief (Bureau Staff),Children'S Services
Blackpool Council,1132493,Portman Recruitment Limited,4630892,INVBPCC016,09/02/2022,1425.6,237.6,JAB,Locality,0791,Temp/Relief (Bureau Staff),Children'S Services
Blackpool Council,1084280,Alpha Biolabs,4630967,INV602512,07/02/2022,271.2,45.2,JEA,Senior Management,4712,Experts Fees,Children'S Services
Blackpool Council,1119281,Fulcrum Global Advisory Limited,4630969,341250122,07/02/2022,2808,468,JEA,Senior Management,4713,Process Servers Fees,Children'S Services
Blackpool Council,1084280,Alpha Biolabs,4630970,INV600341,07/02/2022,2020.8,336.8,JEA,Senior Management,4712,Experts Fees,Children'S Services
Blackpool Council,1043100,Traffic Enforcement Centre,4630981,RBP00322,02/02/2022,981,0,PARADM,Parking Administration,3801,Other Expenses,Budgets Outside Cash Limits
Blackpool Council,1010314,Blackpool Grand Theatre,4630982,AE 792,21/02/2022,8229.67,0,PVA,Other External Funding,3401,General Services,Places
Blackpool Council,1120319,Backpackers Blackpool Ltd,4631001,117,01/02/2022,450,0,HOPB,Housing Options,1704,Bed & Breakfast Accomm.,Chief Executive
Blackpool Council,1071925,Groundwork Cheshire Lancs And Merseyside,4631002,0000003276,01/02/2022,3837,0,PU2064,Holiday Activities & Food(Haf),4501,Private Contractors,Public Health
Blackpool Council,1120319,Backpackers Blackpool Ltd,4631003,116,01/02/2022,275,0,HOPB,Housing Options,1704,Bed & Breakfast Accomm.,Chief Executive
Blackpool Council,1011817,Jack Cunliffe Blackpool Ltd,4631052,22222,03/02/2022,324.24,54.04,AEB,Buildings,1012,Premises Maint-Priv.Contractor,Resources
Blackpool Council,1087305,Ellis & York Ltd,4631082,8770,03/02/2022,402.6,67.1,FMAA,Retail Units,1012,Premises Maint-Priv.Contractor,Resources
Blackpool Council,1112757,Corona Contracts Ltd,4631090,4097,25/02/2022,258,43,AEB,Buildings,1012,Premises Maint-Priv.Contractor,Resources
Blackpool Council,1113779,Tg Gas & Heating Services Ltd,4631091,521,07/02/2022,547.2,91.2,AEB,Buildings,1012,Premises Maint-Priv.Contractor,Resources
Blackpool Council,1113779,Tg Gas & Heating Services Ltd,4631092,520,07/02/2022,1006.1,167.68,AEB,Buildings,1012,Premises Maint-Priv.Contractor,Resources
Blackpool Council,1113779,Tg Gas & Heating Services Ltd,4631093,518,01/02/2022,6333.6,1055.6,AER,Dual Use Properties,1012,Premises Maint-Priv.Contractor,Resources
Blackpool Council,1114522,The Oyster Partnership Ltd,4631286,10919727,23/02/2022,1653,275.5,BAAA,Legal Services,0793,Supply Cost Of Other Agency,Governance & Partnerships
Blackpool Council,1130794,Thornbury Nursing Services (Ir35 Compliant),4631323,5704371,01/02/2022,733,0,JEA,Senior Management,4501,Private Contractors,Children'S Services
Blackpool Council,1130794,Thornbury Nursing Services (Ir35 Compliant),4631324,5704372,01/02/2022,733,0,JEA,Senior Management,4501,Private Contractors,Children'S Services
Blackpool Council,1130794,Thornbury Nursing Services (Ir35 Compliant),4631326,5712430,04/02/2022,1138.62,0,JEA,Senior Management,4501,Private Contractors,Children'S Services
Blackpool Council,1130794,Thornbury Nursing Services (Ir35 Compliant),4631328,5710288,03/02/2022,2250.16,0,JEA,Senior Management,4501,Private Contractors,Children'S Services
Blackpool Council,1131138,REDACTED PERSONAL DATA,4631346,DH250122-310122,02/02/2022,319.02,0,MGAAE,Home Care,4504,Adult Placements (Ld),Adult & Families
Blackpool Council,1103164,REDACTED PERSONAL DATA,4631347,LS140122-300122,02/02/2022,850.72,0,MHAAE,Home Care,4504,Adult Placements (Ld),Adult & Families
Blackpool Council,1109511,Cambian Childcare Limited,4631410,CHI00015763,02/02/2022,28350,0,JEA,Senior Management,4501,Private Contractors,Children'S Services
Blackpool Council,1119464,Branas Isaf Personal Development Centre Ltd,4631411,CAI00040689,02/02/2022,19799.92,0,JEA,Senior Management,4501,Private Contractors,Children'S Services
Blackpool Council,1128206,Phoenix Family Care Ltd,4631415,BC DJRPF 1156,03/02/2022,6035.77,0,JEA,Senior Management,4501,Private Contractors,Children'S Services
Blackpool Council,1130794,Thornbury Nursing Services (Ir35 Compliant),4631416,5712600,04/02/2022,808.36,0,JEA,Senior Management,4501,Private Contractors,Children'S Services
Blackpool Council,1130794,Thornbury Nursing Services (Ir35 Compliant),4631417,5712601,04/02/2022,661.48,0,JEA,Senior Management,4501,Private Contractors,Children'S Services
Blackpool Council,1130794,Thornbury Nursing Services (Ir35 Compliant),4631418,5712602,04/02/2022,661.48,0,JEA,Senior Management,4501,Private Contractors,Children'S Services
Blackpool Council,1130794,Thornbury Nursing Services (Ir35 Compliant),4631419,5712603,04/02/2022,756.18,0,JEA,Senior Management,4501,Private Contractors,Children'S Services
Blackpool Council,1130794,Thornbury Nursing Services (Ir35 Compliant),4631420,5712599,04/02/2022,658.48,0,JEA,Senior Management,4501,Private Contractors,Children'S Services
Blackpool Council,1107100,Nonstop Consulting Ltd,4631431,195639,24/02/2022,2114.33,352.39,JAH,Duty And Assessment,0791,Temp/Relief (Bureau Staff),Children'S Services
Blackpool Council,1108029,REDACTED PERSONAL DATA,4631432,TCPG/GCB/JAN22JH,02/02/2022,1250,0,JBR,Lac - Placements,3801,Other Expenses,Children'S Services
Blackpool Council,1110793,REDACTED PERSONAL DATA,4631434,TCPGNH0122ABH,25/02/2022,562.5,0,JBR,Lac - Placements,3801,Other Expenses,Children'S Services
Blackpool Council,1110793,REDACTED PERSONAL DATA,4631435,TCPGNH0122RW,25/02/2022,1500,0,JBR,Lac - Placements,3801,Other Expenses,Children'S Services
Blackpool Council,1110793,REDACTED PERSONAL DATA,4631436,TCPGNH0122CB,25/02/2022,875,0,JBR,Lac - Placements,3801,Other Expenses,Children'S Services
Blackpool Council,1107884,REDACTED PERSONAL DATA,4631437,0428,02/02/2022,1200,0,JBR,Lac - Placements,3801,Other Expenses,Children'S Services
Blackpool Council,1130794,Thornbury Nursing Services (Ir35 Compliant),4631439,5706344,03/02/2022,654.76,0,JEA,Senior Management,4501,Private Contractors,Children'S Services
Blackpool Council,1130794,Thornbury Nursing Services (Ir35 Compliant),4631440,5706345,03/02/2022,654.76,0,JEA,Senior Management,4501,Private Contractors,Children'S Services
Blackpool Council,1130794,Thornbury Nursing Services (Ir35 Compliant),4631441,5706346,03/02/2022,661.48,0,JEA,Senior Management,4501,Private Contractors,Children'S Services
Blackpool Council,1130794,Thornbury Nursing Services (Ir35 Compliant),4631442,5706347,03/02/2022,699.16,0,JEA,Senior Management,4501,Private Contractors,Children'S Services
Blackpool Council,1130794,Thornbury Nursing Services (Ir35 Compliant),4631443,5706348,03/02/2022,790.72,0,JEA,Senior Management,4501,Private Contractors,Children'S Services
Blackpool Council,1130794,Thornbury Nursing Services (Ir35 Compliant),4631444,5710697,03/02/2022,784.11,0,JEA,Senior Management,4501,Private Contractors,Children'S Services
Blackpool Council,1130794,Thornbury Nursing Services (Ir35 Compliant),4631445,5710698,03/02/2022,801.64,0,JEA,Senior Management,4501,Private Contractors,Children'S Services
Blackpool Council,1130794,Thornbury Nursing Services (Ir35 Compliant),4631446,5710699,03/02/2022,808.36,0,JEA,Senior Management,4501,Private Contractors,Children'S Services
Blackpool Council,1130794,Thornbury Nursing Services (Ir35 Compliant),4631447,5710700,03/02/2022,733,0,JEA,Senior Management,4501,Private Contractors,Children'S Services
Blackpool Council,1130794,Thornbury Nursing Services (Ir35 Compliant),4631448,5710701,03/02/2022,768.07,0,JEA,Senior Management,4501,Private Contractors,Children'S Services
Blackpool Council,1130794,Thornbury Nursing Services (Ir35 Compliant),4631449,5710702,03/02/2022,718.44,0,JEA,Senior Management,4501,Private Contractors,Children'S Services
Blackpool Council,1130794,Thornbury Nursing Services (Ir35 Compliant),4631450,5706343,03/02/2022,799.36,0,JEA,Senior Management,4501,Private Contractors,Children'S Services
Blackpool Council,1130794,Thornbury Nursing Services (Ir35 Compliant),4631451,5704364,03/02/2022,808.36,0,JEA,Senior Management,4501,Private Contractors,Children'S Services
Blackpool Council,1130794,Thornbury Nursing Services (Ir35 Compliant),4631452,5702279,03/02/2022,825.5,0,JEA,Senior Management,4501,Private Contractors,Children'S Services
Blackpool Council,1130794,Thornbury Nursing Services (Ir35 Compliant),4631453,5704354,03/02/2022,808.36,0,JEA,Senior Management,4501,Private Contractors,Children'S Services
Blackpool Council,1130794,Thornbury Nursing Services (Ir35 Compliant),4631454,5704355,03/02/2022,808.36,0,JEA,Senior Management,4501,Private Contractors,Children'S Services
Blackpool Council,1130794,Thornbury Nursing Services (Ir35 Compliant),4631455,5704356,03/02/2022,643.84,0,JEA,Senior Management,4501,Private Contractors,Children'S Services
Blackpool Council,1130794,Thornbury Nursing Services (Ir35 Compliant),4631456,5704357,03/02/2022,661.48,0,JEA,Senior Management,4501,Private Contractors,Children'S Services
Blackpool Council,1130794,Thornbury Nursing Services (Ir35 Compliant),4631457,5704358,03/02/2022,726.84,0,JEA,Senior Management,4501,Private Contractors,Children'S Services
Blackpool Council,1130794,Thornbury Nursing Services (Ir35 Compliant),4631458,5704359,03/02/2022,706.68,0,JEA,Senior Management,4501,Private Contractors,Children'S Services
Blackpool Council,1130794,Thornbury Nursing Services (Ir35 Compliant),4631459,5704360,03/02/2022,733,0,JEA,Senior Management,4501,Private Contractors,Children'S Services
Blackpool Council,1130794,Thornbury Nursing Services (Ir35 Compliant),4631460,5704361,03/02/2022,808.36,0,JEA,Senior Management,4501,Private Contractors,Children'S Services
Blackpool Council,1130794,Thornbury Nursing Services (Ir35 Compliant),4631461,5704362,03/02/2022,716.2,0,JEA,Senior Management,4501,Private Contractors,Children'S Services
Blackpool Council,1130794,Thornbury Nursing Services (Ir35 Compliant),4631462,5704363,03/02/2022,733,0,JEA,Senior Management,4501,Private Contractors,Children'S Services
Blackpool Council,1130794,Thornbury Nursing Services (Ir35 Compliant),4631463,5704365,02/02/2022,808.36,0,JEA,Senior Management,4501,Private Contractors,Children'S Services
Blackpool Council,1130794,Thornbury Nursing Services (Ir35 Compliant),4631464,5704366,02/02/2022,803.54,0,JEA,Senior Management,4501,Private Contractors,Children'S Services
Blackpool Council,1130794,Thornbury Nursing Services (Ir35 Compliant),4631465,5704367,02/02/2022,733,0,JEA,Senior Management,4501,Private Contractors,Children'S Services
Blackpool Council,1130794,Thornbury Nursing Services (Ir35 Compliant),4631466,5704373,02/02/2022,681.52,0,JEA,Senior Management,4501,Private Contractors,Children'S Services
Blackpool Council,1130794,Thornbury Nursing Services (Ir35 Compliant),4631467,5704374,02/02/2022,790.72,0,JEA,Senior Management,4501,Private Contractors,Children'S Services
Blackpool Council,1130794,Thornbury Nursing Services (Ir35 Compliant),4631470,5704375,02/02/2022,657,0,JEA,Senior Management,4501,Private Contractors,Children'S Services
Blackpool Council,1130794,Thornbury Nursing Services (Ir35 Compliant),4631471,5704376,02/02/2022,657,0,JEA,Senior Management,4501,Private Contractors,Children'S Services
Blackpool Council,1130794,Thornbury Nursing Services (Ir35 Compliant),4631472,5704377,02/02/2022,793.8,0,JEA,Senior Management,4501,Private Contractors,Children'S Services
Blackpool Council,1130794,Thornbury Nursing Services (Ir35 Compliant),4631473,5706341,02/02/2022,801.64,0,JEA,Senior Management,4501,Private Contractors,Children'S Services
Blackpool Council,1130794,Thornbury Nursing Services (Ir35 Compliant),4631474,5704368,02/02/2022,808.36,0,JEA,Senior Management,4501,Private Contractors,Children'S Services
Blackpool Council,1130794,Thornbury Nursing Services (Ir35 Compliant),4631475,5704369,02/02/2022,661.48,0,JEA,Senior Management,4501,Private Contractors,Children'S Services
Blackpool Council,1130794,Thornbury Nursing Services (Ir35 Compliant),4631476,5704370,02/02/2022,699.16,0,JEA,Senior Management,4501,Private Contractors,Children'S Services
Blackpool Council,1121336,Ses Business Water,4631480,958593-7/40,03/02/2022,2162.33,0,FL1302,A&E - Academies Hold A/C,1401,Water Charges-Metered,Resources
Blackpool Council,1048844,Edf Energy,4631496,000010962803,01/02/2022,1600.62,266.77,PJW,Management - Places - Illumina,1202,Electricity,Places
Blackpool Council,1048844,Edf Energy,4631498,000010962702,01/02/2022,1704.69,284.12,PJW,Management - Places - Illumina,1202,Electricity,Places
Blackpool Council,1048844,Edf Energy,4631500,000010962697,01/02/2022,1740.24,290.04,PJW,Management - Places - Illumina,1202,Electricity,Places
Blackpool Council,1048844,Edf Energy,4631501,000010962700,01/02/2022,1749.32,291.55,PJW,Management - Places - Illumina,1202,Electricity,Places
Blackpool Council,1048844,Edf Energy,4631502,000010962763,01/02/2022,1757.73,292.95,PJW,Management - Places - Illumina,1202,Electricity,Places
Blackpool Council,1048844,Edf Energy,4631504,000010962711,01/02/2022,1758.45,293.08,PJW,Management - Places - Illumina,1202,Electricity,Places
Blackpool Council,1048844,Edf Energy,4631506,000010962699,01/02/2022,1688.07,281.34,PJW,Management - Places - Illumina,1202,Electricity,Places
Blackpool Council,1048844,Edf Energy,4631507,000010962694,01/02/2022,1484.99,247.49,PJW,Management - Places - Illumina,1202,Electricity,Places
Blackpool Council,1132493,Portman Recruitment Limited,4631562,INVPCC018,23/02/2022,2397.6,399.6,JAB,Locality,0791,Temp/Relief (Bureau Staff),Children'S Services
Blackpool Council,1132493,Portman Recruitment Limited,4631563,INVBPCC017,16/02/2022,2397.6,399.6,JAB,Locality,0791,Temp/Relief (Bureau Staff),Children'S Services
Blackpool Council,1132514,Personnel Leasing Limited,4631564,INV0BP037,16/02/2022,1998,333,JAH,Duty And Assessment,0791,Temp/Relief (Bureau Staff),Children'S Services
Blackpool Council,1132514,Personnel Leasing Limited,4631565,INV0BP038,16/02/2022,2013.84,335.64,JBT,Looked After Children,0791,Temp/Relief (Bureau Staff),Children'S Services
Blackpool Council,1133373,REDACTED PERSONAL DATA,4631566,01,03/02/2022,900,0,JEA,Senior Management,4820,Therapy,Children'S Services
Blackpool Council,1133373,REDACTED PERSONAL DATA,4631567,02,03/02/2022,1200,0,JEA,Senior Management,4820,Therapy,Children'S Services
Blackpool Council,1118652,Paradigm Professional Consultancy Ltd,4631568,V66V119122,18/02/2022,2088,348,JAB,Locality,0791,Temp/Relief (Bureau Staff),Children'S Services
Blackpool Council,1108029,REDACTED PERSONAL DATA,4631569,TCPG/GCB/JAN22JW,03/02/2022,1991,0,JBR,Lac - Placements,3801,Other Expenses,Children'S Services
Blackpool Council,1118916,REDACTED PERSONAL DATA,4631592,SGO ALLOWANCE,02/02/2022,1995.8,0,JEA,Senior Management,4809,Special Guardianship,Children'S Services
Blackpool Council,1005266,REDACTED PERSONAL DATA,4631593,448391,01/02/2022,692,0,JEA,Senior Management,4809,Special Guardianship,Children'S Services
Blackpool Council,1005947,REDACTED PERSONAL DATA,4631594,448278,01/02/2022,608,0,JEA,Senior Management,4809,Special Guardianship,Children'S Services
Blackpool Council,1005947,REDACTED PERSONAL DATA,4631595,448277,01/02/2022,808,0,JEA,Senior Management,4809,Special Guardianship,Children'S Services
Blackpool Council,1006685,REDACTED PERSONAL DATA,4631596,448493,01/02/2022,1680,0,JEA,Senior Management,4809,Special Guardianship,Children'S Services
Blackpool Council,1006685,REDACTED PERSONAL DATA,4631597,448421,01/02/2022,692.32,0,JEA,Senior Management,4809,Special Guardianship,Children'S Services
Blackpool Council,1006685,REDACTED PERSONAL DATA,4631598,448581,01/02/2022,1680,0,JEA,Senior Management,4809,Special Guardianship,Children'S Services
Blackpool Council,1006685,REDACTED PERSONAL DATA,4631599,448279,01/02/2022,692.32,0,JEA,Senior Management,4809,Special Guardianship,Children'S Services
Blackpool Council,1006685,REDACTED PERSONAL DATA,4631600,448111,01/02/2022,1680,0,JEA,Senior Management,4809,Special Guardianship,Children'S Services
Blackpool Council,1006685,REDACTED PERSONAL DATA,4631601,448368,01/02/2022,1680,0,JEA,Senior Management,4809,Special Guardianship,Children'S Services
Blackpool Council,1006685,REDACTED PERSONAL DATA,4631602,448305,01/02/2022,1680,0,JEA,Senior Management,4809,Special Guardianship,Children'S Services
Blackpool Council,1007093,REDACTED PERSONAL DATA,4631603,448100,01/02/2022,1128,0,JEA,Senior Management,4809,Special Guardianship,Children'S Services
Blackpool Council,1007093,REDACTED PERSONAL DATA,4631604,448342,01/02/2022,1212,0,JEA,Senior Management,4809,Special Guardianship,Children'S Services
Blackpool Council,1007093,REDACTED PERSONAL DATA,4631605,448418,01/02/2022,1128,0,JEA,Senior Management,4809,Special Guardianship,Children'S Services
Blackpool Council,1009775,REDACTED PERSONAL DATA,4631606,448183,01/02/2022,1672,0,JEA,Senior Management,4809,Special Guardianship,Children'S Services
Blackpool Council,1010522,REDACTED PERSONAL DATA,4631607,448393,01/02/2022,692,0,JEA,Senior Management,4809,Special Guardianship,Children'S Services
Blackpool Council,1013085,REDACTED PERSONAL DATA,4631608,448232,01/02/2022,608,0,JEA,Senior Management,4809,Special Guardianship,Children'S Services
Blackpool Council,1013085,REDACTED PERSONAL DATA,4631609,448489,01/02/2022,608,0,JEA,Senior Management,4809,Special Guardianship,Children'S Services
Blackpool Council,1018980,REDACTED PERSONAL DATA,4631610,448216,01/02/2022,1328,0,JBR,Lac - Placements,4814,Adoption Allowances,Children'S Services
Blackpool Council,1023504,REDACTED PERSONAL DATA,4631611,448122,01/02/2022,808,0,JEA,Senior Management,4809,Special Guardianship,Children'S Services
Blackpool Council,1023636,REDACTED PERSONAL DATA,4631612,448280,01/02/2022,608,0,JEA,Senior Management,4809,Special Guardianship,Children'S Services
